Body Name,Body,Service Label,Service Code,CIPFA Detailed Expenditure Type,CIPFA Detailed Expenditure Code,Date,Transaction Number,Net Amount,Supplier Name,,,,,,,,,,,#REF!
Nottinghamshire County Council,1111/1001,Surplus or Deficit from Trading Undertak,TRADING,Supplies & Services,DDA,13/08/2014,05-10001,2249.14,Hamelin Paperbrands Ltd,,,,,,,,,,,
Nottinghamshire County Council,1111/1001,Surplus or Deficit from Trading Undertak,TRADING,Supplies & Services,DDA,20/08/2014,05-10001,1011.6,Hamelin Paperbrands Ltd,,,,,,,,,,,
Nottinghamshire County Council,1111/1001,Surplus or Deficit from Trading Undertak,TRADING,Supplies & Services,DDA,20/08/2014,05-10001,2963.22,Hamelin Paperbrands Ltd,,,,,,,,,,,
Nottinghamshire County Council,1111/1001,Surplus or Deficit from Trading Undertak,TRADING,Supplies & Services,DDA,20/08/2014,05-10001,1113.06,Hamelin Paperbrands Ltd,,,,,,,,,,,
Nottinghamshire County Council,1111/1001,Surplus or Deficit from Trading Undertak,TRADING,Supplies & Services,DDA,22/08/2014,05-10001,4336.43,Hamelin Paperbrands Ltd,,,,,,,,,,,
Nottinghamshire County Council,1111/1001,Surplus or Deficit from Trading Undertak,TRADING,Supplies & Services,DDA,21/08/2014,05-10001,720,Hardy & Hanson Ltd,,,,,,,,,,,
Nottinghamshire County Council,1111/1001,Surplus or Deficit from Trading Undertak,TRADING,Supplies & Services,DDA,28/08/2014,05-10001,509.2,Decree Thermo Ltd,,,,,,,,,,,
Nottinghamshire County Council,1111/1001,Surplus or Deficit from Trading Undertak,TRADING,Supplies & Services,DDA,20/08/2014,05-10001,980.4,Plastoreg Smidt Gmbh,,,,,,,,,,,
Nottinghamshire County Council,1111/1001,Surplus or Deficit from Trading Undertak,TRADING,Supplies & Services,DDA,20/08/2014,05-10001,604.92,Plastoreg Smidt Gmbh,,,,,,,,,,,
Nottinghamshire County Council,1111/1001,Surplus or Deficit from Trading Undertak,TRADING,Supplies & Services,DDA,18/08/2014,05-10001,8795.88,Henkel Loctite Adhesives Ltd,,,,,,,,,,,
Nottinghamshire County Council,1111/1001,Surplus or Deficit from Trading Undertak,TRADING,Supplies & Services,DDA,18/08/2014,05-10001,1026.84,Henkel Loctite Adhesives Ltd,,,,,,,,,,,
Nottinghamshire County Council,1111/1001,Surplus or Deficit from Trading Undertak,TRADING,Supplies & Services,DDA,22/08/2014,05-10001,2158.36,Henkel Loctite Adhesives Ltd,,,,,,,,,,,
Nottinghamshire County Council,1111/1001,Surplus or Deficit from Trading Undertak,TRADING,Supplies & Services,DAA,18/08/2014,05-10001,657.95,Stuff-Uk-Net,,,,,,,,,,,
Nottinghamshire County Council,1111/1001,Surplus or Deficit from Trading Undertak,TRADING,Supplies & Services,DAA,18/08/2014,05-10001,834,Esselte Uk,,,,,,,,,,,
Nottinghamshire County Council,1111/1001,Surplus or Deficit from Trading Undertak,TRADING,Supplies & Services,DAA,20/08/2014,05-10001,700,Flip File Ltd,,,,,,,,,,,
Nottinghamshire County Council,1111/1001,Surplus or Deficit from Trading Undertak,TRADING,Supplies & Services,DAA,18/08/2014,05-10001,1166,Vivid Laminating Technologies Ltd,,,,,,,,,,,
Nottinghamshire County Council,1111/1001,Surplus or Deficit from Trading Undertak,TRADING,Supplies & Services,DAA,21/08/2014,05-10001,3978.54,Vivid Laminating Technologies Ltd,,,,,,,,,,,
Nottinghamshire County Council,1111/1001,Surplus or Deficit from Trading Undertak,TRADING,Supplies & Services,DAA,21/08/2014,05-10001,503,Vivid Laminating Technologies Ltd,,,,,,,,,,,
Nottinghamshire County Council,1111/1001,Surplus or Deficit from Trading Undertak,TRADING,Supplies & Services,DAA,18/08/2014,05-10001,577.2,Heritage Envelopes Ltd,,,,,,,,,,,
Nottinghamshire County Council,1111/1001,Surplus or Deficit from Trading Undertak,TRADING,Supplies & Services,DAA,21/08/2014,05-10001,617.6,Heritage Envelopes Ltd,,,,,,,,,,,
Nottinghamshire County Council,1111/1001,Surplus or Deficit from Trading Undertak,TRADING,Supplies & Services,DAA,28/08/2014,05-10001,559.2,Heritage Envelopes Ltd,,,,,,,,,,,
Nottinghamshire County Council,1111/1001,Surplus or Deficit from Trading Undertak,TRADING,Supplies & Services,DAA,14/08/2014,05-10001,2224.23,Omser (Scotland) Ltd,,,,,,,,,,,
Nottinghamshire County Council,1111/1001,Surplus or Deficit from Trading Undertak,TRADING,Supplies & Services,DAA,14/08/2014,05-10001,2361.1,Antalis Key Accounts,,,,,,,,,,,
Nottinghamshire County Council,1111/1001,Surplus or Deficit from Trading Undertak,TRADING,Supplies & Services,DAA,18/08/2014,05-10001,512.02,Antalis Key Accounts,,,,,,,,,,,
Nottinghamshire County Council,1111/1001,Surplus or Deficit from Trading Undertak,TRADING,Supplies & Services,DAA,20/08/2014,05-10001,917.4,Antalis Key Accounts,,,,,,,,,,,
Nottinghamshire County Council,1111/1001,Surplus or Deficit from Trading Undertak,TRADING,Supplies & Services,DAA,13/08/2014,05-10001,793.71,Xma Ltd,,,,,,,,,,,
Nottinghamshire County Council,1111/1001,Surplus or Deficit from Trading Undertak,TRADING,Supplies & Services,DAA,21/08/2014,05-10001,791.49,Xma Ltd,,,,,,,,,,,
Nottinghamshire County Council,1111/1001,Surplus or Deficit from Trading Undertak,TRADING,Supplies & Services,DAA,22/08/2014,05-10001,673.65,Rocom Ltd.,,,,,,,,,,,
Nottinghamshire County Council,1111/1001,Surplus or Deficit from Trading Undertak,TRADING,Premises Related,BAA,20/08/2014,05-10001,956.4,Avery Uk,,,,,,,,,,,
Nottinghamshire County Council,1111/1001,Surplus or Deficit from Trading Undertak,TRADING,Premises Related,BAA,20/08/2014,05-10001,1630.85,Avery Uk,,,,,,,,,,,
Nottinghamshire County Council,1111/1001,Surplus or Deficit from Trading Undertak,TRADING,Premises Related,BJA,20/08/2014,05-10001,1760.44,Kimberley Clark European Services Ltd,,,,,,,,,,,
Nottinghamshire County Council,1111/1001,Surplus or Deficit from Trading Undertak,TRADING,Premises Related,BJA,13/08/2014,05-10001,590.99,Ecover (Uk) Ltd,,,,,,,,,,,
Nottinghamshire County Council,1111/1001,Surplus or Deficit from Trading Undertak,TRADING,Premises Related,BJA,29/08/2014,05-10001,732.85,Ecover (Uk) Ltd,,,,,,,,,,,
Nottinghamshire County Council,1111/1001,Surplus or Deficit from Trading Undertak,TRADING,Premises Related,BJA,18/08/2014,05-10001,500.2,Cromwell Polythene Ltd,,,,,,,,,,,
Nottinghamshire County Council,1111/1001,Surplus or Deficit from Trading Undertak,TRADING,Premises Related,BJA,18/08/2014,05-10001,759,Dri-Pack Ltd,,,,,,,,,,,
Nottinghamshire County Council,1111/1001,Surplus or Deficit from Trading Undertak,TRADING,Premises Related,BJA,21/08/2014,05-10001,727.61,Evans Vanodine International Ltd,,,,,,,,,,,
Nottinghamshire County Council,1111/1001,Surplus or Deficit from Trading Undertak,TRADING,Premises Related,BJA,18/08/2014,05-10001,1406.66,Johnson Diversey,,,,,,,,,,,
Nottinghamshire County Council,1111/1001,Surplus or Deficit from Trading Undertak,TRADING,Premises Related,BJA,18/08/2014,05-10001,4764.9,Premiere Products,,,,,,,,,,,
Nottinghamshire County Council,1111/1001,Surplus or Deficit from Trading Undertak,TRADING,Premises Related,BJA,21/08/2014,05-10001,1146.14,Premiere Products,,,,,,,,,,,
Nottinghamshire County Council,1111/1001,Surplus or Deficit from Trading Undertak,TRADING,Premises Related,BJA,18/08/2014,05-10001,670.47,Scot Young Research,,,,,,,,,,,
Nottinghamshire County Council,1111/1001,Surplus or Deficit from Trading Undertak,TRADING,Premises Related,BJA,13/08/2014,05-10001,531.06,Cromwell Tools Ltd,,,,,,,,,,,
Nottinghamshire County Council,1111/1001,Surplus or Deficit from Trading Undertak,TRADING,Premises Related,BJA,13/08/2014,05-10001,698.12,3M Uk Plc,,,,,,,,,,,
Nottinghamshire County Council,1111/1001,Surplus or Deficit from Trading Undertak,TRADING,Premises Related,BJA,21/08/2014,05-10001,784,Candor Services,,,,,,,,,,,
Nottinghamshire County Council,1111/1001,Surplus or Deficit from Trading Undertak,TRADING,Supplies & Services,DAA,18/08/2014,05-10001,759.96,Dudson Bros Ltd,,,,,,,,,,,
Nottinghamshire County Council,1111/1001,Surplus or Deficit from Trading Undertak,TRADING,Supplies & Services,DAA,22/08/2014,05-10001,3855.24,W V Howe (Hardware) Ltd,,,,,,,,,,,
Nottinghamshire County Council,1111/1001,Surplus or Deficit from Trading Undertak,TRADING,Supplies & Services,DAA,21/08/2014,05-10001,4458.43,Sca Hygiene,,,,,,,,,,,
Nottinghamshire County Council,1111/1001,Surplus or Deficit from Trading Undertak,TRADING,Supplies & Services,DAA,21/08/2014,05-10001,4522.5,Sca Hygiene,,,,,,,,,,,
Nottinghamshire County Council,1111/1001,Surplus or Deficit from Trading Undertak,TRADING,Supplies & Services,DAA,21/08/2014,05-10001,1965.88,Sca Hygiene,,,,,,,,,,,
Nottinghamshire County Council,1111/1001,Surplus or Deficit from Trading Undertak,TRADING,Supplies & Services,DAA,18/08/2014,05-10001,517.8,R.A. Roberts (Office Equipmment) Ltd,,,,,,,,,,,
Nottinghamshire County Council,1111/1001,Surplus or Deficit from Trading Undertak,TRADING,Supplies & Services,DAA,18/08/2014,05-10001,801.42,Ransome Sporting Goods Group Ltd,,,,,,,,,,,
Nottinghamshire County Council,1111/1001,Surplus or Deficit from Trading Undertak,TRADING,Supplies & Services,DCA,21/08/2014,05-10001,1207.8,Freudenberg Household Products Lp,,,,,,,,,,,
Nottinghamshire County Council,1111/1001,Surplus or Deficit from Trading Undertak,TRADING,Supplies & Services,DCA,13/08/2014,05-10001,673.26,Shermond,,,,,,,,,,,
Nottinghamshire County Council,1111/1001,Surplus or Deficit from Trading Undertak,TRADING,Supplies & Services,DCA,14/08/2014,05-10001,1236.26,Shermond,,,,,,,,,,,
Nottinghamshire County Council,1111/1001,Surplus or Deficit from Trading Undertak,TRADING,Supplies & Services,DCA,20/08/2014,05-10001,500.15,Shermond,,,,,,,,,,,
Nottinghamshire County Council,1111/1001,Surplus or Deficit from Trading Undertak,TRADING,Supplies & Services,DCA,21/08/2014,05-10001,1454.3,Shermond,,,,,,,,,,,
Nottinghamshire County Council,1111/1001,Surplus or Deficit from Trading Undertak,TRADING,Supplies & Services,DKA,18/08/2014,05-10001,632.56,Bunzl Cleaning & Hygiene Supplies,,,,,,,,,,,
Nottinghamshire County Council,1111/1001,Surplus or Deficit from Trading Undertak,TRADING,Supplies & Services,DKA,18/08/2014,05-10001,2128.22,Bunzl Cleaning & Hygiene Supplies,,,,,,,,,,,
Nottinghamshire County Council,1111/1001,Surplus or Deficit from Trading Undertak,TRADING,Supplies & Services,DKA,20/08/2014,05-10001,962.7,Bunzl Cleaning & Hygiene Supplies,,,,,,,,,,,
Nottinghamshire County Council,1111/1001,Surplus or Deficit from Trading Undertak,TRADING,Supplies & Services,DKA,21/08/2014,05-10001,504.12,Bunzl Cleaning & Hygiene Supplies,,,,,,,,,,,
Nottinghamshire County Council,1111/1001,Surplus or Deficit from Trading Undertak,TRADING,Supplies & Services,DKA,28/08/2014,05-10001,1063,Bunzl Cleaning & Hygiene Supplies,,,,,,,,,,,
Nottinghamshire County Council,1111/1001,Surplus or Deficit from Trading Undertak,TRADING,Supplies & Services,DKA,28/08/2014,05-10001,613,Bunzl Cleaning & Hygiene Supplies,,,,,,,,,,,
Nottinghamshire County Council,1111/1001,Surplus or Deficit from Trading Undertak,TRADING,Supplies & Services,DAA,18/08/2014,05-10001,1033.55,R Scott & Sons Ltd,,,,,,,,,,,
Nottinghamshire County Council,1111/1001,Surplus or Deficit from Trading Undertak,TRADING,Supplies & Services,DAA,20/08/2014,05-10001,1060.16,R Scott & Sons Ltd,,,,,,,,,,,
Nottinghamshire County Council,1111/1001,Surplus or Deficit from Trading Undertak,TRADING,Supplies & Services,DAA,21/08/2014,05-10001,737.4,R Scott & Sons Ltd,,,,,,,,,,,
Nottinghamshire County Council,1111/1001,Surplus or Deficit from Trading Undertak,TRADING,Supplies & Services,DAA,18/08/2014,05-10001,940,Office Innovations,,,,,,,,,,,
Nottinghamshire County Council,1111/1001,Surplus or Deficit from Trading Undertak,TRADING,Supplies & Services,DAA,13/08/2014,05-10001,980.2,Principal Furniture,,,,,,,,,,,
Nottinghamshire County Council,1111/1001,Surplus or Deficit from Trading Undertak,TRADING,Supplies & Services,DAA,22/08/2014,05-10001,1810.9,Principal Furniture,,,,,,,,,,,
Nottinghamshire County Council,1111/1001,Surplus or Deficit from Trading Undertak,TRADING,Supplies & Services,DAA,20/08/2014,05-10001,520.16,Addis Housewares Ltd,,,,,,,,,,,
Nottinghamshire County Council,1111/1001,Surplus or Deficit from Trading Undertak,TRADING,Supplies & Services,DAA,22/08/2014,05-10001,687.8,Addis Housewares Ltd,,,,,,,,,,,
Nottinghamshire County Council,1111/1001,Surplus or Deficit from Trading Undertak,TRADING,Supplies & Services,DAA,13/08/2014,05-10001,572.63,Hille Education Products Ltd,,,,,,,,,,,
Nottinghamshire County Council,1111/1001,Surplus or Deficit from Trading Undertak,TRADING,Supplies & Services,DAA,21/08/2014,05-10001,889.6,Hille Education Products Ltd,,,,,,,,,,,
Nottinghamshire County Council,1111/1001,Surplus or Deficit from Trading Undertak,TRADING,Supplies & Services,DAA,21/08/2014,05-10001,1066.5,Hille Education Products Ltd,,,,,,,,,,,
Nottinghamshire County Council,1111/1001,Surplus or Deficit from Trading Undertak,TRADING,Supplies & Services,DAA,21/08/2014,05-10001,609.53,Gopak Ltd,,,,,,,,,,,
Nottinghamshire County Council,1111/1001,Surplus or Deficit from Trading Undertak,TRADING,Supplies & Services,DAA,21/08/2014,05-10001,591.14,Gratnells Ltd,,,,,,,,,,,
Nottinghamshire County Council,1111/1001,Surplus or Deficit from Trading Undertak,TRADING,Supplies & Services,DAA,28/08/2014,05-10001,534.16,Gratnells Ltd,,,,,,,,,,,
Nottinghamshire County Council,1111/1001,Surplus or Deficit from Trading Undertak,TRADING,Supplies & Services,DAA,21/08/2014,05-10001,1076.4,Metroplan Limited,,,,,,,,,,,
Nottinghamshire County Council,1111/1001,Surplus or Deficit from Trading Undertak,TRADING,Supplies & Services,DAA,21/08/2014,05-10001,953.4,Victoria Grant Ltd,,,,,,,,,,,
Nottinghamshire County Council,1111/1001,Surplus or Deficit from Trading Undertak,TRADING,Supplies & Services,DAA,22/08/2014,05-10001,775.54,Whitecroft Essentials Ltd,,,,,,,,,,,
Nottinghamshire County Council,1111/1001,Surplus or Deficit from Trading Undertak,TRADING,Supplies & Services,DAA,14/08/2014,05-10001,696.96,Kent County Supplies,,,,,,,,,,,
Nottinghamshire County Council,1111/1001,Surplus or Deficit from Trading Undertak,TRADING,Supplies & Services,DAA,14/08/2014,05-10001,2185.15,Kent County Supplies,,,,,,,,,,,
Nottinghamshire County Council,1111/1001,Surplus or Deficit from Trading Undertak,TRADING,Supplies & Services,DAA,14/08/2014,05-10001,1317.3,Kent County Supplies,,,,,,,,,,,
Nottinghamshire County Council,1111/1001,Surplus or Deficit from Trading Undertak,TRADING,Supplies & Services,DAA,18/08/2014,05-10001,2295.05,Grosvenor House Papers Ltd,,,,,,,,,,,
Nottinghamshire County Council,1111/1001,Surplus or Deficit from Trading Undertak,TRADING,Supplies & Services,DAA,21/08/2014,05-10001,769.75,Tiger Stationery Ltd,,,,,,,,,,,
Nottinghamshire County Council,1111/1001,Surplus or Deficit from Trading Undertak,TRADING,Supplies & Services,DAA,22/08/2014,05-10001,1176.94,Tiger Stationery Ltd,,,,,,,,,,,
Nottinghamshire County Council,1111/1001,Surplus or Deficit from Trading Undertak,TRADING,Supplies & Services,DAA,18/08/2014,05-10001,1274.4,West Design Products,,,,,,,,,,,
Nottinghamshire County Council,1111/1001,Surplus or Deficit from Trading Undertak,TRADING,Supplies & Services,DAA,20/08/2014,05-10001,786.4,Filalyra Gb Ltd,,,,,,,,,,,
Nottinghamshire County Council,1111/1001,Surplus or Deficit from Trading Undertak,TRADING,Supplies & Services,DAA,21/08/2014,05-10001,589.8,Filalyra Gb Ltd,,,,,,,,,,,
Nottinghamshire County Council,1111/1001,Surplus or Deficit from Trading Undertak,TRADING,Supplies & Services,DAA,21/08/2014,05-10001,786.4,Filalyra Gb Ltd,,,,,,,,,,,
Nottinghamshire County Council,1111/1001,Surplus or Deficit from Trading Undertak,TRADING,Supplies & Services,DAA,13/08/2014,05-10001,1005,Newell Rubbermaid,,,,,,,,,,,
Nottinghamshire County Council,1111/1001,Surplus or Deficit from Trading Undertak,TRADING,Supplies & Services,DAA,18/08/2014,05-10001,2299.8,Newell Rubbermaid,,,,,,,,,,,
Nottinghamshire County Council,1111/1001,Surplus or Deficit from Trading Undertak,TRADING,Supplies & Services,DAA,18/08/2014,05-10001,1206.21,Newell Rubbermaid,,,,,,,,,,,
Nottinghamshire County Council,1111/1001,Surplus or Deficit from Trading Undertak,TRADING,Supplies & Services,DAA,20/08/2014,05-10001,1420.5,Newell Rubbermaid,,,,,,,,,,,
Nottinghamshire County Council,1111/1001,Surplus or Deficit from Trading Undertak,TRADING,Supplies & Services,DAA,20/08/2014,05-10001,4037.16,Newell Rubbermaid,,,,,,,,,,,
Nottinghamshire County Council,1111/1001,Surplus or Deficit from Trading Undertak,TRADING,Supplies & Services,DAA,20/08/2014,05-10001,1206,Newell Rubbermaid,,,,,,,,,,,
Nottinghamshire County Council,1111/1001,Surplus or Deficit from Trading Undertak,TRADING,Supplies & Services,DAA,20/08/2014,05-10001,1005,Newell Rubbermaid,,,,,,,,,,,
Nottinghamshire County Council,1111/1001,Surplus or Deficit from Trading Undertak,TRADING,Supplies & Services,DAA,20/08/2014,05-10001,2244,Newell Rubbermaid,,,,,,,,,,,
Nottinghamshire County Council,1111/1001,Surplus or Deficit from Trading Undertak,TRADING,Supplies & Services,DAA,20/08/2014,05-10001,816.6,Newell Rubbermaid,,,,,,,,,,,
Nottinghamshire County Council,1111/1001,Surplus or Deficit from Trading Undertak,TRADING,Supplies & Services,DAA,21/08/2014,05-10001,3440.8,Newell Rubbermaid,,,,,,,,,,,
Nottinghamshire County Council,1111/1001,Surplus or Deficit from Trading Undertak,TRADING,Supplies & Services,DAA,14/08/2014,05-10001,793.36,Acco-Rexel Ltd,,,,,,,,,,,
Nottinghamshire County Council,1111/1001,Surplus or Deficit from Trading Undertak,TRADING,Supplies & Services,DAA,18/08/2014,05-10001,1074.3,Acco-Rexel Ltd,,,,,,,,,,,
Nottinghamshire County Council,1111/1001,Surplus or Deficit from Trading Undertak,TRADING,Supplies & Services,DAA,18/08/2014,05-10001,531.6,Acco-Rexel Ltd,,,,,,,,,,,
Nottinghamshire County Council,1111/1001,Surplus or Deficit from Trading Undertak,TRADING,Supplies & Services,DAA,14/08/2014,05-10001,533.28,R.H.Ritchings Ltd,,,,,,,,,,,
Nottinghamshire County Council,1111/1001,Surplus or Deficit from Trading Undertak,TRADING,Supplies & Services,DAA,14/08/2014,05-10001,1166.55,R.H.Ritchings Ltd,,,,,,,,,,,
Nottinghamshire County Council,1111/1001,Surplus or Deficit from Trading Undertak,TRADING,Supplies & Services,DAA,20/08/2014,05-10001,596.24,R.H.Ritchings Ltd,,,,,,,,,,,
Nottinghamshire County Council,1111/1001,Surplus or Deficit from Trading Undertak,TRADING,Supplies & Services,DAA,21/08/2014,05-10001,528.6,R.H.Ritchings Ltd,,,,,,,,,,,
Nottinghamshire County Council,1111/1001,Surplus or Deficit from Trading Undertak,TRADING,Supplies & Services,DAA,28/08/2014,05-10001,3730.44,R.H.Ritchings Ltd,,,,,,,,,,,
Nottinghamshire County Council,1111/1001,Surplus or Deficit from Trading Undertak,TRADING,Supplies & Services,DAA,28/08/2014,05-10001,729.62,R.H.Ritchings Ltd,,,,,,,,,,,
Nottinghamshire County Council,1111/1001,Surplus or Deficit from Trading Undertak,TRADING,Supplies & Services,DAA,22/08/2014,05-10001,685.24,Scolaquip Ltd,,,,,,,,,,,
Nottinghamshire County Council,1111/1001,Surplus or Deficit from Trading Undertak,TRADING,Supplies & Services,DAA,13/08/2014,05-10001,1194.88,Staedtler (Uk) Ltd,,,,,,,,,,,
Nottinghamshire County Council,1111/1001,Surplus or Deficit from Trading Undertak,TRADING,Supplies & Services,DAA,13/08/2014,05-10001,2146,Staedtler (Uk) Ltd,,,,,,,,,,,
Nottinghamshire County Council,1111/1001,Surplus or Deficit from Trading Undertak,TRADING,Supplies & Services,DAA,14/08/2014,05-10001,840.45,Staedtler (Uk) Ltd,,,,,,,,,,,
Nottinghamshire County Council,1111/1001,Surplus or Deficit from Trading Undertak,TRADING,Supplies & Services,DAA,18/08/2014,05-10001,1463.66,Staedtler (Uk) Ltd,,,,,,,,,,,
Nottinghamshire County Council,1111/1001,Surplus or Deficit from Trading Undertak,TRADING,Supplies & Services,DAA,14/08/2014,05-10001,665.38,Bic U.K. Ltd,,,,,,,,,,,
Nottinghamshire County Council,1111/1001,Surplus or Deficit from Trading Undertak,TRADING,Supplies & Services,DAA,18/08/2014,05-10001,881.64,Rapesco Office Products Plc,,,,,,,,,,,
Nottinghamshire County Council,1111/1001,Surplus or Deficit from Trading Undertak,TRADING,Supplies & Services,DAA,21/08/2014,05-10001,4080.41,Allen Glenold Ltd,,,,,,,,,,,
Nottinghamshire County Council,1111/1001,Surplus or Deficit from Trading Undertak,TRADING,Supplies & Services,DAA,21/08/2014,05-10001,1166.9,Allen Glenold Ltd,,,,,,,,,,,
Nottinghamshire County Council,1111/1001,Surplus or Deficit from Trading Undertak,TRADING,Supplies & Services,DAA,21/08/2014,05-10001,2804.6,Higher Kings Mill Ltd,,,,,,,,,,,
Nottinghamshire County Council,1111/1001,Surplus or Deficit from Trading Undertak,TRADING,Supplies & Services,DAA,18/08/2014,05-10001,3935.56,Slater Harrison & Co Ltd,,,,,,,,,,,
Nottinghamshire County Council,1111/1001,Surplus or Deficit from Trading Undertak,TRADING,Supplies & Services,DAA,18/08/2014,05-10001,2754.84,Slater Harrison & Co Ltd,,,,,,,,,,,
Nottinghamshire County Council,1111/1001,Surplus or Deficit from Trading Undertak,TRADING,Supplies & Services,DAA,18/08/2014,05-10001,2126.3,Slater Harrison & Co Ltd,,,,,,,,,,,
Nottinghamshire County Council,1111/1001,Surplus or Deficit from Trading Undertak,TRADING,Supplies & Services,DAA,18/08/2014,05-10001,2871.45,Slater Harrison & Co Ltd,,,,,,,,,,,
Nottinghamshire County Council,1111/1001,Surplus or Deficit from Trading Undertak,TRADING,Supplies & Services,DAA,22/08/2014,05-10001,813.12,Slater Harrison & Co Ltd,,,,,,,,,,,
Nottinghamshire County Council,1111/1001,Surplus or Deficit from Trading Undertak,TRADING,Supplies & Services,DAA,22/08/2014,05-10001,1567.46,Slater Harrison & Co Ltd,,,,,,,,,,,
Nottinghamshire County Council,1111/1001,Surplus or Deficit from Trading Undertak,TRADING,Supplies & Services,DAA,20/08/2014,05-10001,551.12,E V Naish Ltd,,,,,,,,,,,
Nottinghamshire County Council,1111/1001,Surplus or Deficit from Trading Undertak,TRADING,Supplies & Services,DAA,20/08/2014,05-10001,2748.72,Creativity International Ltd,,,,,,,,,,,
Nottinghamshire County Council,1111/1001,Surplus or Deficit from Trading Undertak,TRADING,Supplies & Services,DAA,21/08/2014,05-10001,1129.2,Creativity International Ltd,,,,,,,,,,,
Nottinghamshire County Council,1111/1001,Surplus or Deficit from Trading Undertak,TRADING,Supplies & Services,DAA,21/08/2014,05-10001,918.18,Creativity International Ltd,,,,,,,,,,,
Nottinghamshire County Council,1111/1001,Surplus or Deficit from Trading Undertak,TRADING,Supplies & Services,DAA,21/08/2014,05-10001,641.44,Creativity International Ltd,,,,,,,,,,,
Nottinghamshire County Council,1111/1001,Surplus or Deficit from Trading Undertak,TRADING,Supplies & Services,DAA,21/08/2014,05-10001,744.57,Creativity International Ltd,,,,,,,,,,,
Nottinghamshire County Council,1111/1001,Surplus or Deficit from Trading Undertak,TRADING,Supplies & Services,DAA,21/08/2014,05-10001,627.97,Creativity International Ltd,,,,,,,,,,,
Nottinghamshire County Council,1111/1001,Surplus or Deficit from Trading Undertak,TRADING,Supplies & Services,DAA,21/08/2014,05-10001,788.23,Creativity International Ltd,,,,,,,,,,,
Nottinghamshire County Council,1111/1001,Surplus or Deficit from Trading Undertak,TRADING,Supplies & Services,DAA,21/08/2014,05-10001,671.55,Creativity International Ltd,,,,,,,,,,,
Nottinghamshire County Council,1111/1001,Surplus or Deficit from Trading Undertak,TRADING,Supplies & Services,DAA,18/08/2014,05-10001,637.72,Primo Play Ltd,,,,,,,,,,,
Nottinghamshire County Council,1111/1001,Surplus or Deficit from Trading Undertak,TRADING,Supplies & Services,DAA,22/08/2014,05-10001,2085.3,Proctor Paper & Board Ltd,,,,,,,,,,,
Nottinghamshire County Council,1111/1001,Surplus or Deficit from Trading Undertak,TRADING,Supplies & Services,DAA,14/08/2014,05-10001,2299.72,Eastpoint,,,,,,,,,,,
Nottinghamshire County Council,1111/1001,Surplus or Deficit from Trading Undertak,TRADING,Supplies & Services,DAA,14/08/2014,05-10001,4482.96,Eastpoint,,,,,,,,,,,
Nottinghamshire County Council,1111/1001,Surplus or Deficit from Trading Undertak,TRADING,Supplies & Services,DAA,20/08/2014,05-10001,931.06,Eastpoint,,,,,,,,,,,
Nottinghamshire County Council,1111/1001,Surplus or Deficit from Trading Undertak,TRADING,Supplies & Services,DAA,20/08/2014,05-10001,657.49,Eastpoint,,,,,,,,,,,
Nottinghamshire County Council,1111/1001,Surplus or Deficit from Trading Undertak,TRADING,Supplies & Services,DAA,20/08/2014,05-10001,3439.44,Eastpoint,,,,,,,,,,,
Nottinghamshire County Council,1111/1001,Surplus or Deficit from Trading Undertak,TRADING,Supplies & Services,DAA,20/08/2014,05-10001,573.24,Eastpoint,,,,,,,,,,,
Nottinghamshire County Council,1111/1001,Surplus or Deficit from Trading Undertak,TRADING,Supplies & Services,DAA,21/08/2014,05-10001,2346.13,Eastpoint,,,,,,,,,,,
Nottinghamshire County Council,1111/1001,Surplus or Deficit from Trading Undertak,TRADING,Supplies & Services,DAA,29/08/2014,05-10001,1183.98,Eastpoint,,,,,,,,,,,
Nottinghamshire County Council,1111/1001,Surplus or Deficit from Trading Undertak,TRADING,Supplies & Services,DAA,14/08/2014,05-10001,1103.74,Brian Clegg (Educational Products) Ltd,,,,,,,,,,,
Nottinghamshire County Council,1111/1001,Surplus or Deficit from Trading Undertak,TRADING,Supplies & Services,DAA,18/08/2014,05-10001,744.58,Brian Clegg (Educational Products) Ltd,,,,,,,,,,,
Nottinghamshire County Council,1111/1001,Surplus or Deficit from Trading Undertak,TRADING,Supplies & Services,DAA,21/08/2014,05-10001,822.52,Brian Clegg (Educational Products) Ltd,,,,,,,,,,,
Nottinghamshire County Council,1111/1001,Surplus or Deficit from Trading Undertak,TRADING,Supplies & Services,DAA,21/08/2014,05-10001,509.18,Brian Clegg (Educational Products) Ltd,,,,,,,,,,,
Nottinghamshire County Council,1111/1001,Surplus or Deficit from Trading Undertak,TRADING,Supplies & Services,DAA,21/08/2014,05-10001,719.84,Brian Clegg (Educational Products) Ltd,,,,,,,,,,,
Nottinghamshire County Council,1111/1001,Surplus or Deficit from Trading Undertak,TRADING,Supplies & Services,DAA,28/08/2014,05-10001,600.65,Commotion Technology Supplies,,,,,,,,,,,
Nottinghamshire County Council,1111/1001,Surplus or Deficit from Trading Undertak,TRADING,Supplies & Services,DAA,13/08/2014,05-10001,835.7,Profile Education Ltd,,,,,,,,,,,
Nottinghamshire County Council,1111/1001,Surplus or Deficit from Trading Undertak,TRADING,Supplies & Services,DAA,18/08/2014,05-10001,768.88,Profile Education Ltd,,,,,,,,,,,
Nottinghamshire County Council,1111/1001,Surplus or Deficit from Trading Undertak,TRADING,Supplies & Services,DAA,28/08/2014,05-10001,665.95,Profile Education Ltd,,,,,,,,,,,
Nottinghamshire County Council,1111/1001,Surplus or Deficit from Trading Undertak,TRADING,Supplies & Services,DAA,13/08/2014,05-10001,527.34,Monarch Computer Furniture,,,,,,,,,,,
Nottinghamshire County Council,1111/1001,Surplus or Deficit from Trading Undertak,TRADING,Supplies & Services,DAA,13/08/2014,05-10001,5112.87,Monarch Computer Furniture,,,,,,,,,,,
Nottinghamshire County Council,1111/1001,Surplus or Deficit from Trading Undertak,TRADING,Supplies & Services,DAA,13/08/2014,05-10001,752.7,Monarch Computer Furniture,,,,,,,,,,,
Nottinghamshire County Council,1111/1001,Surplus or Deficit from Trading Undertak,TRADING,Supplies & Services,DAA,22/08/2014,05-10001,821.12,Monarch Computer Furniture,,,,,,,,,,,
Nottinghamshire County Council,1111/1001,Surplus or Deficit from Trading Undertak,TRADING,Supplies & Services,DAA,22/08/2014,05-10001,1464.24,Monarch Computer Furniture,,,,,,,,,,,
Nottinghamshire County Council,1111/1001,Surplus or Deficit from Trading Undertak,TRADING,Supplies & Services,DAA,29/08/2014,05-10001,837.83,Monarch Computer Furniture,,,,,,,,,,,
Nottinghamshire County Council,1111/1001,Surplus or Deficit from Trading Undertak,TRADING,Supplies & Services,DAA,29/08/2014,05-10001,811.98,Monarch Computer Furniture,,,,,,,,,,,
Nottinghamshire County Council,1111/1001,Surplus or Deficit from Trading Undertak,TRADING,Supplies & Services,DAA,18/08/2014,05-10001,531.72,Artstraws,,,,,,,,,,,
Nottinghamshire County Council,1111/1001,Surplus or Deficit from Trading Undertak,TRADING,Employee Related,AAA,15/08/2014,05-10001,899.1,Frontline Recruitment Ltd,,,,,,,,,,,
Nottinghamshire County Council,1111/1001,Surplus or Deficit from Trading Undertak,TRADING,Employee Related,AAA,28/08/2014,05-10001,718.23,Frontline Recruitment Ltd,,,,,,,,,,,
Nottinghamshire County Council,1111/1001,Surplus or Deficit from Trading Undertak,TRADING,Supplies & Services,DAA,07/08/2014,05-10001,803.9,Commotion Technology Supplies,,,,,,,,,,,
Nottinghamshire County Council,1111/1001,Surplus or Deficit from Trading Undertak,TRADING,Supplies & Services,DAA,07/08/2014,05-10001,780.82,Monarch Computer Furniture,,,,,,,,,,,
Nottinghamshire County Council,1111/1001,Surplus or Deficit from Trading Undertak,TRADING,Supplies & Services,DAA,07/08/2014,05-10001,1375,Monarch Computer Furniture,,,,,,,,,,,
Nottinghamshire County Council,1111/1001,Children and Young People,CYP,Premises Related,BDA,04/08/2014,05-10002,5473.85,Making It! Enterprises Ltd,,,,,,,,,,,
Nottinghamshire County Council,1111/1001,Children and Young People,CYP,Premises Related,BDA,04/08/2014,05-10003,1099.99,Nottingham City Council,,,,,,,,,,,
Nottinghamshire County Council,1111/1001,Children and Young People,CYP,Premises Related,BDA,04/08/2014,05-10004,589,Lambert Smith Hampton,,,,,,,,,,,
Nottinghamshire County Council,1111/1001,Children and Young People,CYP,Premises Related,BDA,04/08/2014,05-10005,4452.15,Making It! Enterprises Ltd,,,,,,,,,,,
Nottinghamshire County Council,1111/1001,Children and Young People,CYP,Premises Related,BDA,04/08/2014,05-10006,518,Derbyshire Dales District Council,,,,,,,,,,,
Nottinghamshire County Council,1111/1001,Children and Young People,CYP,Premises Related,BDA,06/08/2014,05-16432,1798.45,Lindley Educational Trust Ltd,,,,,,,,,,,
Nottinghamshire County Council,1111/1001,Children and Young People,CYP,Premises Related,BDA,08/08/2014,05-16404,1526,Early Excellence,,,,,,,,,,,
Nottinghamshire County Council,1111/1001,Children and Young People,CYP,Premises Related,BDA,08/08/2014,05-16440,1036,Nottingham City Council,,,,,,,,,,,
Nottinghamshire County Council,1111/1001,Children and Young People,CYP,Premises Related,BDA,12/08/2014,05-10007,3430.16,Making It! Enterprises Ltd,,,,,,,,,,,
Nottinghamshire County Council,1111/1001,Children and Young People,CYP,Premises Related,BEA,24/08/2014,05-15127,1350.51,Broxtowe Borough Council,,,,,,,,,,,
Nottinghamshire County Council,1111/1001,Children and Young People,CYP,Transport Related,CCA,04/08/2014,05-10126,1026.63,Mars Cars Ltd,,,,,,,,,,,
Nottinghamshire County Council,1111/1001,Children and Young People,CYP,Transport Related,CCA,04/08/2014,05-10127,2331.36,Martins Travel,,,,,,,,,,,
Nottinghamshire County Council,1111/1001,Children and Young People,CYP,Transport Related,CCA,04/08/2014,05-10128,895.9,CBC Taxis Ltd,,,,,,,,,,,
Nottinghamshire County Council,1111/1001,Children and Young People,CYP,Transport Related,CCA,04/08/2014,05-10129,744.6,CBC Taxis Ltd,,,,,,,,,,,
Nottinghamshire County Council,1111/1001,Children and Young People,CYP,Transport Related,CCA,04/08/2014,05-10131,1188.64,CBC Taxis Ltd,,,,,,,,,,,
Nottinghamshire County Council,1111/1001,Children and Young People,CYP,Transport Related,CCA,04/08/2014,05-10132,1810.84,Arrow Specialised Transport Ltd,,,,,,,,,,,
Nottinghamshire County Council,1111/1001,Children and Young People,CYP,Transport Related,CCA,04/08/2014,05-10133,1677.9,Arrow Specialised Transport Ltd,,,,,,,,,,,
Nottinghamshire County Council,1111/1001,Children and Young People,CYP,Transport Related,CCA,04/08/2014,05-10134,2881.03,Arrow Specialised Transport Ltd,,,,,,,,,,,
Nottinghamshire County Council,1111/1001,Children and Young People,CYP,Transport Related,CCA,04/08/2014,05-10136,1969.45,Arrow Specialised Transport Ltd,,,,,,,,,,,
Nottinghamshire County Council,1111/1001,Children and Young People,CYP,Transport Related,CCA,04/08/2014,05-10137,1454.82,Arrow Specialised Transport Ltd,,,,,,,,,,,
Nottinghamshire County Council,1111/1001,Children and Young People,CYP,Transport Related,CCA,04/08/2014,05-10138,2344.89,Arrow Specialised Transport Ltd,,,,,,,,,,,
Nottinghamshire County Council,1111/1001,Children and Young People,CYP,Transport Related,CCA,04/08/2014,05-10139,1339.8,Arrow Specialised Transport Ltd,,,,,,,,,,,
Nottinghamshire County Council,1111/1001,Children and Young People,CYP,Transport Related,CCA,04/08/2014,05-10140,1991.04,Arrow Specialised Transport Ltd,,,,,,,,,,,
Nottinghamshire County Council,1111/1001,Children and Young People,CYP,Transport Related,CCA,04/08/2014,05-10141,1508,Arrow Specialised Transport Ltd,,,,,,,,,,,
Nottinghamshire County Council,1111/1001,Children and Young People,CYP,Transport Related,CCA,04/08/2014,05-10142,2803.81,Arrow Specialised Transport Ltd,,,,,,,,,,,
Nottinghamshire County Council,1111/1001,Children and Young People,CYP,Transport Related,CCA,04/08/2014,05-10143,2431,Arrow Specialised Transport Ltd,,,,,,,,,,,
Nottinghamshire County Council,1111/1001,Children and Young People,CYP,Transport Related,CCA,04/08/2014,05-10144,798.52,Arrow Specialised Transport Ltd,,,,,,,,,,,
Nottinghamshire County Council,1111/1001,Children and Young People,CYP,Transport Related,CCA,04/08/2014,05-10145,1745,Arrow Specialised Transport Ltd,,,,,,,,,,,
Nottinghamshire County Council,1111/1001,Children and Young People,CYP,Transport Related,CCA,04/08/2014,05-10146,2592.36,Arrow Specialised Transport Ltd,,,,,,,,,,,
Nottinghamshire County Council,1111/1001,Children and Young People,CYP,Transport Related,CCA,04/08/2014,05-10147,974.98,Arrow Specialised Transport Ltd,,,,,,,,,,,
Nottinghamshire County Council,1111/1001,Children and Young People,CYP,Transport Related,CCA,04/08/2014,05-10148,1402.68,Arrow Specialised Transport Ltd,,,,,,,,,,,
Nottinghamshire County Council,1111/1001,Children and Young People,CYP,Transport Related,CCA,04/08/2014,05-10149,1389.56,Arrow Specialised Transport Ltd,,,,,,,,,,,
Nottinghamshire County Council,1111/1001,Children and Young People,CYP,Transport Related,CCA,04/08/2014,05-10150,1820.7,Arrow Specialised Transport Ltd,,,,,,,,,,,
Nottinghamshire County Council,1111/1001,Children and Young People,CYP,Transport Related,CCA,04/08/2014,05-10151,1601.66,Arrow Specialised Transport Ltd,,,,,,,,,,,
Nottinghamshire County Council,1111/1001,Children and Young People,CYP,Transport Related,CCA,04/08/2014,05-10152,1996.64,Arrow Specialised Transport Ltd,,,,,,,,,,,
Nottinghamshire County Council,1111/1001,Children and Young People,CYP,Transport Related,CCA,04/08/2014,05-10153,2029.39,Arrow Specialised Transport Ltd,,,,,,,,,,,
Nottinghamshire County Council,1111/1001,Children and Young People,CYP,Transport Related,CCA,04/08/2014,05-10154,1684.93,Arrow Specialised Transport Ltd,,,,,,,,,,,
Nottinghamshire County Council,1111/1001,Children and Young People,CYP,Transport Related,CCA,04/08/2014,05-10155,1849.87,Arrow Specialised Transport Ltd,,,,,,,,,,,
Nottinghamshire County Council,1111/1001,Children and Young People,CYP,Transport Related,CCA,04/08/2014,05-10156,1731.27,Arrow Specialised Transport Ltd,,,,,,,,,,,
Nottinghamshire County Council,1111/1001,Children and Young People,CYP,Transport Related,CCA,04/08/2014,05-10157,1976.74,Arrow Specialised Transport Ltd,,,,,,,,,,,
Nottinghamshire County Council,1111/1001,Children and Young People,CYP,Transport Related,CCA,04/08/2014,05-10158,1954.46,Arrow Specialised Transport Ltd,,,,,,,,,,,
Nottinghamshire County Council,1111/1001,Children and Young People,CYP,Transport Related,CCA,04/08/2014,05-10159,1687.04,Arrow Specialised Transport Ltd,,,,,,,,,,,
Nottinghamshire County Council,1111/1001,Children and Young People,CYP,Transport Related,CCA,04/08/2014,05-10172,309.06,Fozcabs Newark Taxis,,,,,,,,,,,
Nottinghamshire County Council,1111/1001,Children and Young People,CYP,Transport Related,CCA,04/08/2014,05-10175,1277.22,Fozcabs Newark Taxis,,,,,,,,,,,
Nottinghamshire County Council,1111/1001,Children and Young People,CYP,Transport Related,CCA,04/08/2014,05-10176,1367.4,Fozcabs Newark Taxis,,,,,,,,,,,
Nottinghamshire County Council,1111/1001,Children and Young People,CYP,Transport Related,CCA,04/08/2014,05-10177,1264.29,Fozcabs Newark Taxis,,,,,,,,,,,
Nottinghamshire County Council,1111/1001,Children and Young People,CYP,Transport Related,CCA,04/08/2014,05-10178,1397.4,Fozcabs Newark Taxis,,,,,,,,,,,
Nottinghamshire County Council,1111/1001,Children and Young People,CYP,Transport Related,CCA,04/08/2014,05-10179,401.77,Fozcabs Newark Taxis,,,,,,,,,,,
Nottinghamshire County Council,1111/1001,Children and Young People,CYP,Transport Related,CCA,04/08/2014,05-10184,884,Oasis Taxis Mansfield Ltd,,,,,,,,,,,
Nottinghamshire County Council,1111/1001,Children and Young People,CYP,Transport Related,CCA,04/08/2014,05-10185,1088,Oasis Taxis Mansfield Ltd,,,,,,,,,,,
Nottinghamshire County Council,1111/1001,Children and Young People,CYP,Transport Related,CCA,04/08/2014,05-10186,2279.34,Oasis Taxis Mansfield Ltd,,,,,,,,,,,
Nottinghamshire County Council,1111/1001,Children and Young People,CYP,Transport Related,CCA,04/08/2014,05-10187,1248.48,Oasis Taxis Mansfield Ltd,,,,,,,,,,,
Nottinghamshire County Council,1111/1001,Children and Young People,CYP,Transport Related,CCA,04/08/2014,05-10200,501.65,AOT Coaches,,,,,,,,,,,
Nottinghamshire County Council,1111/1001,Children and Young People,CYP,Transport Related,CCA,04/08/2014,05-10201,1485,AOT Coaches,,,,,,,,,,,
Nottinghamshire County Council,1111/1001,Children and Young People,CYP,Transport Related,CCA,04/08/2014,05-10202,1278,AOT Coaches,,,,,,,,,,,
Nottinghamshire County Council,1111/1001,Children and Young People,CYP,Transport Related,CCA,04/08/2014,05-10203,600,AOT Coaches,,,,,,,,,,,
Nottinghamshire County Council,1111/1001,Children and Young People,CYP,Transport Related,CCA,04/08/2014,05-10205,930,Silverdale Tours Nottm Ltd,,,,,,,,,,,
Nottinghamshire County Council,1111/1001,Children and Young People,CYP,Transport Related,CCA,04/08/2014,05-10206,1050,Silverdale Tours Nottm Ltd,,,,,,,,,,,
Nottinghamshire County Council,1111/1001,Children and Young People,CYP,Transport Related,CCA,04/08/2014,05-10209,2113.12,Rio Cabs,,,,,,,,,,,
Nottinghamshire County Council,1111/1001,Children and Young People,CYP,Transport Related,CCA,04/08/2014,05-10210,971.52,Rio Cabs,,,,,,,,,,,
Nottinghamshire County Council,1111/1001,Children and Young People,CYP,Transport Related,CCA,04/08/2014,05-10217,1442.2,Ace Cars,,,,,,,,,,,
Nottinghamshire County Council,1111/1001,Children and Young People,CYP,Transport Related,CCA,04/08/2014,05-10218,1225.87,Ace Cars,,,,,,,,,,,
Nottinghamshire County Council,1111/1001,Children and Young People,CYP,Transport Related,CCA,06/08/2014,05-10577,646.25,Laffran Plant Hire,,,,,,,,,,,
Nottinghamshire County Council,1111/1001,Children and Young People,CYP,Transport Related,CCA,06/08/2014,05-10589,1404,Sharpes Of Nottingham,,,,,,,,,,,
Nottinghamshire County Council,1111/1001,Children and Young People,CYP,Transport Related,CCA,06/08/2014,05-10590,960,Sharpes Of Nottingham,,,,,,,,,,,
Nottinghamshire County Council,1111/1001,Children and Young People,CYP,Transport Related,CCA,06/08/2014,05-10599,10010,Sharpes Of Nottingham,,,,,,,,,,,
Nottinghamshire County Council,1111/1001,Children and Young People,CYP,Transport Related,CCA,06/08/2014,05-10600,2625,Johnson Bros Tours Ltd,,,,,,,,,,,
Nottinghamshire County Council,1111/1001,Children and Young People,CYP,Transport Related,CCA,06/08/2014,05-10601,2250,Johnson Bros Tours Ltd,,,,,,,,,,,
Nottinghamshire County Council,1111/1001,Children and Young People,CYP,Transport Related,CCA,06/08/2014,05-10611,3160.8,Redfern Travel,,,,,,,,,,,
Nottinghamshire County Council,1111/1001,Children and Young People,CYP,Transport Related,CCA,06/08/2014,05-10612,1750,Redfern Travel,,,,,,,,,,,
Nottinghamshire County Council,1111/1001,Children and Young People,CYP,Transport Related,CCA,06/08/2014,05-10613,1024.59,CBC Taxis Ltd,,,,,,,,,,,
Nottinghamshire County Council,1111/1001,Children and Young People,CYP,Transport Related,CCA,06/08/2014,05-10614,525.28,CBC Taxis Ltd,,,,,,,,,,,
Nottinghamshire County Council,1111/1001,Children and Young People,CYP,Transport Related,CCA,06/08/2014,05-10615,2587.06,CBC Taxis Ltd,,,,,,,,,,,
Nottinghamshire County Council,1111/1001,Children and Young People,CYP,Transport Related,CCA,06/08/2014,05-10622,517.19,Ace Of Mansfield Ltd,,,,,,,,,,,
Nottinghamshire County Council,1111/1001,Children and Young People,CYP,Transport Related,CCA,06/08/2014,05-10627,1764.16,Erewash Community Transport,,,,,,,,,,,
Nottinghamshire County Council,1111/1001,Children and Young People,CYP,Transport Related,CCA,06/08/2014,05-10628,2834.92,Erewash Community Transport,,,,,,,,,,,
Nottinghamshire County Council,1111/1001,Children and Young People,CYP,Transport Related,CCA,06/08/2014,05-10629,774.35,Erewash Community Transport,,,,,,,,,,,
Nottinghamshire County Council,1111/1001,Children and Young People,CYP,Transport Related,CCA,06/08/2014,05-10631,1783.13,Erewash Community Transport,,,,,,,,,,,
Nottinghamshire County Council,1111/1001,Children and Young People,CYP,Transport Related,CCA,06/08/2014,05-10632,1973.36,Erewash Community Transport,,,,,,,,,,,
Nottinghamshire County Council,1111/1001,Children and Young People,CYP,Transport Related,CCA,06/08/2014,05-10633,1040.4,Galaxy Cabs,,,,,,,,,,,
Nottinghamshire County Council,1111/1001,Children and Young People,CYP,Transport Related,CCA,06/08/2014,05-10635,1667.26,Headland Taxi Services,,,,,,,,,,,
Nottinghamshire County Council,1111/1001,Children and Young People,CYP,Transport Related,CCA,06/08/2014,05-10636,1467.13,Headland Taxi Services,,,,,,,,,,,
Nottinghamshire County Council,1111/1001,Children and Young People,CYP,Transport Related,CCA,06/08/2014,05-10637,1046.22,Horizon Travel,,,,,,,,,,,
Nottinghamshire County Council,1111/1001,Children and Young People,CYP,Transport Related,CCA,06/08/2014,05-10638,2113.44,Horizon Travel,,,,,,,,,,,
Nottinghamshire County Council,1111/1001,Children and Young People,CYP,Transport Related,CCA,06/08/2014,05-10640,2210,Shelleys Taxis Ltd,,,,,,,,,,,
Nottinghamshire County Council,1111/1001,Children and Young People,CYP,Transport Related,CCA,06/08/2014,05-10641,935,Shelleys Taxis Ltd,,,,,,,,,,,
Nottinghamshire County Council,1111/1001,Children and Young People,CYP,Transport Related,CCA,06/08/2014,05-10642,582.75,Shelleys Taxis Ltd,,,,,,,,,,,
Nottinghamshire County Council,1111/1001,Children and Young People,CYP,Transport Related,CCA,06/08/2014,05-10643,1440,Shelleys Taxis Ltd,,,,,,,,,,,
Nottinghamshire County Council,1111/1001,Children and Young People,CYP,Transport Related,CCA,06/08/2014,05-10644,1020,Shelleys Taxis Ltd,,,,,,,,,,,
Nottinghamshire County Council,1111/1001,Children and Young People,CYP,Transport Related,CCA,06/08/2014,05-10655,1016,Jb Tours Watnall Ltd,,,,,,,,,,,
Nottinghamshire County Council,1111/1001,Children and Young People,CYP,Transport Related,CCA,06/08/2014,05-10656,590,Jb Tours Watnall Ltd,,,,,,,,,,,
Nottinghamshire County Council,1111/1001,Children and Young People,CYP,Transport Related,CCA,06/08/2014,05-10665,1223.81,Town Cars (UK) Ltd,,,,,,,,,,,
Nottinghamshire County Council,1111/1001,Children and Young People,CYP,Transport Related,CCA,06/08/2014,05-10666,1317.6,Town Cars (UK) Ltd,,,,,,,,,,,
Nottinghamshire County Council,1111/1001,Children and Young People,CYP,Transport Related,CCA,06/08/2014,05-10673,628.2,Diamond Cars,,,,,,,,,,,
Nottinghamshire County Council,1111/1001,Children and Young People,CYP,Transport Related,CCA,11/08/2014,05-11028,1054.35,6 Five 2s,,,,,,,,,,,
Nottinghamshire County Council,1111/1001,Children and Young People,CYP,Transport Related,CCA,11/08/2014,05-11029,1287.75,6 Five 2s,,,,,,,,,,,
Nottinghamshire County Council,1111/1001,Children and Young People,CYP,Transport Related,CCA,11/08/2014,05-11030,1473.9,Central Cars Nottm Ltd,,,,,,,,,,,
Nottinghamshire County Council,1111/1001,Children and Young People,CYP,Transport Related,CCA,11/08/2014,05-11031,1920.42,Central Cars Nottm Ltd,,,,,,,,,,,
Nottinghamshire County Council,1111/1001,Children and Young People,CYP,Transport Related,CCA,11/08/2014,05-11032,780.3,Central Cars Nottm Ltd,,,,,,,,,,,
Nottinghamshire County Council,1111/1001,Children and Young People,CYP,Transport Related,CCA,11/08/2014,05-11033,800,Central Cars Nottm Ltd,,,,,,,,,,,
Nottinghamshire County Council,1111/1001,Children and Young People,CYP,Transport Related,CCA,11/08/2014,05-11034,1836,Central Cars Nottm Ltd,,,,,,,,,,,
Nottinghamshire County Council,1111/1001,Children and Young People,CYP,Transport Related,CCA,11/08/2014,05-11036,1645.43,Central Cars Nottm Ltd,,,,,,,,,,,
Nottinghamshire County Council,1111/1001,Children and Young People,CYP,Transport Related,CCA,11/08/2014,05-11037,1851.98,Central Cars Nottm Ltd,,,,,,,,,,,
Nottinghamshire County Council,1111/1001,Children and Young People,CYP,Transport Related,CCA,11/08/2014,05-11038,1462.63,Central Cars Nottm Ltd,,,,,,,,,,,
Nottinghamshire County Council,1111/1001,Children and Young People,CYP,Transport Related,CCA,11/08/2014,05-11045,1811.52,D G Private Hire Ltd,,,,,,,,,,,
Nottinghamshire County Council,1111/1001,Children and Young People,CYP,Transport Related,CCA,11/08/2014,05-11046,1050.77,D G Private Hire Ltd,,,,,,,,,,,
Nottinghamshire County Council,1111/1001,Children and Young People,CYP,Transport Related,CCA,11/08/2014,05-11047,4941.9,D G Private Hire Ltd,,,,,,,,,,,
Nottinghamshire County Council,1111/1001,Children and Young People,CYP,Transport Related,CCA,11/08/2014,05-11048,2098.14,D G Private Hire Ltd,,,,,,,,,,,
Nottinghamshire County Council,1111/1001,Children and Young People,CYP,Transport Related,CCA,11/08/2014,05-11049,2446.82,D G Private Hire Ltd,,,,,,,,,,,
Nottinghamshire County Council,1111/1001,Children and Young People,CYP,Transport Related,CCA,11/08/2014,05-11050,1833.49,D G Private Hire Ltd,,,,,,,,,,,
Nottinghamshire County Council,1111/1001,Children and Young People,CYP,Transport Related,CCA,11/08/2014,05-11052,1040.4,D G Private Hire Ltd,,,,,,,,,,,
Nottinghamshire County Council,1111/1001,Children and Young People,CYP,Transport Related,CCA,11/08/2014,05-11061,1408.92,Vallances Coaches,,,,,,,,,,,
Nottinghamshire County Council,1111/1001,Children and Young People,CYP,Transport Related,CCA,11/08/2014,05-11062,1173,D G Private Hire Ltd,,,,,,,,,,,
Nottinghamshire County Council,1111/1001,Children and Young People,CYP,Transport Related,CCA,11/08/2014,05-11063,1105,D G Private Hire Ltd,,,,,,,,,,,
Nottinghamshire County Council,1111/1001,Children and Young People,CYP,Transport Related,CCA,11/08/2014,05-11064,1473.9,D G Private Hire Ltd,,,,,,,,,,,
Nottinghamshire County Council,1111/1001,Children and Young People,CYP,Transport Related,CCA,11/08/2014,05-11065,525.3,D G Private Hire Ltd,,,,,,,,,,,
Nottinghamshire County Council,1111/1001,Children and Young People,CYP,Transport Related,CCA,11/08/2014,05-11066,1577.94,D G Private Hire Ltd,,,,,,,,,,,
Nottinghamshire County Council,1111/1001,Children and Young People,CYP,Transport Related,CCA,11/08/2014,05-11067,980.73,D G Private Hire Ltd,,,,,,,,,,,
Nottinghamshire County Council,1111/1001,Children and Young People,CYP,Transport Related,CCA,11/08/2014,05-11069,834.82,D G Private Hire Ltd,,,,,,,,,,,
Nottinghamshire County Council,1111/1001,Children and Young People,CYP,Transport Related,CCA,11/08/2014,05-11070,2125,D G Private Hire Ltd,,,,,,,,,,,
Nottinghamshire County Council,1111/1001,Children and Young People,CYP,Transport Related,CCA,11/08/2014,05-11071,850,D G Private Hire Ltd,,,,,,,,,,,
Nottinghamshire County Council,1111/1001,Children and Young People,CYP,Transport Related,CCA,11/08/2014,05-11083,1137.08,Abacus Cars,,,,,,,,,,,
Nottinghamshire County Council,1111/1001,Children and Young People,CYP,Transport Related,CCA,11/08/2014,05-11084,2133.5,Abacus Cars,,,,,,,,,,,
Nottinghamshire County Council,1111/1001,Children and Young People,CYP,Transport Related,CCA,11/08/2014,05-11085,1907.4,Abacus Cars,,,,,,,,,,,
Nottinghamshire County Council,1111/1001,Children and Young People,CYP,Transport Related,CCA,11/08/2014,05-11088,1109.76,Abacus Cars,,,,,,,,,,,
Nottinghamshire County Council,1111/1001,Children and Young People,CYP,Transport Related,CCA,11/08/2014,05-11099,888.32,Nunns Cars,,,,,,,,,,,
Nottinghamshire County Council,1111/1001,Children and Young People,CYP,Transport Related,CCA,11/08/2014,05-11101,5660.32,Stagecoach Services Ltd,,,,,,,,,,,
Nottinghamshire County Council,1111/1001,Children and Young People,CYP,Transport Related,CCA,11/08/2014,05-11161,570,Travel Wright Ltd,,,,,,,,,,,
Nottinghamshire County Council,1111/1001,Children and Young People,CYP,Transport Related,CCA,11/08/2014,05-11163,2187.04,Travel Wright Ltd,,,,,,,,,,,
Nottinghamshire County Council,1111/1001,Children and Young People,CYP,Transport Related,CCA,11/08/2014,05-11182,554.88,In Taxis,,,,,,,,,,,
Nottinghamshire County Council,1111/1001,Children and Young People,CYP,Transport Related,CCA,13/08/2014,05-15164,1670.08,Johnson Bros Tours Ltd,,,,,,,,,,,
Nottinghamshire County Council,1111/1001,Children and Young People,CYP,Transport Related,CCA,13/08/2014,05-15194,1921,Sprays Transport Ltd,,,,,,,,,,,
Nottinghamshire County Council,1111/1001,Children and Young People,CYP,Transport Related,CCA,13/08/2014,05-15195,1807.78,Sprays Transport Ltd,,,,,,,,,,,
Nottinghamshire County Council,1111/1001,Children and Young People,CYP,Transport Related,CCA,13/08/2014,05-15199,3119.5,BN Gibson Ltd,,,,,,,,,,,
Nottinghamshire County Council,1111/1001,Children and Young People,CYP,Transport Related,CCA,13/08/2014,05-15201,3236.8,BN Gibson Ltd,,,,,,,,,,,
Nottinghamshire County Council,1111/1001,Children and Young People,CYP,Transport Related,CCA,13/08/2014,05-15202,3480.75,BN Gibson Ltd,,,,,,,,,,,
Nottinghamshire County Council,1111/1001,Children and Young People,CYP,Transport Related,CCA,15/08/2014,05-15417,1219.11,Central Cars Nottm Ltd,,,,,,,,,,,
Nottinghamshire County Council,1111/1001,Children and Young People,CYP,Transport Related,CCA,15/08/2014,05-15421,510,Ng11 Cars,,,,,,,,,,,
Nottinghamshire County Council,1111/1001,Children and Young People,CYP,Transport Related,CCA,15/08/2014,05-15432,3590.4,P & P Taxis,,,,,,,,,,,
Nottinghamshire County Council,1111/1001,Children and Young People,CYP,Transport Related,CCA,19/08/2014,05-15798,4369.32,Marshalls Of Sutton On Trent Ltd,,,,,,,,,,,
Nottinghamshire County Council,1111/1001,Children and Young People,CYP,Transport Related,CCA,26/08/2014,05-16032,2676.96,Marshalls Of Sutton On Trent Ltd,,,,,,,,,,,
Nottinghamshire County Council,1111/1001,Children and Young People,CYP,Transport Related,CDA,01/08/2014,05-16450,627.45,Wrixon Care,,,,,,,,,,,
Nottinghamshire County Council,1111/1001,Children and Young People,CYP,Transport Related,CDA,04/08/2014,05-10134,192.06,Arrow Specialised Transport Ltd,,,,,,,,,,,
Nottinghamshire County Council,1111/1001,Children and Young People,CYP,Transport Related,CDA,04/08/2014,05-10172,154.52,Fozcabs Newark Taxis,,,,,,,,,,,
Nottinghamshire County Council,1111/1001,Children and Young People,CYP,Transport Related,CDA,04/08/2014,05-10179,401.76,Fozcabs Newark Taxis,,,,,,,,,,,
Nottinghamshire County Council,1111/1001,Children and Young People,CYP,Transport Related,CDA,04/08/2014,05-10190,1260,D G Private Hire Ltd,,,,,,,,,,,
Nottinghamshire County Council,1111/1001,Children and Young People,CYP,Transport Related,CDA,04/08/2014,05-10194,3066.8,AOT Coaches,,,,,,,,,,,
Nottinghamshire County Council,1111/1001,Children and Young People,CYP,Transport Related,CDA,04/08/2014,05-10195,1683,AOT Coaches,,,,,,,,,,,
Nottinghamshire County Council,1111/1001,Children and Young People,CYP,Transport Related,CDA,06/08/2014,05-10619,717.89,CBC Taxis Ltd,,,,,,,,,,,
Nottinghamshire County Council,1111/1001,Children and Young People,CYP,Transport Related,CDA,06/08/2014,05-10621,1933,Ace Of Mansfield Ltd,,,,,,,,,,,
Nottinghamshire County Council,1111/1001,Children and Young People,CYP,Transport Related,CDA,06/08/2014,05-10633,1040.4,Galaxy Cabs,,,,,,,,,,,
Nottinghamshire County Council,1111/1001,Children and Young People,CYP,Transport Related,CDA,11/08/2014,05-11067,980.73,D G Private Hire Ltd,,,,,,,,,,,
Nottinghamshire County Council,1111/1001,Children and Young People,CYP,Transport Related,CDA,11/08/2014,05-11082,1190,Abacus Cars,,,,,,,,,,,
Nottinghamshire County Council,1111/1001,Children and Young People,CYP,Transport Related,CDA,11/08/2014,05-11090,1820,Nottingham Minibuses & Coaches,,,,,,,,,,,
Nottinghamshire County Council,1111/1001,Children and Young People,CYP,Transport Related,CDA,11/08/2014,05-11091,1960,Nottingham Minibuses & Coaches,,,,,,,,,,,
Nottinghamshire County Council,1111/1001,Children and Young People,CYP,Transport Related,CDA,11/08/2014,05-11093,1750,Nottingham Minibuses & Coaches,,,,,,,,,,,
Nottinghamshire County Council,1111/1001,Children and Young People,CYP,Transport Related,CDA,11/08/2014,05-11094,1330,Nottingham Minibuses & Coaches,,,,,,,,,,,
Nottinghamshire County Council,1111/1001,Children and Young People,CYP,Transport Related,CDA,11/08/2014,05-11095,2080,Nottingham Minibuses & Coaches,,,,,,,,,,,
Nottinghamshire County Council,1111/1001,Children and Young People,CYP,Transport Related,CDA,11/08/2014,05-11096,2380,Nottingham Minibuses & Coaches,,,,,,,,,,,
Nottinghamshire County Council,1111/1001,Children and Young People,CYP,Transport Related,CDA,11/08/2014,05-11098,9178.4,Nottingham Minibuses & Coaches,,,,,,,,,,,
Nottinghamshire County Council,1111/1001,Children and Young People,CYP,Transport Related,CDA,15/08/2014,05-15417,135.45,Central Cars Nottm Ltd,,,,,,,,,,,
Nottinghamshire County Council,1111/1001,Children and Young People,CYP,Transport Related,CDA,15/08/2014,05-15421,510,Ng11 Cars,,,,,,,,,,,
Nottinghamshire County Council,1111/1001,Children and Young People,CYP,Transport Related,CDA,19/08/2014,05-15797,1162.29,Tiger European Uk Ltd,,,,,,,,,,,
Nottinghamshire County Council,1111/1001,Children and Young People,CYP,Transport Related,CDA,19/08/2014,05-15799,9237.41,Marshalls Of Sutton On Trent Ltd,,,,,,,,,,,
Nottinghamshire County Council,1111/1001,Children and Young People,CYP,Transport Related,CDA,19/08/2014,05-15800,5410.08,Paul S Winson Coaches,,,,,,,,,,,
Nottinghamshire County Council,1111/1001,Children and Young People,CYP,Transport Related,CDA,19/08/2014,05-15803,5016,Marshalls Of Sutton On Trent Ltd,,,,,,,,,,,
Nottinghamshire County Council,1111/1001,Children and Young People,CYP,Supplies & Services,DAA,01/08/2014,05-16390,591,Office Innovations,,,,,,,,,,,
Nottinghamshire County Council,1111/1001,Children and Young People,CYP,Supplies & Services,DAA,19/08/2014,05-15395,31470.91,St Patricks Catholic Voluntary Acad,,,,,,,,,,,
Nottinghamshire County Council,1111/1001,Children and Young People,CYP,Supplies & Services,DBA,04/08/2014,05-10273,70.98,M Maloney Country Butchers & B Ltd,,,,,,,,,,,
Nottinghamshire County Council,1111/1001,Children and Young People,CYP,Supplies & Services,DBA,06/08/2014,05-10802,313.84,Hallam Country Fresh Foods Ltd,,,,,,,,,,,
Nottinghamshire County Council,1111/1001,Children and Young People,CYP,Supplies & Services,DBA,06/08/2014,05-10806,297.85,Hallam Country Fresh Foods Ltd,,,,,,,,,,,
Nottinghamshire County Council,1111/1001,Children and Young People,CYP,Supplies & Services,DBA,08/08/2014,05-10969,284.71,Brake Bros Ltd,,,,,,,,,,,
Nottinghamshire County Council,1111/1001,Children and Young People,CYP,Supplies & Services,DBA,08/08/2014,05-10973,405.49,Brake Bros Ltd,,,,,,,,,,,
Nottinghamshire County Council,1111/1001,Children and Young People,CYP,Supplies & Services,DBA,08/08/2014,05-10977,768.88,Brake Bros Ltd,,,,,,,,,,,
Nottinghamshire County Council,1111/1001,Children and Young People,CYP,Supplies & Services,DBA,11/08/2014,05-11019,143.13,Arnold Dairies Ltd,,,,,,,,,,,
Nottinghamshire County Council,1111/1001,Children and Young People,CYP,Supplies & Services,DBA,12/08/2014,05-15100,301.17,Hallam Country Fresh Foods Ltd,,,,,,,,,,,
Nottinghamshire County Council,1111/1001,Children and Young People,CYP,Supplies & Services,DBA,13/08/2014,05-15224,79.73,M Maloney Country Butchers & B Ltd,,,,,,,,,,,
Nottinghamshire County Council,1111/1001,Children and Young People,CYP,Supplies & Services,DBA,18/08/2014,05-15498,117.06,M Maloney Country Butchers & B Ltd,,,,,,,,,,,
Nottinghamshire County Council,1111/1001,Children and Young People,CYP,Supplies & Services,DBA,18/08/2014,05-15502,120.97,M Maloney Country Butchers & B Ltd,,,,,,,,,,,
Nottinghamshire County Council,1111/1001,Children and Young People,CYP,Supplies & Services,DBA,18/08/2014,05-15510,143.18,Arnold Dairies Ltd,,,,,,,,,,,
Nottinghamshire County Council,1111/1001,Children and Young People,CYP,Supplies & Services,DBA,18/08/2014,05-15513,129.09,Arnold Dairies Ltd,,,,,,,,,,,
Nottinghamshire County Council,1111/1001,Children and Young People,CYP,Supplies & Services,DBA,18/08/2014,05-15520,129.65,Arnold Dairies Ltd,,,,,,,,,,,
Nottinghamshire County Council,1111/1001,Children and Young People,CYP,Supplies & Services,DBA,18/08/2014,05-15528,92.76,Brake Bros Ltd,,,,,,,,,,,
Nottinghamshire County Council,1111/1001,Children and Young People,CYP,Supplies & Services,DBA,18/08/2014,05-15531,317.21,Brake Bros Ltd,,,,,,,,,,,
Nottinghamshire County Council,1111/1001,Children and Young People,CYP,Supplies & Services,DBA,18/08/2014,05-15536,154.3,Brake Bros Ltd,,,,,,,,,,,
Nottinghamshire County Council,1111/1001,Children and Young People,CYP,Supplies & Services,DBA,20/08/2014,05-15852,301.44,Hallam Country Fresh Foods Ltd,,,,,,,,,,,
Nottinghamshire County Council,1111/1001,Children and Young People,CYP,Supplies & Services,DBA,22/08/2014,05-15962,445.51,Brake Bros Ltd,,,,,,,,,,,
Nottinghamshire County Council,1111/1001,Children and Young People,CYP,Supplies & Services,DBA,22/08/2014,05-15996,442.97,Brake Bros Ltd,,,,,,,,,,,
Nottinghamshire County Council,1111/1001,Children and Young People,CYP,Supplies & Services,DBA,22/08/2014,05-15999,544.23,Brake Bros Ltd,,,,,,,,,,,
Nottinghamshire County Council,1111/1001,Children and Young People,CYP,Supplies & Services,DBA,22/08/2014,05-16002,186.5,Brake Bros Ltd,,,,,,,,,,,
Nottinghamshire County Council,1111/1001,Children and Young People,CYP,Supplies & Services,DBA,26/08/2014,05-16059,179.84,Arnold Dairies Ltd,,,,,,,,,,,
Nottinghamshire County Council,1111/1001,Children and Young People,CYP,Supplies & Services,DBA,28/08/2014,05-16261,92.62,M Maloney Country Butchers & B Ltd,,,,,,,,,,,
Nottinghamshire County Council,1111/1001,Children and Young People,CYP,Supplies & Services,DBA,28/08/2014,05-16265,388.7,Hallam Country Fresh Foods Ltd,,,,,,,,,,,
Nottinghamshire County Council,1111/1001,Children and Young People,CYP,Supplies & Services,DBA,28/08/2014,05-16270,874.6,Brake Bros Ltd,,,,,,,,,,,
Nottinghamshire County Council,1111/1001,Children and Young People,CYP,Supplies & Services,DBA,28/08/2014,05-16276,93.58,Brake Bros Ltd,,,,,,,,,,,
Nottinghamshire County Council,1111/1001,Children and Young People,CYP,Supplies & Services,DBA,28/08/2014,05-16280,297.27,Brake Bros Ltd,,,,,,,,,,,
Nottinghamshire County Council,1111/1001,Children and Young People,CYP,Supplies & Services,DEA,01/08/2014,05-16412,832.38,DWP - Job Centre Plus No 1 A/C,,,,,,,,,,,
Nottinghamshire County Council,1111/1001,Children and Young People,CYP,Supplies & Services,DEA,07/08/2014,05-10846,2363.21,[Redacted],,,,,,,,,,,
Nottinghamshire County Council,1111/1001,Children and Young People,CYP,Supplies & Services,DFA,07/08/2014,05-10822,571.83,Lantec Services Ltd,,,,,,,,,,,
Nottinghamshire County Council,1111/1001,Children and Young People,CYP,Supplies & Services,DHA,01/08/2014,05-10017,3500,Rainbow Parents Carers Forum,,,,,,,,,,,
Nottinghamshire County Council,1111/1001,Children and Young People,CYP,Supplies & Services,DHA,01/08/2014,05-10018,3500,Square Peg,,,,,,,,,,,
Nottinghamshire County Council,1111/1001,Children and Young People,CYP,Supplies & Services,DHA,01/08/2014,05-10019,3500,Nottinghamshire Powerchair Fc,,,,,,,,,,,
Nottinghamshire County Council,1111/1001,Children and Young People,CYP,Supplies & Services,DKA,06/08/2014,05-10675,6713,First Class Tailored Solutions Ltd,,,,,,,,,,,
Nottinghamshire County Council,1111/1001,Children and Young People,CYP,Supplies & Services,DKA,08/08/2014,05-10964,9941.5,Tollerton Primary School,,,,,,,,,,,
Nottinghamshire County Council,1111/1001,Children and Young People,CYP,Supplies & Services,DKA,08/08/2014,05-10965,100000,Bowbridge Primary School,,,,,,,,,,,
Nottinghamshire County Council,1111/1001,Children and Young People,CYP,Supplies & Services,DKA,08/08/2014,05-10966,45296.51,Croft Primary School,,,,,,,,,,,
Nottinghamshire County Council,1111/1001,Children and Young People,CYP,Supplies & Services,DKA,08/08/2014,05-10967,48522,Cropwell Bishop Primary School,,,,,,,,,,,
Nottinghamshire County Council,1111/1001,Children and Young People,CYP,Third Party Payments,EAA,01/08/2014,05-16427,558,First Universal Enterprises Ltd,,,,,,,,,,,
Nottinghamshire County Council,1111/1001,Children and Young People,CYP,Third Party Payments,EBA,06/08/2014,05-16421,2776.1,Derbyshire County Council,,,,,,,,,,,
Nottinghamshire County Council,1111/1001,Children and Young People,CYP,Third Party Payments,EBA,08/08/2014,05-16403,4098.07,St John Houghton Academy,,,,,,,,,,,
Nottinghamshire County Council,1111/1001,Children and Young People,CYP,Third Party Payments,EBA,08/08/2014,05-16411,3707.32,Derbyshire County Council,,,,,,,,,,,
Nottinghamshire County Council,1111/1001,Children and Young People,CYP,Third Party Payments,EBA,14/08/2014,05-15355,23461.54,Home Group Limited,,,,,,,,,,,
Nottinghamshire County Council,1111/1001,Children and Young People,CYP,Third Party Payments,EBA,14/08/2014,05-15363,1681.84,Metropolitan Support Trust,,,,,,,,,,,
Nottinghamshire County Council,1111/1001,Children and Young People,CYP,Third Party Payments,EBA,14/08/2014,05-15369,20912.09,Newark Emmaus Trust,,,,,,,,,,,
Nottinghamshire County Council,1111/1001,Children and Young People,CYP,Third Party Payments,EBA,14/08/2014,05-15374,25209.29,Framework Housing Association,,,,,,,,,,,
Nottinghamshire County Council,1111/1001,Children and Young People,CYP,Third Party Payments,EBA,14/08/2014,05-15376,22406.75,Nottingham Community Housing,,,,,,,,,,,
Nottinghamshire County Council,1111/1001,Children and Young People,CYP,Third Party Payments,EBA,14/08/2014,05-15380,10091.05,ASRA Housing Association,,,,,,,,,,,
Nottinghamshire County Council,1111/1001,Children and Young People,CYP,Third Party Payments,EBA,26/08/2014,05-16057,17599.18,East Leake Schools Ltd,,,,,,,,,,,
Nottinghamshire County Council,1111/1001,Children and Young People,CYP,Third Party Payments,EBA,28/08/2014,05-16052,11533.57,Transform Schools,,,,,,,,,,,
Nottinghamshire County Council,1111/1001,Children and Young People,CYP,Third Party Payments,EBA,28/08/2014,05-16053,6417.68,Transform Schools,,,,,,,,,,,
Nottinghamshire County Council,1111/1001,Children and Young People,CYP,Third Party Payments,EBA,28/08/2014,05-16054,5752.98,Transform Schools,,,,,,,,,,,
Nottinghamshire County Council,1111/1001,Children and Young People,CYP,Third Party Payments,EBA,28/08/2014,05-16055,27922.54,Transform Schools,,,,,,,,,,,
Nottinghamshire County Council,1111/1001,Children and Young People,CYP,Third Party Payments,EBA,28/08/2014,05-16056,46181.59,Transform Schools,,,,,,,,,,,
Nottinghamshire County Council,1111/1001,Children and Young People,CYP,Third Party Payments,EBA,28/08/2014,05-16260,17599.18,East Leake Schools Ltd,,,,,,,,,,,
Nottinghamshire County Council,1111/1001,Children and Young People,CYP,Third Party Payments,EBA,28/08/2014,05-16336,1487972.34,Transform Schools,,,,,,,,,,,
Nottinghamshire County Council,1111/1001,Children and Young People,CYP,Third Party Payments,EBA,28/08/2014,05-16337,233411.14,East Leake Schools Ltd,,,,,,,,,,,
Nottinghamshire County Council,1111/1001,Children and Young People,CYP,Third Party Payments,EDA,01/08/2014,05-10020,6992,Sunnyside Spencer Academy,,,,,,,,,,,
Nottinghamshire County Council,1111/1001,Children and Young People,CYP,Third Party Payments,EDA,05/08/2014,05-10533,10987,St Josephs Catholic Primary School,,,,,,,,,,,
Nottinghamshire County Council,1111/1001,Children and Young People,CYP,Third Party Payments,EDA,05/08/2014,05-10534,15979,St Josephs Catholic Primary School,,,,,,,,,,,
Nottinghamshire County Council,1111/1001,Children and Young People,CYP,Third Party Payments,EDA,07/08/2014,05-10066,3117,Leverton C Of E Academy,,,,,,,,,,,
Nottinghamshire County Council,1111/1001,Children and Young People,CYP,Third Party Payments,EDA,11/08/2014,05-11013,13330,Tuxford Academy,,,,,,,,,,,
Nottinghamshire County Council,1111/1001,Children and Young People,CYP,Third Party Payments,EDA,11/08/2014,05-11014,13360,Tuxford Primary Academy,,,,,,,,,,,
Nottinghamshire County Council,1111/1001,Children and Young People,CYP,Third Party Payments,EDA,11/08/2014,05-11015,500,Tuxford Academy,,,,,,,,,,,
Nottinghamshire County Council,1111/1001,Children and Young People,CYP,Third Party Payments,EDA,11/08/2014,05-11016,1400,Tuxford Primary Academy,,,,,,,,,,,
Nottinghamshire County Council,1111/1001,Children and Young People,CYP,Third Party Payments,EDA,11/08/2014,05-11017,15500,Christ The King Catholic Voluntary,,,,,,,,,,,
Nottinghamshire County Council,1111/1001,Children and Young People,CYP,Third Party Payments,EDA,11/08/2014,05-11186,8874,The Manor Academy,,,,,,,,,,,
Nottinghamshire County Council,1111/1001,Children and Young People,CYP,Third Party Payments,EDA,11/08/2014,05-11187,8874,The Manor Academy,,,,,,,,,,,
Nottinghamshire County Council,1111/1001,Children and Young People,CYP,Third Party Payments,EDA,12/08/2014,05-15121,3696,Serlby Park Academy,,,,,,,,,,,
Nottinghamshire County Council,1111/1001,Children and Young People,CYP,Third Party Payments,EDA,12/08/2014,05-15122,8188,George Spencer Academy,,,,,,,,,,,
Nottinghamshire County Council,1111/1001,Children and Young People,CYP,Third Party Payments,EDA,13/08/2014,05-15152,1100,Wainwright Primary Academy,,,,,,,,,,,
Nottinghamshire County Council,1111/1001,Children and Young People,CYP,Third Party Payments,EDA,27/08/2014,05-10111,1080,Birklands Primary (Academy),,,,,,,,,,,
Nottinghamshire County Council,1111/1001,Children and Young People,CYP,Third Party Payments,EDA,27/08/2014,05-10112,22704,Birklands Primary (Academy),,,,,,,,,,,
Nottinghamshire County Council,1111/1001,Children and Young People,CYP,Third Party Payments,EFA,05/08/2014,05-10535,54585,Magnus Church of England Academy,,,,,,,,,,,
Nottinghamshire County Council,1111/1001,Children and Young People,CYP,Third Party Payments,EFA,05/08/2014,05-10536,29336,Dukeries Academy,,,,,,,,,,,
Nottinghamshire County Council,1111/1001,Children and Young People,CYP,Third Party Payments,EFA,05/08/2014,05-10538,24815,West Bridgford Academy,,,,,,,,,,,
Nottinghamshire County Council,1111/1001,Children and Young People,CYP,Third Party Payments,EFA,05/08/2014,05-10540,24815,The South Wolds Academy & Sixth For,,,,,,,,,,,
Nottinghamshire County Council,1111/1001,Children and Young People,CYP,Third Party Payments,EFA,05/08/2014,05-10541,24815,South Nottinghamshire Academy,,,,,,,,,,,
Nottinghamshire County Council,1111/1001,Children and Young People,CYP,Third Party Payments,EFA,05/08/2014,05-10542,24815,The Becket Catholic Voluntary Acade,,,,,,,,,,,
Nottinghamshire County Council,1111/1001,Children and Young People,CYP,Third Party Payments,EFA,05/08/2014,05-10543,99208,Chilwell Comprehensive School,,,,,,,,,,,
Nottinghamshire County Council,1111/1001,Children and Young People,CYP,Third Party Payments,EFA,05/08/2014,05-10544,29225,Joseph Whittaker Academy,,,,,,,,,,,
Nottinghamshire County Council,1111/1001,Children and Young People,CYP,Third Party Payments,EFA,05/08/2014,05-10545,32027,The Minster School,,,,,,,,,,,
Nottinghamshire County Council,1111/1001,Children and Young People,CYP,Third Party Payments,EFA,05/08/2014,05-10546,23538,Serlby Park Academy,,,,,,,,,,,
Nottinghamshire County Council,1111/1001,Children and Young People,CYP,Third Party Payments,EFA,05/08/2014,05-10547,85096,Tuxford Academy,,,,,,,,,,,
Nottinghamshire County Council,1111/1001,Children and Young People,CYP,Third Party Payments,EFA,11/08/2014,05-11009,62706,Kirkby College,,,,,,,,,,,
Nottinghamshire County Council,1111/1001,Children and Young People,CYP,Third Party Payments,EFA,11/08/2014,05-11012,64171,Selston High School,,,,,,,,,,,
Nottinghamshire County Council,1111/1001,Children and Young People,CYP,Third Party Payments,EFA,12/08/2014,05-15119,62707,Kirkby College,,,,,,,,,,,
Nottinghamshire County Council,1111/1001,Children and Young People,CYP,Third Party Payments,EFA,12/08/2014,05-15120,64171,Selston High School,,,,,,,,,,,
Nottinghamshire County Council,1111/1001,Children and Young People,CYP,Third Party Payments,EFA,15/08/2014,05-10537,24815,East Leake Academy,,,,,,,,,,,
Nottinghamshire County Council,1111/1001,Children and Young People,CYP,Third Party Payments,EFA,15/08/2014,05-10539,24815,Rushcliffe School Academy Trust,,,,,,,,,,,
Nottinghamshire County Council,1111/1001,Children and Young People,CYP,Third Party Payments,EFA,15/08/2014,05-11010,81406,Mansfield Area Partnership Ltd,,,,,,,,,,,
Nottinghamshire County Council,1111/1001,Children and Young People,CYP,Third Party Payments,EFA,15/08/2014,05-11011,81406,Mansfield Area Partnership Ltd,,,,,,,,,,,
Nottinghamshire County Council,1111/1001,Children and Young People,CYP,Third Party Payments,EGA,01/08/2014,05-16420,960,Gro Garden Ltd,,,,,,,,,,,
Nottinghamshire County Council,1111/1001,Children and Young People,CYP,Third Party Payments,EGA,01/08/2014,05-16447,2657,Chrysalis Consortium Ltd,,,,,,,,,,,
Nottinghamshire County Council,1111/1001,Children and Young People,CYP,Third Party Payments,EGA,01/08/2014,05-16448,1971.33,Chrysalis Consortium Ltd,,,,,,,,,,,
Nottinghamshire County Council,1111/1001,Children and Young People,CYP,Third Party Payments,EGA,01/08/2014,05-16449,3428.4,Chrysalis Consortium Ltd,,,,,,,,,,,
Nottinghamshire County Council,1111/1001,Children and Young People,CYP,Third Party Payments,EGA,04/08/2014,05-10172,154.52,Fozcabs Newark Taxis,,,,,,,,,,,
Nottinghamshire County Council,1111/1001,Children and Young People,CYP,Third Party Payments,EGA,04/08/2014,05-10262,916.2,Daisies Day Nursery,,,,,,,,,,,
Nottinghamshire County Council,1111/1001,Children and Young People,CYP,Third Party Payments,EGA,04/08/2014,05-10263,916.2,Elston Pre-school Playgroup Newark,,,,,,,,,,,
Nottinghamshire County Council,1111/1001,Children and Young People,CYP,Third Party Payments,EGA,04/08/2014,05-10264,534.45,Little Millers Day Nursery,,,,,,,,,,,
Nottinghamshire County Council,1111/1001,Children and Young People,CYP,Third Party Payments,EGA,04/08/2014,05-16477,1130074.33,Nottinghamshire Healthcare Nhs Trus,,,,,,,,,,,
Nottinghamshire County Council,1111/1001,Children and Young People,CYP,Third Party Payments,EGA,06/08/2014,05-16446,13285.8,Horizon Care & Education Group Ltd,,,,,,,,,,,
Nottinghamshire County Council,1111/1001,Children and Young People,CYP,Third Party Payments,EGA,08/08/2014,05-10029,916.2,[Redacted],,,,,,,,,,,
Nottinghamshire County Council,1111/1001,Children and Young People,CYP,Third Party Payments,EGA,11/08/2014,05-16469,3565.5,Wyntax,,,,,,,,,,,
Nottinghamshire County Council,1111/1001,Children and Young People,CYP,Third Party Payments,EGA,12/08/2014,05-15125,1662.6,Discovery Day Nursery,,,,,,,,,,,
Nottinghamshire County Council,1111/1001,Children and Young People,CYP,Third Party Payments,EGA,14/08/2014,05-16488,1775.71,Northerncare,,,,,,,,,,,
Nottinghamshire County Council,1111/1001,Children and Young People,CYP,Third Party Payments,EGA,19/08/2014,05-15726,916.2,St Mary's Pre-School,,,,,,,,,,,
Nottinghamshire County Council,1111/1001,Children and Young People,CYP,Third Party Payments,EGA,20/08/2014,05-15826,5094.69,Ashfield Plaza Day Nursery,,,,,,,,,,,
Nottinghamshire County Council,1111/1001,Children and Young People,CYP,Third Party Payments,EGA,22/08/2014,05-15991,504,Good Foundations Day Nursery,,,,,,,,,,,
Nottinghamshire County Council,1111/1001,Children and Young People,CYP,Third Party Payments,EGA,22/08/2014,05-15992,567,Village Day Nursery,,,,,,,,,,,
Nottinghamshire County Council,1111/1001,Children and Young People,CYP,Third Party Payments,EGA,22/08/2014,05-16491,676.63,Sunbeam Fostering Agency Ltd,,,,,,,,,,,
Nottinghamshire County Council,1111/1001,Children and Young People,CYP,Third Party Payments,EGA,26/08/2014,05-16015,882,Serendipity Day Nursery,,,,,,,,,,,
Nottinghamshire County Council,1111/1001,Children and Young People,CYP,Third Party Payments,EGA,26/08/2014,05-16020,595,Alphabet House Day Nursery Worksop,,,,,,,,,,,
Nottinghamshire County Council,1111/1001,Children and Young People,CYP,Third Party Payments,EGA,27/08/2014,05-16244,1417.5,Alphabet House Nursery,,,,,,,,,,,
Nottinghamshire County Council,1111/1001,Children and Young People,CYP,Third Party Payments,EGA,27/08/2014,05-16245,945,Fernwood Day Nursery Ltd,,,,,,,,,,,
Nottinghamshire County Council,1111/1001,Children and Young People,CYP,Third Party Payments,EGA,27/08/2014,05-16246,672,Cherubs Childcare Centre (Mansfield,,,,,,,,,,,
Nottinghamshire County Council,1111/1001,Children and Young People,CYP,Third Party Payments,EGA,27/08/2014,05-16247,546,Papermoon Day Nursery Sutton In Ash,,,,,,,,,,,
Nottinghamshire County Council,1111/1001,Children and Young People,CYP,Third Party Payments,EGA,27/08/2014,05-16248,840,Brooklyn Day Nursery,,,,,,,,,,,
Nottinghamshire County Council,1111/1001,Children and Young People,CYP,Third Party Payments,EGA,27/08/2014,05-16249,1960,Wollaton Village Day Nurseries Ltd.,,,,,,,,,,,
Nottinghamshire County Council,1111/1001,Children and Young People,CYP,Third Party Payments,EGA,27/08/2014,05-16250,945,Appleton Day Nursery,,,,,,,,,,,
Nottinghamshire County Council,1111/1001,Children and Young People,CYP,Support Services,HAA,04/08/2014,05-10169,616,Fozcabs Newark Taxis,,,,,,,,,,,
Nottinghamshire County Council,1111/1001,Children and Young People,CYP,Support Services,HAA,04/08/2014,05-10170,1190,Fozcabs Newark Taxis,,,,,,,,,,,
Nottinghamshire County Council,1111/1001,Children and Young People,CYP,Support Services,HAA,04/08/2014,05-10171,680,Fozcabs Newark Taxis,,,,,,,,,,,
Nottinghamshire County Council,1111/1001,Children and Young People,CYP,Support Services,HAA,04/08/2014,05-10189,716,D G Private Hire Ltd,,,,,,,,,,,
Nottinghamshire County Council,1111/1001,Children and Young People,CYP,Support Services,HAA,04/08/2014,05-10192,3111,AOT Coaches,,,,,,,,,,,
Nottinghamshire County Council,1111/1001,Children and Young People,CYP,Support Services,HAA,04/08/2014,05-10193,2566.32,AOT Coaches,,,,,,,,,,,
Nottinghamshire County Council,1111/1001,Children and Young People,CYP,Support Services,HAA,04/08/2014,05-10196,2374.56,AOT Coaches,,,,,,,,,,,
Nottinghamshire County Council,1111/1001,Children and Young People,CYP,Support Services,HAA,04/08/2014,05-10197,2328.08,AOT Coaches,,,,,,,,,,,
Nottinghamshire County Council,1111/1001,Children and Young People,CYP,Support Services,HAA,04/08/2014,05-10198,2185.67,AOT Coaches,,,,,,,,,,,
Nottinghamshire County Council,1111/1001,Children and Young People,CYP,Support Services,HAA,04/08/2014,05-10199,2572.33,AOT Coaches,,,,,,,,,,,
Nottinghamshire County Council,1111/1001,Children and Young People,CYP,Support Services,HAA,04/08/2014,05-10204,1158.89,K & R Cars,,,,,,,,,,,
Nottinghamshire County Council,1111/1001,Children and Young People,CYP,Support Services,HAA,04/08/2014,05-10213,2527.31,Nottm City Transport Ltd,,,,,,,,,,,
Nottinghamshire County Council,1111/1001,Children and Young People,CYP,Support Services,HAA,06/08/2014,05-10585,2123.64,Sharpes Of Nottingham,,,,,,,,,,,
Nottinghamshire County Council,1111/1001,Children and Young People,CYP,Support Services,HAA,06/08/2014,05-10586,2149.14,Sharpes Of Nottingham,,,,,,,,,,,
Nottinghamshire County Council,1111/1001,Children and Young People,CYP,Support Services,HAA,06/08/2014,05-10587,2093.64,Sharpes Of Nottingham,,,,,,,,,,,
Nottinghamshire County Council,1111/1001,Children and Young People,CYP,Support Services,HAA,06/08/2014,05-10588,2113.64,Sharpes Of Nottingham,,,,,,,,,,,
Nottinghamshire County Council,1111/1001,Children and Young People,CYP,Support Services,HAA,06/08/2014,05-10591,2609.84,Sharpes Of Nottingham,,,,,,,,,,,
Nottinghamshire County Council,1111/1001,Children and Young People,CYP,Support Services,HAA,06/08/2014,05-10592,2049.14,Sharpes Of Nottingham,,,,,,,,,,,
Nottinghamshire County Council,1111/1001,Children and Young People,CYP,Support Services,HAA,06/08/2014,05-10593,2146.19,Sharpes Of Nottingham,,,,,,,,,,,
Nottinghamshire County Council,1111/1001,Children and Young People,CYP,Support Services,HAA,06/08/2014,05-10594,2872.5,Sharpes Of Nottingham,,,,,,,,,,,
Nottinghamshire County Council,1111/1001,Children and Young People,CYP,Support Services,HAA,06/08/2014,05-10595,2003.37,Sharpes Of Nottingham,,,,,,,,,,,
Nottinghamshire County Council,1111/1001,Children and Young People,CYP,Support Services,HAA,06/08/2014,05-10597,2880,Sharpes Of Nottingham,,,,,,,,,,,
Nottinghamshire County Council,1111/1001,Children and Young People,CYP,Support Services,HAA,06/08/2014,05-10602,9839.16,Johnson Bros Tours Ltd,,,,,,,,,,,
Nottinghamshire County Council,1111/1001,Children and Young People,CYP,Support Services,HAA,06/08/2014,05-10603,2451.91,Johnson Bros Tours Ltd,,,,,,,,,,,
Nottinghamshire County Council,1111/1001,Children and Young People,CYP,Support Services,HAA,06/08/2014,05-10606,9056.6,Redfern Travel,,,,,,,,,,,
Nottinghamshire County Council,1111/1001,Children and Young People,CYP,Support Services,HAA,06/08/2014,05-10607,3199.91,Redfern Travel,,,,,,,,,,,
Nottinghamshire County Council,1111/1001,Children and Young People,CYP,Support Services,HAA,06/08/2014,05-10608,3153.68,Redfern Travel,,,,,,,,,,,
Nottinghamshire County Council,1111/1001,Children and Young People,CYP,Support Services,HAA,06/08/2014,05-10609,2463.17,Redfern Travel,,,,,,,,,,,
Nottinghamshire County Council,1111/1001,Children and Young People,CYP,Support Services,HAA,06/08/2014,05-10610,1849.4,Redfern Travel,,,,,,,,,,,
Nottinghamshire County Council,1111/1001,Children and Young People,CYP,Support Services,HAA,06/08/2014,05-10648,924.8,Elkingtons Park Garage,,,,,,,,,,,
Nottinghamshire County Council,1111/1001,Children and Young People,CYP,Support Services,HAA,06/08/2014,05-10649,3846.87,AOT Coaches,,,,,,,,,,,
Nottinghamshire County Council,1111/1001,Children and Young People,CYP,Support Services,HAA,06/08/2014,05-10652,2024.72,Jb Tours Watnall Ltd,,,,,,,,,,,
Nottinghamshire County Council,1111/1001,Children and Young People,CYP,Support Services,HAA,06/08/2014,05-10653,2061.19,Jb Tours Watnall Ltd,,,,,,,,,,,
Nottinghamshire County Council,1111/1001,Children and Young People,CYP,Support Services,HAA,06/08/2014,05-10654,2208,Jb Tours Watnall Ltd,,,,,,,,,,,
Nottinghamshire County Council,1111/1001,Children and Young People,CYP,Support Services,HAA,06/08/2014,05-10657,2631.6,Tiger European Uk Ltd,,,,,,,,,,,
Nottinghamshire County Council,1111/1001,Children and Young People,CYP,Support Services,HAA,06/08/2014,05-10658,2839.16,Tiger European Uk Ltd,,,,,,,,,,,
Nottinghamshire County Council,1111/1001,Children and Young People,CYP,Support Services,HAA,06/08/2014,05-10659,5777.36,Tiger European Uk Ltd,,,,,,,,,,,
Nottinghamshire County Council,1111/1001,Children and Young People,CYP,Support Services,HAA,06/08/2014,05-10660,2496.7,Tiger European Uk Ltd,,,,,,,,,,,
Nottinghamshire County Council,1111/1001,Children and Young People,CYP,Support Services,HAA,06/08/2014,05-10661,2245.59,Tiger European Uk Ltd,,,,,,,,,,,
Nottinghamshire County Council,1111/1001,Children and Young People,CYP,Support Services,HAA,06/08/2014,05-10663,2564,Tiger European Uk Ltd,,,,,,,,,,,
Nottinghamshire County Council,1111/1001,Children and Young People,CYP,Support Services,HAA,06/08/2014,05-10669,1105.65,Cotswold CVS Trading Ltd,,,,,,,,,,,
Nottinghamshire County Council,1111/1001,Children and Young People,CYP,Support Services,HAA,11/08/2014,05-11039,1800.4,Vale Travel,,,,,,,,,,,
Nottinghamshire County Council,1111/1001,Children and Young People,CYP,Support Services,HAA,11/08/2014,05-11040,1445,SJW (Muskham) Ltd T/A Z Cars,,,,,,,,,,,
Nottinghamshire County Council,1111/1001,Children and Young People,CYP,Support Services,HAA,11/08/2014,05-11041,850,SJW (Muskham) Ltd T/A Z Cars,,,,,,,,,,,
Nottinghamshire County Council,1111/1001,Children and Young People,CYP,Support Services,HAA,11/08/2014,05-11043,1009.8,Acorn Contracts,,,,,,,,,,,
Nottinghamshire County Council,1111/1001,Children and Young People,CYP,Support Services,HAA,11/08/2014,05-11053,2461.08,Lowes Coaches Ltd,,,,,,,,,,,
Nottinghamshire County Council,1111/1001,Children and Young People,CYP,Support Services,HAA,11/08/2014,05-11054,2476.26,Lowes Coaches Ltd,,,,,,,,,,,
Nottinghamshire County Council,1111/1001,Children and Young People,CYP,Support Services,HAA,11/08/2014,05-11055,2186.2,Lowes Coaches Ltd,,,,,,,,,,,
Nottinghamshire County Council,1111/1001,Children and Young People,CYP,Support Services,HAA,11/08/2014,05-11086,520.2,Abacus Cars,,,,,,,,,,,
Nottinghamshire County Council,1111/1001,Children and Young People,CYP,Support Services,HAA,11/08/2014,05-11089,1530,Nottingham Minibuses & Coaches,,,,,,,,,,,
Nottinghamshire County Council,1111/1001,Children and Young People,CYP,Support Services,HAA,11/08/2014,05-11092,2550,Nottingham Minibuses & Coaches,,,,,,,,,,,
Nottinghamshire County Council,1111/1001,Children and Young People,CYP,Support Services,HAA,11/08/2014,05-11112,4220.22,Stagecoach Services Ltd,,,,,,,,,,,
Nottinghamshire County Council,1111/1001,Children and Young People,CYP,Support Services,HAA,11/08/2014,05-11120,2451.06,Stagecoach Services Ltd,,,,,,,,,,,
Nottinghamshire County Council,1111/1001,Children and Young People,CYP,Support Services,HAA,11/08/2014,05-11129,4176.16,Stagecoach Services Ltd,,,,,,,,,,,
Nottinghamshire County Council,1111/1001,Children and Young People,CYP,Support Services,HAA,11/08/2014,05-11133,1043.46,Stagecoach Services Ltd,,,,,,,,,,,
Nottinghamshire County Council,1111/1001,Children and Young People,CYP,Support Services,HAA,11/08/2014,05-11135,4429.01,Stagecoach Services Ltd,,,,,,,,,,,
Nottinghamshire County Council,1111/1001,Children and Young People,CYP,Support Services,HAA,11/08/2014,05-11136,4345.71,Stagecoach Services Ltd,,,,,,,,,,,
Nottinghamshire County Council,1111/1001,Children and Young People,CYP,Support Services,HAA,11/08/2014,05-11137,4345.39,Stagecoach Services Ltd,,,,,,,,,,,
Nottinghamshire County Council,1111/1001,Children and Young People,CYP,Support Services,HAA,11/08/2014,05-11139,1197.84,Stagecoach Services Ltd,,,,,,,,,,,
Nottinghamshire County Council,1111/1001,Children and Young People,CYP,Support Services,HAA,11/08/2014,05-11158,2539.46,Stagecoach Services Ltd,,,,,,,,,,,
Nottinghamshire County Council,1111/1001,Children and Young People,CYP,Support Services,HAA,11/08/2014,05-11159,2653.36,Stagecoach Services Ltd,,,,,,,,,,,
Nottinghamshire County Council,1111/1001,Children and Young People,CYP,Support Services,HAA,11/08/2014,05-11160,2942.19,Travel Wright Ltd,,,,,,,,,,,
Nottinghamshire County Council,1111/1001,Children and Young People,CYP,Support Services,HAA,11/08/2014,05-11162,11250.6,Travel Wright Ltd,,,,,,,,,,,
Nottinghamshire County Council,1111/1001,Children and Young People,CYP,Support Services,HAA,11/08/2014,05-11164,2548.21,Travel Wright Ltd,,,,,,,,,,,
Nottinghamshire County Council,1111/1001,Children and Young People,CYP,Support Services,HAA,11/08/2014,05-11165,2705.62,Travel Wright Ltd,,,,,,,,,,,
Nottinghamshire County Council,1111/1001,Children and Young People,CYP,Support Services,HAA,11/08/2014,05-11166,2456.16,Travel Wright Ltd,,,,,,,,,,,
Nottinghamshire County Council,1111/1001,Children and Young People,CYP,Support Services,HAA,11/08/2014,05-11167,1966.54,Travel Wright Ltd,,,,,,,,,,,
Nottinghamshire County Council,1111/1001,Children and Young People,CYP,Support Services,HAA,11/08/2014,05-11169,4839.14,Travel Wright Ltd,,,,,,,,,,,
Nottinghamshire County Council,1111/1001,Children and Young People,CYP,Support Services,HAA,11/08/2014,05-11171,120,Travel Wright Ltd,,,,,,,,,,,
Nottinghamshire County Council,1111/1001,Children and Young People,CYP,Support Services,HAA,11/08/2014,05-11173,2284.8,Travel Wright Ltd,,,,,,,,,,,
Nottinghamshire County Council,1111/1001,Children and Young People,CYP,Support Services,HAA,11/08/2014,05-11174,2609.41,Travel Wright Ltd,,,,,,,,,,,
Nottinghamshire County Council,1111/1001,Children and Young People,CYP,Support Services,HAA,11/08/2014,05-11177,1667.08,Jc Coaches,,,,,,,,,,,
Nottinghamshire County Council,1111/1001,Children and Young People,CYP,Support Services,HAA,11/08/2014,05-11179,2363.52,Jc Coaches,,,,,,,,,,,
Nottinghamshire County Council,1111/1001,Children and Young People,CYP,Support Services,HAA,11/08/2014,05-11180,4235.13,Wilfreda Beehive,,,,,,,,,,,
Nottinghamshire County Council,1111/1001,Children and Young People,CYP,Support Services,HAA,13/08/2014,05-15177,1926.44,Arnold Acorn Travel,,,,,,,,,,,
Nottinghamshire County Council,1111/1001,Children and Young People,CYP,Support Services,HAA,13/08/2014,05-15178,1869.75,Arnold Acorn Travel,,,,,,,,,,,
Nottinghamshire County Council,1111/1001,Children and Young People,CYP,Support Services,HAA,15/08/2014,05-15434,4723.47,Paul S Winson Coaches,,,,,,,,,,,
Nottinghamshire County Council,1111/1001,Children and Young People,CYP,Support Services,HAA,15/08/2014,05-15435,2830.88,Paul S Winson Coaches,,,,,,,,,,,
Nottinghamshire County Council,1111/1001,Children and Young People,CYP,Support Services,HAA,15/08/2014,05-15437,2385.54,Paul S Winson Coaches,,,,,,,,,,,
Nottinghamshire County Council,1111/1001,Children and Young People,CYP,Support Services,HAA,15/08/2014,05-15440,657.76,Bassetlaw Action Centre,,,,,,,,,,,
Nottinghamshire County Council,1111/1001,Children and Young People,CYP,Support Services,HAA,15/08/2014,05-15444,2325.54,TM Travel,,,,,,,,,,,
Nottinghamshire County Council,1111/1001,Children and Young People,CYP,Support Services,HAA,26/08/2014,05-16023,1733.83,Marshalls Of Sutton On Trent Ltd,,,,,,,,,,,
Nottinghamshire County Council,1111/1001,Children and Young People,CYP,Support Services,HAA,26/08/2014,05-16026,2058.59,Marshalls Of Sutton On Trent Ltd,,,,,,,,,,,
Nottinghamshire County Council,1111/1001,Children and Young People,CYP,Support Services,HAA,26/08/2014,05-16034,2824,Marshalls Of Sutton On Trent Ltd,,,,,,,,,,,
Nottinghamshire County Council,1111/1001,Children and Young People,CYP,Support Services,HAA,26/08/2014,05-16038,1982.88,Marshalls Of Sutton On Trent Ltd,,,,,,,,,,,
Nottinghamshire County Council,1111/1001,Children and Young People,CYP,Support Services,HAA,26/08/2014,05-16040,2364.36,Marshalls Of Sutton On Trent Ltd,,,,,,,,,,,
Nottinghamshire County Council,1111/1001,Children and Young People,CYP,Support Services,HAA,29/08/2014,05-15424,2678.37,Trent Motor Traction Company Ltd,,,,,,,,,,,
Nottinghamshire County Council,1111/1001,Children and Young People,CYP,Support Services,HAA,29/08/2014,05-15427,934.09,Trent Motor Traction Company Ltd,,,,,,,,,,,
Nottinghamshire County Council,1111/1001,Adult Social Care and Health,ASCH,Premises Related,BAA,07/08/2014,05-10841,668.5,Cw Plumbing Heating & Gas Services,,,,,,,,,,,
Nottinghamshire County Council,1111/1001,Adult Social Care and Health,ASCH,Premises Related,BAA,08/08/2014,05-10925,546,Matro Ltd,,,,,,,,,,,
Nottinghamshire County Council,1111/1001,Adult Social Care and Health,ASCH,Premises Related,BAA,11/08/2014,05-10988,655,Sues Maintenance Services,,,,,,,,,,,
Nottinghamshire County Council,1111/1001,Adult Social Care and Health,ASCH,Premises Related,BAA,12/08/2014,05-15085,830,Key Construction,,,,,,,,,,,
Nottinghamshire County Council,1111/1001,Adult Social Care and Health,ASCH,Premises Related,BAA,13/08/2014,05-15131,703,Beardsall Builders Ltd,,,,,,,,,,,
Nottinghamshire County Council,1111/1001,Adult Social Care and Health,ASCH,Premises Related,BAA,20/08/2014,05-15848,557.5,Handyman Plus,,,,,,,,,,,
Nottinghamshire County Council,1111/1001,Adult Social Care and Health,ASCH,Premises Related,BAA,20/08/2014,05-15849,545,Jackson Joiners & Builders Ltd,,,,,,,,,,,
Nottinghamshire County Council,1111/1001,Adult Social Care and Health,ASCH,Premises Related,BAA,20/08/2014,05-15851,799.5,Jackson Joiners & Builders Ltd,,,,,,,,,,,
Nottinghamshire County Council,1111/1001,Adult Social Care and Health,ASCH,Premises Related,BAA,20/08/2014,05-15868,506,[Redacted],,,,,,,,,,,
Nottinghamshire County Council,1111/1001,Adult Social Care and Health,ASCH,Premises Related,BBA,07/08/2014,05-10841,-60,Cw Plumbing Heating & Gas Services,,,,,,,,,,,
Nottinghamshire County Council,1111/1001,Adult Social Care and Health,ASCH,Premises Related,BJA,08/08/2014,05-16413,553.96,County Supplies (NCC),,,,,,,,,,,
Nottinghamshire County Council,1111/1001,Adult Social Care and Health,ASCH,Premises Related,BJA,08/08/2014,05-16419,574.8,County Supplies (NCC),,,,,,,,,,,
Nottinghamshire County Council,1111/1001,Adult Social Care and Health,ASCH,Premises Related,BJA,08/08/2014,05-16424,500,County Supplies (NCC),,,,,,,,,,,
Nottinghamshire County Council,1111/1001,Adult Social Care and Health,ASCH,Transport Related,CBA,04/08/2014,05-10207,1996.76,Aj Travel,,,,,,,,,,,
Nottinghamshire County Council,1111/1001,Adult Social Care and Health,ASCH,Transport Related,CBA,06/08/2014,05-10639,2571.63,Ja Travel Ltd,,,,,,,,,,,
Nottinghamshire County Council,1111/1001,Adult Social Care and Health,ASCH,Transport Related,CBA,06/08/2014,05-10671,4784.85,Cotswold CVS Trading Ltd,,,,,,,,,,,
Nottinghamshire County Council,1111/1001,Adult Social Care and Health,ASCH,Transport Related,CBA,11/08/2014,05-11057,3432.88,F & J Marriott T/A Unity Coaches,,,,,,,,,,,
Nottinghamshire County Council,1111/1001,Adult Social Care and Health,ASCH,Transport Related,CBA,11/08/2014,05-11058,3573.7,F & J Marriott T/A Unity Coaches,,,,,,,,,,,
Nottinghamshire County Council,1111/1001,Adult Social Care and Health,ASCH,Transport Related,CBA,11/08/2014,05-11060,3753.5,Vallances Coaches,,,,,,,,,,,
Nottinghamshire County Council,1111/1001,Adult Social Care and Health,ASCH,Transport Related,CBA,15/08/2014,05-15419,3733.13,Mct Uk Ltd,,,,,,,,,,,
Nottinghamshire County Council,1111/1001,Adult Social Care and Health,ASCH,Transport Related,CCA,04/08/2014,05-10166,700,Bridges Transport Services,,,,,,,,,,,
Nottinghamshire County Council,1111/1001,Adult Social Care and Health,ASCH,Transport Related,CCA,06/08/2014,05-10629,774.35,Erewash Community Transport,,,,,,,,,,,
Nottinghamshire County Council,1111/1001,Adult Social Care and Health,ASCH,Transport Related,CCA,06/08/2014,05-10667,765,Town Cars (UK) Ltd,,,,,,,,,,,
Nottinghamshire County Council,1111/1001,Adult Social Care and Health,ASCH,Transport Related,CCA,11/08/2014,05-11035,703.8,Central Cars Nottm Ltd,,,,,,,,,,,
Nottinghamshire County Council,1111/1001,Adult Social Care and Health,ASCH,Transport Related,CCA,11/08/2014,05-11042,729.9,SJW (Muskham) Ltd T/A Z Cars,,,,,,,,,,,
Nottinghamshire County Council,1111/1001,Adult Social Care and Health,ASCH,Transport Related,CCA,11/08/2014,05-11050,131.03,D G Private Hire Ltd,,,,,,,,,,,
Nottinghamshire County Council,1111/1001,Adult Social Care and Health,ASCH,Transport Related,CCA,11/08/2014,05-11077,1150.56,Abacus Cars,,,,,,,,,,,
Nottinghamshire County Council,1111/1001,Adult Social Care and Health,ASCH,Transport Related,CCA,11/08/2014,05-11080,560,Abacus Cars,,,,,,,,,,,
Nottinghamshire County Council,1111/1001,Adult Social Care and Health,ASCH,Transport Related,CCA,15/08/2014,05-15433,1539,P & P Taxis,,,,,,,,,,,
Nottinghamshire County Council,1111/1001,Adult Social Care and Health,ASCH,Transport Related,CDA,04/08/2014,05-10130,511,CBC Taxis Ltd,,,,,,,,,,,
Nottinghamshire County Council,1111/1001,Adult Social Care and Health,ASCH,Transport Related,CDA,04/08/2014,05-10160,1120,Bridges Transport Services,,,,,,,,,,,
Nottinghamshire County Council,1111/1001,Adult Social Care and Health,ASCH,Transport Related,CDA,04/08/2014,05-10161,750,Bridges Transport Services,,,,,,,,,,,
Nottinghamshire County Council,1111/1001,Adult Social Care and Health,ASCH,Transport Related,CDA,04/08/2014,05-10162,3629.17,Bridges Transport Services,,,,,,,,,,,
Nottinghamshire County Council,1111/1001,Adult Social Care and Health,ASCH,Transport Related,CDA,04/08/2014,05-10163,2242.27,Bridges Transport Services,,,,,,,,,,,
Nottinghamshire County Council,1111/1001,Adult Social Care and Health,ASCH,Transport Related,CDA,04/08/2014,05-10164,950,Bridges Transport Services,,,,,,,,,,,
Nottinghamshire County Council,1111/1001,Adult Social Care and Health,ASCH,Transport Related,CDA,04/08/2014,05-10165,1380,Bridges Transport Services,,,,,,,,,,,
Nottinghamshire County Council,1111/1001,Adult Social Care and Health,ASCH,Transport Related,CDA,04/08/2014,05-10167,1380,Bridges Transport Services,,,,,,,,,,,
Nottinghamshire County Council,1111/1001,Adult Social Care and Health,ASCH,Transport Related,CDA,04/08/2014,05-10168,630,Bridges Transport Services,,,,,,,,,,,
Nottinghamshire County Council,1111/1001,Adult Social Care and Health,ASCH,Transport Related,CDA,04/08/2014,05-10181,515.35,Fozcabs Newark Taxis,,,,,,,,,,,
Nottinghamshire County Council,1111/1001,Adult Social Care and Health,ASCH,Transport Related,CDA,04/08/2014,05-10182,2777.94,Hawkins Taxis & Transport,,,,,,,,,,,
Nottinghamshire County Council,1111/1001,Adult Social Care and Health,ASCH,Transport Related,CDA,04/08/2014,05-10183,2605.9,Midfield Travel,,,,,,,,,,,
Nottinghamshire County Council,1111/1001,Adult Social Care and Health,ASCH,Transport Related,CDA,04/08/2014,05-10188,598.8,D G Private Hire Ltd,,,,,,,,,,,
Nottinghamshire County Council,1111/1001,Adult Social Care and Health,ASCH,Transport Related,CDA,04/08/2014,05-10191,502,D G Private Hire Ltd,,,,,,,,,,,
Nottinghamshire County Council,1111/1001,Adult Social Care and Health,ASCH,Transport Related,CDA,04/08/2014,05-10207,302.32,Aj Travel,,,,,,,,,,,
Nottinghamshire County Council,1111/1001,Adult Social Care and Health,ASCH,Transport Related,CDA,06/08/2014,05-10616,769.35,CBC Taxis Ltd,,,,,,,,,,,
Nottinghamshire County Council,1111/1001,Adult Social Care and Health,ASCH,Transport Related,CDA,06/08/2014,05-10617,832.34,CBC Taxis Ltd,,,,,,,,,,,
Nottinghamshire County Council,1111/1001,Adult Social Care and Health,ASCH,Transport Related,CDA,06/08/2014,05-10618,1053.72,CBC Taxis Ltd,,,,,,,,,,,
Nottinghamshire County Council,1111/1001,Adult Social Care and Health,ASCH,Transport Related,CDA,06/08/2014,05-10620,663.3,Ace Of Mansfield Ltd,,,,,,,,,,,
Nottinghamshire County Council,1111/1001,Adult Social Care and Health,ASCH,Transport Related,CDA,06/08/2014,05-10623,710.92,Ace Of Mansfield Ltd,,,,,,,,,,,
Nottinghamshire County Council,1111/1001,Adult Social Care and Health,ASCH,Transport Related,CDA,06/08/2014,05-10624,876,Ace Of Mansfield Ltd,,,,,,,,,,,
Nottinghamshire County Council,1111/1001,Adult Social Care and Health,ASCH,Transport Related,CDA,06/08/2014,05-10625,510,Ace Of Mansfield Ltd,,,,,,,,,,,
Nottinghamshire County Council,1111/1001,Adult Social Care and Health,ASCH,Transport Related,CDA,06/08/2014,05-10626,702,Alpha Cars,,,,,,,,,,,
Nottinghamshire County Council,1111/1001,Adult Social Care and Health,ASCH,Transport Related,CDA,06/08/2014,05-10645,779.52,Shelleys Taxis Ltd,,,,,,,,,,,
Nottinghamshire County Council,1111/1001,Adult Social Care and Health,ASCH,Transport Related,CDA,06/08/2014,05-10646,519.87,Aaeron Cars,,,,,,,,,,,
Nottinghamshire County Council,1111/1001,Adult Social Care and Health,ASCH,Transport Related,CDA,06/08/2014,05-10647,605.24,Aaeron Cars,,,,,,,,,,,
Nottinghamshire County Council,1111/1001,Adult Social Care and Health,ASCH,Transport Related,CDA,06/08/2014,05-10651,1101.6,Beechwood Taxis,,,,,,,,,,,
Nottinghamshire County Council,1111/1001,Adult Social Care and Health,ASCH,Transport Related,CDA,06/08/2014,05-10668,1751.95,Town Cars (UK) Ltd,,,,,,,,,,,
Nottinghamshire County Council,1111/1001,Adult Social Care and Health,ASCH,Transport Related,CDA,11/08/2014,05-11027,1110.5,Southside Cars,,,,,,,,,,,
Nottinghamshire County Council,1111/1001,Adult Social Care and Health,ASCH,Transport Related,CDA,11/08/2014,05-11044,1452.6,Acorn Contracts,,,,,,,,,,,
Nottinghamshire County Council,1111/1001,Adult Social Care and Health,ASCH,Transport Related,CDA,11/08/2014,05-11058,383.44,F & J Marriott T/A Unity Coaches,,,,,,,,,,,
Nottinghamshire County Council,1111/1001,Adult Social Care and Health,ASCH,Transport Related,CDA,11/08/2014,05-11072,920,Abacus Cars,,,,,,,,,,,
Nottinghamshire County Council,1111/1001,Adult Social Care and Health,ASCH,Transport Related,CDA,11/08/2014,05-11073,971.04,Abacus Cars,,,,,,,,,,,
Nottinghamshire County Council,1111/1001,Adult Social Care and Health,ASCH,Transport Related,CDA,11/08/2014,05-11074,1597.32,Abacus Cars,,,,,,,,,,,
Nottinghamshire County Council,1111/1001,Adult Social Care and Health,ASCH,Transport Related,CDA,11/08/2014,05-11075,800,Abacus Cars,,,,,,,,,,,
Nottinghamshire County Council,1111/1001,Adult Social Care and Health,ASCH,Transport Related,CDA,11/08/2014,05-11076,587.52,Abacus Cars,,,,,,,,,,,
Nottinghamshire County Council,1111/1001,Adult Social Care and Health,ASCH,Transport Related,CDA,11/08/2014,05-11078,524.28,Abacus Cars,,,,,,,,,,,
Nottinghamshire County Council,1111/1001,Adult Social Care and Health,ASCH,Transport Related,CDA,11/08/2014,05-11079,2111.4,Abacus Cars,,,,,,,,,,,
Nottinghamshire County Council,1111/1001,Adult Social Care and Health,ASCH,Transport Related,CDA,11/08/2014,05-11081,571.2,Abacus Cars,,,,,,,,,,,
Nottinghamshire County Council,1111/1001,Adult Social Care and Health,ASCH,Transport Related,CDA,11/08/2014,05-11087,863.6,Abacus Cars,,,,,,,,,,,
Nottinghamshire County Council,1111/1001,Adult Social Care and Health,ASCH,Transport Related,CDA,11/08/2014,05-11183,1471.11,In Taxis,,,,,,,,,,,
Nottinghamshire County Council,1111/1001,Adult Social Care and Health,ASCH,Transport Related,CDA,11/08/2014,05-11184,2300,[Redacted],,,,,,,,,,,
Nottinghamshire County Council,1111/1001,Adult Social Care and Health,ASCH,Transport Related,CDA,15/08/2014,05-15416,517,Cabline Uk Ltd,,,,,,,,,,,
Nottinghamshire County Council,1111/1001,Adult Social Care and Health,ASCH,Transport Related,CDA,15/08/2014,05-15431,855,P & P Taxis,,,,,,,,,,,
Nottinghamshire County Council,1111/1001,Adult Social Care and Health,ASCH,Transport Related,CDA,18/08/2014,05-15485,1155.44,Srcl Ltd,,,,,,,,,,,
Nottinghamshire County Council,1111/1001,Adult Social Care and Health,ASCH,Transport Related,CDA,18/08/2014,05-15486,1200.57,Srcl Ltd,,,,,,,,,,,
Nottinghamshire County Council,1111/1001,Adult Social Care and Health,ASCH,Transport Related,CDA,18/08/2014,05-15488,1399.86,Srcl Ltd,,,,,,,,,,,
Nottinghamshire County Council,1111/1001,Adult Social Care and Health,ASCH,Supplies & Services,DAA,01/08/2014,05-16426,1491,Tunstall Healthcare Uk Ltd,,,,,,,,,,,
Nottinghamshire County Council,1111/1001,Adult Social Care and Health,ASCH,Supplies & Services,DAA,08/08/2014,05-16413,258,County Supplies (NCC),,,,,,,,,,,
Nottinghamshire County Council,1111/1001,Adult Social Care and Health,ASCH,Supplies & Services,DAA,08/08/2014,05-16424,22.5,County Supplies (NCC),,,,,,,,,,,
Nottinghamshire County Council,1111/1001,Adult Social Care and Health,ASCH,Supplies & Services,DAA,22/08/2014,05-15994,45,Midland Landfill Ltd,,,,,,,,,,,
Nottinghamshire County Council,1111/1001,Adult Social Care and Health,ASCH,Supplies & Services,DAA,29/08/2014,05-15234,50377.16,British Red Cross Society,,,,,,,,,,,
Nottinghamshire County Council,1111/1001,Adult Social Care and Health,ASCH,Supplies & Services,DAA,29/08/2014,05-15949,404116.82,British Red Cross Society,,,,,,,,,,,
Nottinghamshire County Council,1111/1001,Adult Social Care and Health,ASCH,Supplies & Services,DBA,04/08/2014,05-10273,5252.36,M Maloney Country Butchers & B Ltd,,,,,,,,,,,
Nottinghamshire County Council,1111/1001,Adult Social Care and Health,ASCH,Supplies & Services,DBA,06/08/2014,05-10802,1406.83,Hallam Country Fresh Foods Ltd,,,,,,,,,,,
Nottinghamshire County Council,1111/1001,Adult Social Care and Health,ASCH,Supplies & Services,DBA,06/08/2014,05-10806,1531.57,Hallam Country Fresh Foods Ltd,,,,,,,,,,,
Nottinghamshire County Council,1111/1001,Adult Social Care and Health,ASCH,Supplies & Services,DBA,08/08/2014,05-10969,1291.05,Brake Bros Ltd,,,,,,,,,,,
Nottinghamshire County Council,1111/1001,Adult Social Care and Health,ASCH,Supplies & Services,DBA,08/08/2014,05-10972,2629.12,Brake Bros Ltd,,,,,,,,,,,
Nottinghamshire County Council,1111/1001,Adult Social Care and Health,ASCH,Supplies & Services,DBA,08/08/2014,05-10973,366.29,Brake Bros Ltd,,,,,,,,,,,
Nottinghamshire County Council,1111/1001,Adult Social Care and Health,ASCH,Supplies & Services,DBA,08/08/2014,05-10977,3048.84,Brake Bros Ltd,,,,,,,,,,,
Nottinghamshire County Council,1111/1001,Adult Social Care and Health,ASCH,Supplies & Services,DBA,11/08/2014,05-11019,1038.6,Arnold Dairies Ltd,,,,,,,,,,,
Nottinghamshire County Council,1111/1001,Adult Social Care and Health,ASCH,Supplies & Services,DBA,12/08/2014,05-15100,939.83,Hallam Country Fresh Foods Ltd,,,,,,,,,,,
Nottinghamshire County Council,1111/1001,Adult Social Care and Health,ASCH,Supplies & Services,DBA,13/08/2014,05-15224,4033.65,M Maloney Country Butchers & B Ltd,,,,,,,,,,,
Nottinghamshire County Council,1111/1001,Adult Social Care and Health,ASCH,Supplies & Services,DBA,18/08/2014,05-15498,5820.7,M Maloney Country Butchers & B Ltd,,,,,,,,,,,
Nottinghamshire County Council,1111/1001,Adult Social Care and Health,ASCH,Supplies & Services,DBA,18/08/2014,05-15502,2840.83,M Maloney Country Butchers & B Ltd,,,,,,,,,,,
Nottinghamshire County Council,1111/1001,Adult Social Care and Health,ASCH,Supplies & Services,DBA,18/08/2014,05-15510,1068.29,Arnold Dairies Ltd,,,,,,,,,,,
Nottinghamshire County Council,1111/1001,Adult Social Care and Health,ASCH,Supplies & Services,DBA,18/08/2014,05-15513,1062.12,Arnold Dairies Ltd,,,,,,,,,,,
Nottinghamshire County Council,1111/1001,Adult Social Care and Health,ASCH,Supplies & Services,DBA,18/08/2014,05-15520,951.96,Arnold Dairies Ltd,,,,,,,,,,,
Nottinghamshire County Council,1111/1001,Adult Social Care and Health,ASCH,Supplies & Services,DBA,18/08/2014,05-15523,143.72,Brake Bros Ltd,,,,,,,,,,,
Nottinghamshire County Council,1111/1001,Adult Social Care and Health,ASCH,Supplies & Services,DBA,18/08/2014,05-15526,1020.57,Brake Bros Ltd,,,,,,,,,,,
Nottinghamshire County Council,1111/1001,Adult Social Care and Health,ASCH,Supplies & Services,DBA,18/08/2014,05-15527,1253.95,Brake Bros Ltd,,,,,,,,,,,
Nottinghamshire County Council,1111/1001,Adult Social Care and Health,ASCH,Supplies & Services,DBA,18/08/2014,05-15528,1593.25,Brake Bros Ltd,,,,,,,,,,,
Nottinghamshire County Council,1111/1001,Adult Social Care and Health,ASCH,Supplies & Services,DBA,18/08/2014,05-15531,1892.29,Brake Bros Ltd,,,,,,,,,,,
Nottinghamshire County Council,1111/1001,Adult Social Care and Health,ASCH,Supplies & Services,DBA,18/08/2014,05-15536,721.52,Brake Bros Ltd,,,,,,,,,,,
Nottinghamshire County Council,1111/1001,Adult Social Care and Health,ASCH,Supplies & Services,DBA,20/08/2014,05-15852,855.97,Hallam Country Fresh Foods Ltd,,,,,,,,,,,
Nottinghamshire County Council,1111/1001,Adult Social Care and Health,ASCH,Supplies & Services,DBA,22/08/2014,05-15961,1488.36,Brake Bros Ltd,,,,,,,,,,,
Nottinghamshire County Council,1111/1001,Adult Social Care and Health,ASCH,Supplies & Services,DBA,22/08/2014,05-15962,201.64,Brake Bros Ltd,,,,,,,,,,,
Nottinghamshire County Council,1111/1001,Adult Social Care and Health,ASCH,Supplies & Services,DBA,22/08/2014,05-15996,822.59,Brake Bros Ltd,,,,,,,,,,,
Nottinghamshire County Council,1111/1001,Adult Social Care and Health,ASCH,Supplies & Services,DBA,22/08/2014,05-15999,2558.76,Brake Bros Ltd,,,,,,,,,,,
Nottinghamshire County Council,1111/1001,Adult Social Care and Health,ASCH,Supplies & Services,DBA,22/08/2014,05-16002,537.45,Brake Bros Ltd,,,,,,,,,,,
Nottinghamshire County Council,1111/1001,Adult Social Care and Health,ASCH,Supplies & Services,DBA,22/08/2014,05-16006,672.32,Brake Bros Ltd,,,,,,,,,,,
Nottinghamshire County Council,1111/1001,Adult Social Care and Health,ASCH,Supplies & Services,DBA,26/08/2014,05-16059,962.27,Arnold Dairies Ltd,,,,,,,,,,,
Nottinghamshire County Council,1111/1001,Adult Social Care and Health,ASCH,Supplies & Services,DBA,28/08/2014,05-16261,4255.44,M Maloney Country Butchers & B Ltd,,,,,,,,,,,
Nottinghamshire County Council,1111/1001,Adult Social Care and Health,ASCH,Supplies & Services,DBA,28/08/2014,05-16265,1608.26,Hallam Country Fresh Foods Ltd,,,,,,,,,,,
Nottinghamshire County Council,1111/1001,Adult Social Care and Health,ASCH,Supplies & Services,DBA,28/08/2014,05-16269,1611.32,Brake Bros Ltd,,,,,,,,,,,
Nottinghamshire County Council,1111/1001,Adult Social Care and Health,ASCH,Supplies & Services,DBA,28/08/2014,05-16270,2023.46,Brake Bros Ltd,,,,,,,,,,,
Nottinghamshire County Council,1111/1001,Adult Social Care and Health,ASCH,Supplies & Services,DBA,28/08/2014,05-16273,195.87,Brake Bros Ltd,,,,,,,,,,,
Nottinghamshire County Council,1111/1001,Adult Social Care and Health,ASCH,Supplies & Services,DBA,28/08/2014,05-16276,879.63,Brake Bros Ltd,,,,,,,,,,,
Nottinghamshire County Council,1111/1001,Adult Social Care and Health,ASCH,Supplies & Services,DBA,28/08/2014,05-16279,974.79,Brake Bros Ltd,,,,,,,,,,,
Nottinghamshire County Council,1111/1001,Adult Social Care and Health,ASCH,Supplies & Services,DBA,28/08/2014,05-16280,113.48,Brake Bros Ltd,,,,,,,,,,,
Nottinghamshire County Council,1111/1001,Adult Social Care and Health,ASCH,Supplies & Services,DKA,29/08/2014,05-15234,3610.1,British Red Cross Society,,,,,,,,,,,
Nottinghamshire County Council,1111/1001,Adult Social Care and Health,ASCH,Supplies & Services,DKA,29/08/2014,05-15949,70613.03,British Red Cross Society,,,,,,,,,,,
Nottinghamshire County Council,1111/1001,Adult Social Care and Health,ASCH,Third Party Payments,EAA,08/08/2014,05-16463,5000,In Control Partnerships,,,,,,,,,,,
Nottinghamshire County Council,1111/1001,Adult Social Care and Health,ASCH,Third Party Payments,EBA,14/08/2014,05-15348,29669.75,Ashfield District Council,,,,,,,,,,,
Nottinghamshire County Council,1111/1001,Adult Social Care and Health,ASCH,Third Party Payments,EBA,14/08/2014,05-15349,34352.27,Bassetlaw District Council,,,,,,,,,,,
Nottinghamshire County Council,1111/1001,Adult Social Care and Health,ASCH,Third Party Payments,EBA,14/08/2014,05-15350,24231.69,Newark & Sherwood District Council,,,,,,,,,,,
Nottinghamshire County Council,1111/1001,Adult Social Care and Health,ASCH,Third Party Payments,EBA,14/08/2014,05-15352,53872.68,Mansfield District Council,,,,,,,,,,,
Nottinghamshire County Council,1111/1001,Adult Social Care and Health,ASCH,Third Party Payments,EBA,14/08/2014,05-15353,29986.24,Broxtowe Borough Council,,,,,,,,,,,
Nottinghamshire County Council,1111/1001,Adult Social Care and Health,ASCH,Third Party Payments,EBA,14/08/2014,05-15354,1719.15,Nene Housing Society Limited,,,,,,,,,,,
Nottinghamshire County Council,1111/1001,Adult Social Care and Health,ASCH,Third Party Payments,EBA,14/08/2014,05-15355,11767.74,Home Group Limited,,,,,,,,,,,
Nottinghamshire County Council,1111/1001,Adult Social Care and Health,ASCH,Third Party Payments,EBA,14/08/2014,05-15357,923.43,East Midlands Housing,,,,,,,,,,,
Nottinghamshire County Council,1111/1001,Adult Social Care and Health,ASCH,Third Party Payments,EBA,14/08/2014,05-15358,9320,Aspirations (Midlands) Ltd,,,,,,,,,,,
Nottinghamshire County Council,1111/1001,Adult Social Care and Health,ASCH,Third Party Payments,EBA,14/08/2014,05-15359,907.11,Longhurst Housing Ltd,,,,,,,,,,,
Nottinghamshire County Council,1111/1001,Adult Social Care and Health,ASCH,Third Party Payments,EBA,14/08/2014,05-15361,1644.84,De Montfort Housing Association,,,,,,,,,,,
Nottinghamshire County Council,1111/1001,Adult Social Care and Health,ASCH,Third Party Payments,EBA,14/08/2014,05-15362,1080,Reach Housing Gloria Miller,,,,,,,,,,,
Nottinghamshire County Council,1111/1001,Adult Social Care and Health,ASCH,Third Party Payments,EBA,14/08/2014,05-15363,5096,Metropolitan Support Trust,,,,,,,,,,,
Nottinghamshire County Council,1111/1001,Adult Social Care and Health,ASCH,Third Party Payments,EBA,14/08/2014,05-15365,44595.56,Royal Society Mencap,,,,,,,,,,,
Nottinghamshire County Council,1111/1001,Adult Social Care and Health,ASCH,Third Party Payments,EBA,14/08/2014,05-15366,756.14,Sanctuary Housing Association,,,,,,,,,,,
Nottinghamshire County Council,1111/1001,Adult Social Care and Health,ASCH,Third Party Payments,EBA,14/08/2014,05-15367,1208.62,Nottingham City Homes,,,,,,,,,,,
Nottinghamshire County Council,1111/1001,Adult Social Care and Health,ASCH,Third Party Payments,EBA,14/08/2014,05-15368,19485.39,Metropolitan Support Trust,,,,,,,,,,,
Nottinghamshire County Council,1111/1001,Adult Social Care and Health,ASCH,Third Party Payments,EBA,14/08/2014,05-15370,67113.41,Eden Supported Living Ltd,,,,,,,,,,,
Nottinghamshire County Council,1111/1001,Adult Social Care and Health,ASCH,Third Party Payments,EBA,14/08/2014,05-15371,1111.47,United Charities Of Abel Collin,,,,,,,,,,,
Nottinghamshire County Council,1111/1001,Adult Social Care and Health,ASCH,Third Party Payments,EBA,14/08/2014,05-15372,2920,Care UK Learning Disabilities Servi,,,,,,,,,,,
Nottinghamshire County Council,1111/1001,Adult Social Care and Health,ASCH,Third Party Payments,EBA,14/08/2014,05-15373,2160,Oakdale Ozier Ltd,,,,,,,,,,,
Nottinghamshire County Council,1111/1001,Adult Social Care and Health,ASCH,Third Party Payments,EBA,14/08/2014,05-15374,378448.54,Framework Housing Association,,,,,,,,,,,
Nottinghamshire County Council,1111/1001,Adult Social Care and Health,ASCH,Third Party Payments,EBA,14/08/2014,05-15376,5304.23,Nottingham Community Housing,,,,,,,,,,,
Nottinghamshire County Council,1111/1001,Adult Social Care and Health,ASCH,Third Party Payments,EBA,14/08/2014,05-15378,4440,Fitzroy,,,,,,,,,,,
Nottinghamshire County Council,1111/1001,Adult Social Care and Health,ASCH,Third Party Payments,EBA,14/08/2014,05-15379,16087.92,Lifeways Community Care Ltd,,,,,,,,,,,
Nottinghamshire County Council,1111/1001,Adult Social Care and Health,ASCH,Third Party Payments,EBA,14/08/2014,05-15380,3647.4,ASRA Housing Association,,,,,,,,,,,
Nottinghamshire County Council,1111/1001,Adult Social Care and Health,ASCH,Third Party Payments,EBA,14/08/2014,05-15382,4800,Voyage Ltd,,,,,,,,,,,
Nottinghamshire County Council,1111/1001,Adult Social Care and Health,ASCH,Third Party Payments,EBA,14/08/2014,05-15383,1187.63,Housing 21,,,,,,,,,,,
Nottinghamshire County Council,1111/1001,Adult Social Care and Health,ASCH,Third Party Payments,EBA,14/08/2014,05-15384,26081.8,Thera East Midlands,,,,,,,,,,,
Nottinghamshire County Council,1111/1001,Adult Social Care and Health,ASCH,Third Party Payments,EBA,14/08/2014,05-15385,14800,Choice Support,,,,,,,,,,,
Nottinghamshire County Council,1111/1001,Adult Social Care and Health,ASCH,Third Party Payments,EBA,14/08/2014,05-15386,10827.25,Jigsaw Support Scheme,,,,,,,,,,,
Nottinghamshire County Council,1111/1001,Adult Social Care and Health,ASCH,Third Party Payments,EBA,14/08/2014,05-15387,12040,United Response,,,,,,,,,,,
Nottinghamshire County Council,1111/1001,Adult Social Care and Health,ASCH,Third Party Payments,EBA,14/08/2014,05-15388,1840,Heritage Care,,,,,,,,,,,
Nottinghamshire County Council,1111/1001,Adult Social Care and Health,ASCH,Third Party Payments,EBA,14/08/2014,05-15389,2360,Real Life Options,,,,,,,,,,,
Nottinghamshire County Council,1111/1001,Adult Social Care and Health,ASCH,Third Party Payments,EBA,14/08/2014,05-15390,22505.13,Gedling Homes,,,,,,,,,,,
Nottinghamshire County Council,1111/1001,Adult Social Care and Health,ASCH,Third Party Payments,EBA,14/08/2014,05-15391,7561.2,NCHA Ltd,,,,,,,,,,,
Nottinghamshire County Council,1111/1001,Adult Social Care and Health,ASCH,Third Party Payments,EBA,22/08/2014,05-15360,1280,Advance Housing & Support Ltd,,,,,,,,,,,
Nottinghamshire County Council,1111/1001,Adult Social Care and Health,ASCH,Third Party Payments,ECA,04/08/2014,05-10283,475.24,Ashcroft,,,,,,,,,,,
Nottinghamshire County Council,1111/1001,Adult Social Care and Health,ASCH,Third Party Payments,ECA,04/08/2014,05-10285,712.86,Kingsthorpe View Nursing Home,,,,,,,,,,,
Nottinghamshire County Council,1111/1001,Adult Social Care and Health,ASCH,Third Party Payments,ECA,04/08/2014,05-10291,221.78,Avalon Nursing Home,,,,,,,,,,,
Nottinghamshire County Council,1111/1001,Adult Social Care and Health,ASCH,Third Party Payments,ECA,04/08/2014,05-10294,269.3,Silverwood Care Home,,,,,,,,,,,
Nottinghamshire County Council,1111/1001,Adult Social Care and Health,ASCH,Third Party Payments,ECA,04/08/2014,05-10296,617.82,Charnwood House,,,,,,,,,,,
Nottinghamshire County Council,1111/1001,Adult Social Care and Health,ASCH,Third Party Payments,ECA,04/08/2014,05-10298,221.78,Berry Hill Park,,,,,,,,,,,
Nottinghamshire County Council,1111/1001,Adult Social Care and Health,ASCH,Third Party Payments,ECA,04/08/2014,05-10305,522.77,Countrywide Care Homes Ltd T/A Gate,,,,,,,,,,,
Nottinghamshire County Council,1111/1001,Adult Social Care and Health,ASCH,Third Party Payments,ECA,04/08/2014,05-10307,110.89,Red Rose Nursing Home,,,,,,,,,,,
Nottinghamshire County Council,1111/1001,Adult Social Care and Health,ASCH,Third Party Payments,ECA,04/08/2014,05-10310,-205.94,Adbolton Hall Nursing Home,,,,,,,,,,,
Nottinghamshire County Council,1111/1001,Adult Social Care and Health,ASCH,Third Party Payments,ECA,04/08/2014,05-10342,110.89,Jubilee Court Nursing Home,,,,,,,,,,,
Nottinghamshire County Council,1111/1001,Adult Social Care and Health,ASCH,Third Party Payments,ECA,06/08/2014,05-10697,776.23,Wren Hall Nursing Home,,,,,,,,,,,
Nottinghamshire County Council,1111/1001,Adult Social Care and Health,ASCH,Third Party Payments,ECA,06/08/2014,05-10700,2419.34,Balmore Country House,,,,,,,,,,,
Nottinghamshire County Council,1111/1001,Adult Social Care and Health,ASCH,Third Party Payments,ECA,06/08/2014,05-10706,665.34,Lound Hall Nursing Home,,,,,,,,,,,
Nottinghamshire County Council,1111/1001,Adult Social Care and Health,ASCH,Third Party Payments,ECA,06/08/2014,05-10708,506.93,Ernhale Lodge Nursing Home,,,,,,,,,,,
Nottinghamshire County Council,1111/1001,Adult Social Care and Health,ASCH,Third Party Payments,ECA,06/08/2014,05-10715,411.88,Lancaster Grange Newark,,,,,,,,,,,
Nottinghamshire County Council,1111/1001,Adult Social Care and Health,ASCH,Third Party Payments,ECA,12/08/2014,05-11203,823.75,Bramcote Hills Care Home,,,,,,,,,,,
Nottinghamshire County Council,1111/1001,Adult Social Care and Health,ASCH,Third Party Payments,ECA,12/08/2014,05-11211,443.56,Bramcote Hills Care Home,,,,,,,,,,,
Nottinghamshire County Council,1111/1001,Adult Social Care and Health,ASCH,Third Party Payments,ECA,12/08/2014,05-11213,443.56,Bramcote Hills Care Home,,,,,,,,,,,
Nottinghamshire County Council,1111/1001,Adult Social Care and Health,ASCH,Third Party Payments,ECA,12/08/2014,05-11224,443.56,The Grange Nursing Home,,,,,,,,,,,
Nottinghamshire County Council,1111/1001,Adult Social Care and Health,ASCH,Third Party Payments,ECA,12/08/2014,05-11227,443.56,The Grange Nursing Home,,,,,,,,,,,
Nottinghamshire County Council,1111/1001,Adult Social Care and Health,ASCH,Third Party Payments,ECA,12/08/2014,05-11231,443.56,The Grange Nursing Home,,,,,,,,,,,
Nottinghamshire County Council,1111/1001,Adult Social Care and Health,ASCH,Third Party Payments,ECA,12/08/2014,05-11235,443.56,The Grange Nursing Home,,,,,,,,,,,
Nottinghamshire County Council,1111/1001,Adult Social Care and Health,ASCH,Third Party Payments,ECA,12/08/2014,05-11237,443.56,The Grange Nursing Home,,,,,,,,,,,
Nottinghamshire County Council,1111/1001,Adult Social Care and Health,ASCH,Third Party Payments,ECA,12/08/2014,05-11239,443.56,The Grange Nursing Home,,,,,,,,,,,
Nottinghamshire County Council,1111/1001,Adult Social Care and Health,ASCH,Third Party Payments,ECA,12/08/2014,05-11270,443.56,Ashcroft,,,,,,,,,,,
Nottinghamshire County Council,1111/1001,Adult Social Care and Health,ASCH,Third Party Payments,ECA,12/08/2014,05-11272,443.56,Ashcroft,,,,,,,,,,,
Nottinghamshire County Council,1111/1001,Adult Social Care and Health,ASCH,Third Party Payments,ECA,12/08/2014,05-11275,443.56,Ashcroft,,,,,,,,,,,
Nottinghamshire County Council,1111/1001,Adult Social Care and Health,ASCH,Third Party Payments,ECA,12/08/2014,05-11277,443.56,Ashcroft,,,,,,,,,,,
Nottinghamshire County Council,1111/1001,Adult Social Care and Health,ASCH,Third Party Payments,ECA,12/08/2014,05-11280,443.56,Ashcroft,,,,,,,,,,,
Nottinghamshire County Council,1111/1001,Adult Social Care and Health,ASCH,Third Party Payments,ECA,12/08/2014,05-11286,443.56,Ashcroft,,,,,,,,,,,
Nottinghamshire County Council,1111/1001,Adult Social Care and Health,ASCH,Third Party Payments,ECA,12/08/2014,05-11288,443.56,Ashcroft,,,,,,,,,,,
Nottinghamshire County Council,1111/1001,Adult Social Care and Health,ASCH,Third Party Payments,ECA,12/08/2014,05-11290,443.56,Ashcroft,,,,,,,,,,,
Nottinghamshire County Council,1111/1001,Adult Social Care and Health,ASCH,Third Party Payments,ECA,12/08/2014,05-11296,443.56,Ashcroft,,,,,,,,,,,
Nottinghamshire County Council,1111/1001,Adult Social Care and Health,ASCH,Third Party Payments,ECA,12/08/2014,05-11299,443.56,Ashcroft,,,,,,,,,,,
Nottinghamshire County Council,1111/1001,Adult Social Care and Health,ASCH,Third Party Payments,ECA,12/08/2014,05-11302,443.56,Ashcroft,,,,,,,,,,,
Nottinghamshire County Council,1111/1001,Adult Social Care and Health,ASCH,Third Party Payments,ECA,12/08/2014,05-11304,443.56,Ashcroft,,,,,,,,,,,
Nottinghamshire County Council,1111/1001,Adult Social Care and Health,ASCH,Third Party Payments,ECA,12/08/2014,05-11307,1172.27,Kingsthorpe View Nursing Home,,,,,,,,,,,
Nottinghamshire County Council,1111/1001,Adult Social Care and Health,ASCH,Third Party Payments,ECA,12/08/2014,05-11311,443.56,Kingsthorpe View Nursing Home,,,,,,,,,,,
Nottinghamshire County Council,1111/1001,Adult Social Care and Health,ASCH,Third Party Payments,ECA,12/08/2014,05-11316,443.56,Kingsthorpe View Nursing Home,,,,,,,,,,,
Nottinghamshire County Council,1111/1001,Adult Social Care and Health,ASCH,Third Party Payments,ECA,12/08/2014,05-11326,443.56,Beauvale Nursing Home,,,,,,,,,,,
Nottinghamshire County Council,1111/1001,Adult Social Care and Health,ASCH,Third Party Payments,ECA,12/08/2014,05-11328,443.56,Beauvale Nursing Home,,,,,,,,,,,
Nottinghamshire County Council,1111/1001,Adult Social Care and Health,ASCH,Third Party Payments,ECA,12/08/2014,05-11332,443.56,Beauvale Nursing Home,,,,,,,,,,,
Nottinghamshire County Council,1111/1001,Adult Social Care and Health,ASCH,Third Party Payments,ECA,12/08/2014,05-11335,1299,Beauvale Nursing Home,,,,,,,,,,,
Nottinghamshire County Council,1111/1001,Adult Social Care and Health,ASCH,Third Party Payments,ECA,12/08/2014,05-11337,443.56,Beauvale Nursing Home,,,,,,,,,,,
Nottinghamshire County Council,1111/1001,Adult Social Care and Health,ASCH,Third Party Payments,ECA,12/08/2014,05-11339,443.56,Beauvale Nursing Home,,,,,,,,,,,
Nottinghamshire County Council,1111/1001,Adult Social Care and Health,ASCH,Third Party Payments,ECA,12/08/2014,05-11341,443.56,Beauvale Nursing Home,,,,,,,,,,,
Nottinghamshire County Council,1111/1001,Adult Social Care and Health,ASCH,Third Party Payments,ECA,12/08/2014,05-11343,443.56,Beauvale Nursing Home,,,,,,,,,,,
Nottinghamshire County Council,1111/1001,Adult Social Care and Health,ASCH,Third Party Payments,ECA,12/08/2014,05-11345,443.56,Beauvale Nursing Home,,,,,,,,,,,
Nottinghamshire County Council,1111/1001,Adult Social Care and Health,ASCH,Third Party Payments,ECA,12/08/2014,05-11348,443.56,Beauvale Nursing Home,,,,,,,,,,,
Nottinghamshire County Council,1111/1001,Adult Social Care and Health,ASCH,Third Party Payments,ECA,12/08/2014,05-11350,443.56,Beauvale Nursing Home,,,,,,,,,,,
Nottinghamshire County Council,1111/1001,Adult Social Care and Health,ASCH,Third Party Payments,ECA,12/08/2014,05-11353,443.56,Beauvale Nursing Home,,,,,,,,,,,
Nottinghamshire County Council,1111/1001,Adult Social Care and Health,ASCH,Third Party Payments,ECA,12/08/2014,05-11366,443.56,Avalon Nursing Home,,,,,,,,,,,
Nottinghamshire County Council,1111/1001,Adult Social Care and Health,ASCH,Third Party Payments,ECA,12/08/2014,05-11369,443.56,Avalon Nursing Home,,,,,,,,,,,
Nottinghamshire County Council,1111/1001,Adult Social Care and Health,ASCH,Third Party Payments,ECA,12/08/2014,05-11373,443.56,Avalon Nursing Home,,,,,,,,,,,
Nottinghamshire County Council,1111/1001,Adult Social Care and Health,ASCH,Third Party Payments,ECA,12/08/2014,05-11375,443.56,Avalon Nursing Home,,,,,,,,,,,
Nottinghamshire County Council,1111/1001,Adult Social Care and Health,ASCH,Third Party Payments,ECA,12/08/2014,05-11377,221.78,Avalon Nursing Home,,,,,,,,,,,
Nottinghamshire County Council,1111/1001,Adult Social Care and Health,ASCH,Third Party Payments,ECA,12/08/2014,05-11379,443.56,Avalon Nursing Home,,,,,,,,,,,
Nottinghamshire County Council,1111/1001,Adult Social Care and Health,ASCH,Third Party Payments,ECA,12/08/2014,05-11385,443.56,Avalon Nursing Home,,,,,,,,,,,
Nottinghamshire County Council,1111/1001,Adult Social Care and Health,ASCH,Third Party Payments,ECA,12/08/2014,05-11387,443.56,Avalon Nursing Home,,,,,,,,,,,
Nottinghamshire County Council,1111/1001,Adult Social Care and Health,ASCH,Third Party Payments,ECA,12/08/2014,05-11389,443.56,Avalon Nursing Home,,,,,,,,,,,
Nottinghamshire County Council,1111/1001,Adult Social Care and Health,ASCH,Third Party Payments,ECA,12/08/2014,05-11395,443.56,Silverwood Care Home,,,,,,,,,,,
Nottinghamshire County Council,1111/1001,Adult Social Care and Health,ASCH,Third Party Payments,ECA,12/08/2014,05-11398,443.56,Silverwood Care Home,,,,,,,,,,,
Nottinghamshire County Council,1111/1001,Adult Social Care and Health,ASCH,Third Party Payments,ECA,12/08/2014,05-11400,443.56,Silverwood Care Home,,,,,,,,,,,
Nottinghamshire County Council,1111/1001,Adult Social Care and Health,ASCH,Third Party Payments,ECA,12/08/2014,05-11404,443.56,Silverwood Care Home,,,,,,,,,,,
Nottinghamshire County Council,1111/1001,Adult Social Care and Health,ASCH,Third Party Payments,ECA,12/08/2014,05-11408,443.56,Silverwood Care Home,,,,,,,,,,,
Nottinghamshire County Council,1111/1001,Adult Social Care and Health,ASCH,Third Party Payments,ECA,12/08/2014,05-11412,443.56,Silverwood Care Home,,,,,,,,,,,
Nottinghamshire County Council,1111/1001,Adult Social Care and Health,ASCH,Third Party Payments,ECA,12/08/2014,05-11414,443.56,Silverwood Care Home,,,,,,,,,,,
Nottinghamshire County Council,1111/1001,Adult Social Care and Health,ASCH,Third Party Payments,ECA,12/08/2014,05-11417,443.56,Silverwood Care Home,,,,,,,,,,,
Nottinghamshire County Council,1111/1001,Adult Social Care and Health,ASCH,Third Party Payments,ECA,12/08/2014,05-11421,443.56,Silverwood Care Home,,,,,,,,,,,
Nottinghamshire County Council,1111/1001,Adult Social Care and Health,ASCH,Third Party Payments,ECA,12/08/2014,05-11423,443.56,Silverwood Care Home,,,,,,,,,,,
Nottinghamshire County Council,1111/1001,Adult Social Care and Health,ASCH,Third Party Payments,ECA,12/08/2014,05-11425,443.56,Silverwood Care Home,,,,,,,,,,,
Nottinghamshire County Council,1111/1001,Adult Social Care and Health,ASCH,Third Party Payments,ECA,12/08/2014,05-11432,443.56,Silverwood Care Home,,,,,,,,,,,
Nottinghamshire County Council,1111/1001,Adult Social Care and Health,ASCH,Third Party Payments,ECA,12/08/2014,05-11434,443.56,Silverwood Care Home,,,,,,,,,,,
Nottinghamshire County Council,1111/1001,Adult Social Care and Health,ASCH,Third Party Payments,ECA,12/08/2014,05-11436,443.56,Silverwood Care Home,,,,,,,,,,,
Nottinghamshire County Council,1111/1001,Adult Social Care and Health,ASCH,Third Party Payments,ECA,12/08/2014,05-11445,443.56,Spring Water Lodge,,,,,,,,,,,
Nottinghamshire County Council,1111/1001,Adult Social Care and Health,ASCH,Third Party Payments,ECA,12/08/2014,05-11448,443.56,Spring Water Lodge,,,,,,,,,,,
Nottinghamshire County Council,1111/1001,Adult Social Care and Health,ASCH,Third Party Payments,ECA,12/08/2014,05-11450,443.56,Spring Water Lodge,,,,,,,,,,,
Nottinghamshire County Council,1111/1001,Adult Social Care and Health,ASCH,Third Party Payments,ECA,12/08/2014,05-11454,443.56,Spring Water Lodge,,,,,,,,,,,
Nottinghamshire County Council,1111/1001,Adult Social Care and Health,ASCH,Third Party Payments,ECA,12/08/2014,05-11461,443.56,Spring Water Lodge,,,,,,,,,,,
Nottinghamshire County Council,1111/1001,Adult Social Care and Health,ASCH,Third Party Payments,ECA,12/08/2014,05-11500,443.56,Oaks Care Centre,,,,,,,,,,,
Nottinghamshire County Council,1111/1001,Adult Social Care and Health,ASCH,Third Party Payments,ECA,12/08/2014,05-11506,443.56,Oaks Care Centre,,,,,,,,,,,
Nottinghamshire County Council,1111/1001,Adult Social Care and Health,ASCH,Third Party Payments,ECA,12/08/2014,05-11508,443.56,Oaks Care Centre,,,,,,,,,,,
Nottinghamshire County Council,1111/1001,Adult Social Care and Health,ASCH,Third Party Payments,ECA,12/08/2014,05-11510,443.56,Oaks Care Centre,,,,,,,,,,,
Nottinghamshire County Council,1111/1001,Adult Social Care and Health,ASCH,Third Party Payments,ECA,12/08/2014,05-11513,443.56,Oaks Care Centre,,,,,,,,,,,
Nottinghamshire County Council,1111/1001,Adult Social Care and Health,ASCH,Third Party Payments,ECA,12/08/2014,05-11521,443.56,Oaks Care Centre,,,,,,,,,,,
Nottinghamshire County Council,1111/1001,Adult Social Care and Health,ASCH,Third Party Payments,ECA,12/08/2014,05-11526,443.56,Oaks Care Centre,,,,,,,,,,,
Nottinghamshire County Council,1111/1001,Adult Social Care and Health,ASCH,Third Party Payments,ECA,12/08/2014,05-11528,443.56,Oaks Care Centre,,,,,,,,,,,
Nottinghamshire County Council,1111/1001,Adult Social Care and Health,ASCH,Third Party Payments,ECA,12/08/2014,05-11530,443.56,Oaks Care Centre,,,,,,,,,,,
Nottinghamshire County Council,1111/1001,Adult Social Care and Health,ASCH,Third Party Payments,ECA,12/08/2014,05-11532,443.56,Oaks Care Centre,,,,,,,,,,,
Nottinghamshire County Council,1111/1001,Adult Social Care and Health,ASCH,Third Party Payments,ECA,12/08/2014,05-11537,110.89,Oaks Care Centre,,,,,,,,,,,
Nottinghamshire County Council,1111/1001,Adult Social Care and Health,ASCH,Third Party Payments,ECA,12/08/2014,05-11541,443.56,Oaks Care Centre,,,,,,,,,,,
Nottinghamshire County Council,1111/1001,Adult Social Care and Health,ASCH,Third Party Payments,ECA,12/08/2014,05-11545,443.56,Oaks Care Centre,,,,,,,,,,,
Nottinghamshire County Council,1111/1001,Adult Social Care and Health,ASCH,Third Party Payments,ECA,12/08/2014,05-11562,443.56,Charnwood House,,,,,,,,,,,
Nottinghamshire County Council,1111/1001,Adult Social Care and Health,ASCH,Third Party Payments,ECA,12/08/2014,05-11564,443.56,Charnwood House,,,,,,,,,,,
Nottinghamshire County Council,1111/1001,Adult Social Care and Health,ASCH,Third Party Payments,ECA,12/08/2014,05-11570,443.56,Charnwood House,,,,,,,,,,,
Nottinghamshire County Council,1111/1001,Adult Social Care and Health,ASCH,Third Party Payments,ECA,12/08/2014,05-11572,443.56,Charnwood House,,,,,,,,,,,
Nottinghamshire County Council,1111/1001,Adult Social Care and Health,ASCH,Third Party Payments,ECA,12/08/2014,05-11575,443.56,Charnwood House,,,,,,,,,,,
Nottinghamshire County Council,1111/1001,Adult Social Care and Health,ASCH,Third Party Payments,ECA,12/08/2014,05-11583,443.56,Charnwood House,,,,,,,,,,,
Nottinghamshire County Council,1111/1001,Adult Social Care and Health,ASCH,Third Party Payments,ECA,12/08/2014,05-11585,443.56,Charnwood House,,,,,,,,,,,
Nottinghamshire County Council,1111/1001,Adult Social Care and Health,ASCH,Third Party Payments,ECA,12/08/2014,05-11593,443.56,Charnwood House,,,,,,,,,,,
Nottinghamshire County Council,1111/1001,Adult Social Care and Health,ASCH,Third Party Payments,ECA,12/08/2014,05-11598,443.56,Charnwood House,,,,,,,,,,,
Nottinghamshire County Council,1111/1001,Adult Social Care and Health,ASCH,Third Party Payments,ECA,12/08/2014,05-11600,443.56,Four Seasons (Evedale) Ltd Re Charn,,,,,,,,,,,
Nottinghamshire County Council,1111/1001,Adult Social Care and Health,ASCH,Third Party Payments,ECA,12/08/2014,05-11602,443.56,Four Seasons (Evedale) Ltd Re Charn,,,,,,,,,,,
Nottinghamshire County Council,1111/1001,Adult Social Care and Health,ASCH,Third Party Payments,ECA,12/08/2014,05-11604,443.56,Four Seasons (Evedale) Ltd Re Charn,,,,,,,,,,,
Nottinghamshire County Council,1111/1001,Adult Social Care and Health,ASCH,Third Party Payments,ECA,12/08/2014,05-11609,443.56,Four Seasons (Evedale) Ltd Re Sycam,,,,,,,,,,,
Nottinghamshire County Council,1111/1001,Adult Social Care and Health,ASCH,Third Party Payments,ECA,12/08/2014,05-11613,443.56,Four Seasons (Evedale) Ltd Re Sycam,,,,,,,,,,,
Nottinghamshire County Council,1111/1001,Adult Social Care and Health,ASCH,Third Party Payments,ECA,12/08/2014,05-11636,443.56,Ferndene Care Home,,,,,,,,,,,
Nottinghamshire County Council,1111/1001,Adult Social Care and Health,ASCH,Third Party Payments,ECA,12/08/2014,05-11648,443.56,Howson Care Centre,,,,,,,,,,,
Nottinghamshire County Council,1111/1001,Adult Social Care and Health,ASCH,Third Party Payments,ECA,12/08/2014,05-11650,443.56,Howson Care Centre,,,,,,,,,,,
Nottinghamshire County Council,1111/1001,Adult Social Care and Health,ASCH,Third Party Payments,ECA,12/08/2014,05-11652,610.44,Howson Care Centre,,,,,,,,,,,
Nottinghamshire County Council,1111/1001,Adult Social Care and Health,ASCH,Third Party Payments,ECA,12/08/2014,05-11655,610.44,Howson Care Centre,,,,,,,,,,,
Nottinghamshire County Council,1111/1001,Adult Social Care and Health,ASCH,Third Party Payments,ECA,12/08/2014,05-11657,443.56,Howson Care Centre,,,,,,,,,,,
Nottinghamshire County Council,1111/1001,Adult Social Care and Health,ASCH,Third Party Payments,ECA,12/08/2014,05-11659,443.56,Howson Care Centre,,,,,,,,,,,
Nottinghamshire County Council,1111/1001,Adult Social Care and Health,ASCH,Third Party Payments,ECA,12/08/2014,05-11661,443.56,Churchfield Drive Care Home,,,,,,,,,,,
Nottinghamshire County Council,1111/1001,Adult Social Care and Health,ASCH,Third Party Payments,ECA,12/08/2014,05-11664,443.56,Churchfield Drive Care Home,,,,,,,,,,,
Nottinghamshire County Council,1111/1001,Adult Social Care and Health,ASCH,Third Party Payments,ECA,12/08/2014,05-11666,443.56,Churchfield Drive Care Home,,,,,,,,,,,
Nottinghamshire County Council,1111/1001,Adult Social Care and Health,ASCH,Third Party Payments,ECA,12/08/2014,05-11669,443.56,Churchfield Drive Care Home,,,,,,,,,,,
Nottinghamshire County Council,1111/1001,Adult Social Care and Health,ASCH,Third Party Payments,ECA,12/08/2014,05-11671,443.56,Churchfield Drive Care Home,,,,,,,,,,,
Nottinghamshire County Council,1111/1001,Adult Social Care and Health,ASCH,Third Party Payments,ECA,12/08/2014,05-11679,443.56,Churchfield Drive Care Home,,,,,,,,,,,
Nottinghamshire County Council,1111/1001,Adult Social Care and Health,ASCH,Third Party Payments,ECA,12/08/2014,05-11682,443.56,Churchfield Drive Care Home,,,,,,,,,,,
Nottinghamshire County Council,1111/1001,Adult Social Care and Health,ASCH,Third Party Payments,ECA,12/08/2014,05-11689,443.56,Churchfield Drive Care Home,,,,,,,,,,,
Nottinghamshire County Council,1111/1001,Adult Social Care and Health,ASCH,Third Party Payments,ECA,12/08/2014,05-11691,443.56,Churchfield Drive Care Home,,,,,,,,,,,
Nottinghamshire County Council,1111/1001,Adult Social Care and Health,ASCH,Third Party Payments,ECA,12/08/2014,05-11714,443.56,Churchfield Nursing Home,,,,,,,,,,,
Nottinghamshire County Council,1111/1001,Adult Social Care and Health,ASCH,Third Party Payments,ECA,12/08/2014,05-11739,443.56,Kirkby Manor Care Home,,,,,,,,,,,
Nottinghamshire County Council,1111/1001,Adult Social Care and Health,ASCH,Third Party Payments,ECA,12/08/2014,05-11741,610.44,Kirkby Manor Care Home,,,,,,,,,,,
Nottinghamshire County Council,1111/1001,Adult Social Care and Health,ASCH,Third Party Payments,ECA,12/08/2014,05-11743,443.56,Kirkby Manor Care Home,,,,,,,,,,,
Nottinghamshire County Council,1111/1001,Adult Social Care and Health,ASCH,Third Party Payments,ECA,12/08/2014,05-11745,443.56,Kirkby Manor Care Home,,,,,,,,,,,
Nottinghamshire County Council,1111/1001,Adult Social Care and Health,ASCH,Third Party Payments,ECA,12/08/2014,05-11748,443.56,Kirkby Manor Care Home,,,,,,,,,,,
Nottinghamshire County Council,1111/1001,Adult Social Care and Health,ASCH,Third Party Payments,ECA,12/08/2014,05-11750,443.56,Kirkby Manor Care Home,,,,,,,,,,,
Nottinghamshire County Council,1111/1001,Adult Social Care and Health,ASCH,Third Party Payments,ECA,12/08/2014,05-11775,443.56,Stoneyford Christian Nursing Home,,,,,,,,,,,
Nottinghamshire County Council,1111/1001,Adult Social Care and Health,ASCH,Third Party Payments,ECA,12/08/2014,05-11779,443.56,Stoneyford Christian Nursing Home,,,,,,,,,,,
Nottinghamshire County Council,1111/1001,Adult Social Care and Health,ASCH,Third Party Payments,ECA,12/08/2014,05-11781,443.56,Stoneyford Christian Nursing Home,,,,,,,,,,,
Nottinghamshire County Council,1111/1001,Adult Social Care and Health,ASCH,Third Party Payments,ECA,12/08/2014,05-11783,443.56,Stoneyford Christian Nursing Home,,,,,,,,,,,
Nottinghamshire County Council,1111/1001,Adult Social Care and Health,ASCH,Third Party Payments,ECA,12/08/2014,05-11785,443.56,Stoneyford Christian Nursing Home,,,,,,,,,,,
Nottinghamshire County Council,1111/1001,Adult Social Care and Health,ASCH,Third Party Payments,ECA,12/08/2014,05-11788,443.56,Stoneyford Christian Nursing Home,,,,,,,,,,,
Nottinghamshire County Council,1111/1001,Adult Social Care and Health,ASCH,Third Party Payments,ECA,12/08/2014,05-11790,443.56,Stoneyford Christian Nursing Home,,,,,,,,,,,
Nottinghamshire County Council,1111/1001,Adult Social Care and Health,ASCH,Third Party Payments,ECA,12/08/2014,05-11793,443.56,Stoneyford Christian Nursing Home,,,,,,,,,,,
Nottinghamshire County Council,1111/1001,Adult Social Care and Health,ASCH,Third Party Payments,ECA,12/08/2014,05-11795,443.56,Stoneyford Christian Nursing Home,,,,,,,,,,,
Nottinghamshire County Council,1111/1001,Adult Social Care and Health,ASCH,Third Party Payments,ECA,12/08/2014,05-11797,443.56,Stoneyford Christian Nursing Home,,,,,,,,,,,
Nottinghamshire County Council,1111/1001,Adult Social Care and Health,ASCH,Third Party Payments,ECA,12/08/2014,05-11799,443.56,Stoneyford Christian Nursing Home,,,,,,,,,,,
Nottinghamshire County Council,1111/1001,Adult Social Care and Health,ASCH,Third Party Payments,ECA,12/08/2014,05-11801,443.56,Stoneyford Christian Nursing Home,,,,,,,,,,,
Nottinghamshire County Council,1111/1001,Adult Social Care and Health,ASCH,Third Party Payments,ECA,12/08/2014,05-11803,443.56,Stoneyford Christian Nursing Home,,,,,,,,,,,
Nottinghamshire County Council,1111/1001,Adult Social Care and Health,ASCH,Third Party Payments,ECA,12/08/2014,05-11807,443.56,Stoneyford Christian Nursing Home,,,,,,,,,,,
Nottinghamshire County Council,1111/1001,Adult Social Care and Health,ASCH,Third Party Payments,ECA,12/08/2014,05-11809,443.56,Stoneyford Christian Nursing Home,,,,,,,,,,,
Nottinghamshire County Council,1111/1001,Adult Social Care and Health,ASCH,Third Party Payments,ECA,12/08/2014,05-11814,443.56,Stoneyford Christian Nursing Home,,,,,,,,,,,
Nottinghamshire County Council,1111/1001,Adult Social Care and Health,ASCH,Third Party Payments,ECA,12/08/2014,05-11816,443.56,Stoneyford Christian Nursing Home,,,,,,,,,,,
Nottinghamshire County Council,1111/1001,Adult Social Care and Health,ASCH,Third Party Payments,ECA,12/08/2014,05-11818,443.56,Stoneyford Christian Nursing Home,,,,,,,,,,,
Nottinghamshire County Council,1111/1001,Adult Social Care and Health,ASCH,Third Party Payments,ECA,12/08/2014,05-11826,966.33,Beeches Nursing Home,,,,,,,,,,,
Nottinghamshire County Council,1111/1001,Adult Social Care and Health,ASCH,Third Party Payments,ECA,12/08/2014,05-11829,443.56,Beeches Nursing Home,,,,,,,,,,,
Nottinghamshire County Council,1111/1001,Adult Social Care and Health,ASCH,Third Party Payments,ECA,12/08/2014,05-11831,443.56,Beeches Nursing Home,,,,,,,,,,,
Nottinghamshire County Council,1111/1001,Adult Social Care and Health,ASCH,Third Party Payments,ECA,12/08/2014,05-11834,443.56,Beeches Nursing Home,,,,,,,,,,,
Nottinghamshire County Council,1111/1001,Adult Social Care and Health,ASCH,Third Party Payments,ECA,12/08/2014,05-11839,443.56,Beeches Nursing Home,,,,,,,,,,,
Nottinghamshire County Council,1111/1001,Adult Social Care and Health,ASCH,Third Party Payments,ECA,12/08/2014,05-11841,443.56,Beeches Nursing Home,,,,,,,,,,,
Nottinghamshire County Council,1111/1001,Adult Social Care and Health,ASCH,Third Party Payments,ECA,12/08/2014,05-11843,443.56,Beeches Nursing Home,,,,,,,,,,,
Nottinghamshire County Council,1111/1001,Adult Social Care and Health,ASCH,Third Party Payments,ECA,12/08/2014,05-11845,443.56,Beeches Nursing Home,,,,,,,,,,,
Nottinghamshire County Council,1111/1001,Adult Social Care and Health,ASCH,Third Party Payments,ECA,12/08/2014,05-11847,443.56,Beeches Nursing Home,,,,,,,,,,,
Nottinghamshire County Council,1111/1001,Adult Social Care and Health,ASCH,Third Party Payments,ECA,12/08/2014,05-11849,443.56,Beeches Nursing Home,,,,,,,,,,,
Nottinghamshire County Council,1111/1001,Adult Social Care and Health,ASCH,Third Party Payments,ECA,12/08/2014,05-11851,443.56,Beeches Nursing Home,,,,,,,,,,,
Nottinghamshire County Council,1111/1001,Adult Social Care and Health,ASCH,Third Party Payments,ECA,12/08/2014,05-11855,443.56,Berry Hill Park,,,,,,,,,,,
Nottinghamshire County Council,1111/1001,Adult Social Care and Health,ASCH,Third Party Payments,ECA,12/08/2014,05-11858,443.56,Berry Hill Park,,,,,,,,,,,
Nottinghamshire County Council,1111/1001,Adult Social Care and Health,ASCH,Third Party Payments,ECA,12/08/2014,05-11862,443.56,Berry Hill Park,,,,,,,,,,,
Nottinghamshire County Council,1111/1001,Adult Social Care and Health,ASCH,Third Party Payments,ECA,12/08/2014,05-11866,443.56,Berry Hill Park,,,,,,,,,,,
Nottinghamshire County Council,1111/1001,Adult Social Care and Health,ASCH,Third Party Payments,ECA,12/08/2014,05-11868,443.56,Berry Hill Park,,,,,,,,,,,
Nottinghamshire County Council,1111/1001,Adult Social Care and Health,ASCH,Third Party Payments,ECA,12/08/2014,05-11871,443.56,Berry Hill Park,,,,,,,,,,,
Nottinghamshire County Council,1111/1001,Adult Social Care and Health,ASCH,Third Party Payments,ECA,12/08/2014,05-11874,443.56,Berry Hill Park,,,,,,,,,,,
Nottinghamshire County Council,1111/1001,Adult Social Care and Health,ASCH,Third Party Payments,ECA,12/08/2014,05-11876,443.56,Berry Hill Park,,,,,,,,,,,
Nottinghamshire County Council,1111/1001,Adult Social Care and Health,ASCH,Third Party Payments,ECA,12/08/2014,05-11878,443.56,Berry Hill Park,,,,,,,,,,,
Nottinghamshire County Council,1111/1001,Adult Social Care and Health,ASCH,Third Party Payments,ECA,12/08/2014,05-11880,443.56,Berry Hill Park,,,,,,,,,,,
Nottinghamshire County Council,1111/1001,Adult Social Care and Health,ASCH,Third Party Payments,ECA,12/08/2014,05-11883,443.56,Berry Hill Park,,,,,,,,,,,
Nottinghamshire County Council,1111/1001,Adult Social Care and Health,ASCH,Third Party Payments,ECA,12/08/2014,05-11885,443.56,Berry Hill Park,,,,,,,,,,,
Nottinghamshire County Council,1111/1001,Adult Social Care and Health,ASCH,Third Party Payments,ECA,12/08/2014,05-11915,443.56,Countrywide Care Homes Ltd T/A Clum,,,,,,,,,,,
Nottinghamshire County Council,1111/1001,Adult Social Care and Health,ASCH,Third Party Payments,ECA,12/08/2014,05-11917,443.56,Countrywide Care Homes Ltd T/A Clum,,,,,,,,,,,
Nottinghamshire County Council,1111/1001,Adult Social Care and Health,ASCH,Third Party Payments,ECA,12/08/2014,05-11919,443.56,Countrywide Care Homes Ltd T/A Clum,,,,,,,,,,,
Nottinghamshire County Council,1111/1001,Adult Social Care and Health,ASCH,Third Party Payments,ECA,12/08/2014,05-11922,443.56,Countrywide Care Homes Ltd T/A Clum,,,,,,,,,,,
Nottinghamshire County Council,1111/1001,Adult Social Care and Health,ASCH,Third Party Payments,ECA,12/08/2014,05-11924,443.56,Countrywide Care Homes Ltd T/A Clum,,,,,,,,,,,
Nottinghamshire County Council,1111/1001,Adult Social Care and Health,ASCH,Third Party Payments,ECA,12/08/2014,05-11926,443.56,Countrywide Care Homes Ltd T/A Clum,,,,,,,,,,,
Nottinghamshire County Council,1111/1001,Adult Social Care and Health,ASCH,Third Party Payments,ECA,12/08/2014,05-11928,443.56,Countrywide Care Homes Ltd T/A Clum,,,,,,,,,,,
Nottinghamshire County Council,1111/1001,Adult Social Care and Health,ASCH,Third Party Payments,ECA,12/08/2014,05-11932,443.56,Countrywide Care Homes Ltd T/A Clum,,,,,,,,,,,
Nottinghamshire County Council,1111/1001,Adult Social Care and Health,ASCH,Third Party Payments,ECA,12/08/2014,05-11935,443.56,Countrywide Care Homes Ltd T/A Clum,,,,,,,,,,,
Nottinghamshire County Council,1111/1001,Adult Social Care and Health,ASCH,Third Party Payments,ECA,12/08/2014,05-11937,610.44,Countrywide Care Homes Ltd T/A Clum,,,,,,,,,,,
Nottinghamshire County Council,1111/1001,Adult Social Care and Health,ASCH,Third Party Payments,ECA,12/08/2014,05-11938,443.56,Countrywide Care Homes Ltd T/A Clum,,,,,,,,,,,
Nottinghamshire County Council,1111/1001,Adult Social Care and Health,ASCH,Third Party Payments,ECA,12/08/2014,05-11940,443.56,Countrywide Care Homes Ltd T/A Clum,,,,,,,,,,,
Nottinghamshire County Council,1111/1001,Adult Social Care and Health,ASCH,Third Party Payments,ECA,12/08/2014,05-11942,610.44,Countrywide Care Homes Ltd T/A Clum,,,,,,,,,,,
Nottinghamshire County Council,1111/1001,Adult Social Care and Health,ASCH,Third Party Payments,ECA,12/08/2014,05-11944,443.56,Countrywide Care Homes Ltd T/A Clum,,,,,,,,,,,
Nottinghamshire County Council,1111/1001,Adult Social Care and Health,ASCH,Third Party Payments,ECA,12/08/2014,05-11946,443.56,Countrywide Care Homes Ltd T/A Clum,,,,,,,,,,,
Nottinghamshire County Council,1111/1001,Adult Social Care and Health,ASCH,Third Party Payments,ECA,12/08/2014,05-11949,443.56,Countrywide Care Homes Ltd T/A Clum,,,,,,,,,,,
Nottinghamshire County Council,1111/1001,Adult Social Care and Health,ASCH,Third Party Payments,ECA,12/08/2014,05-11951,443.56,Countrywide Care Homes Ltd T/A Clum,,,,,,,,,,,
Nottinghamshire County Council,1111/1001,Adult Social Care and Health,ASCH,Third Party Payments,ECA,12/08/2014,05-11957,443.56,Landermeads Nursing Home,,,,,,,,,,,
Nottinghamshire County Council,1111/1001,Adult Social Care and Health,ASCH,Third Party Payments,ECA,12/08/2014,05-11959,443.56,Landermeads Nursing Home,,,,,,,,,,,
Nottinghamshire County Council,1111/1001,Adult Social Care and Health,ASCH,Third Party Payments,ECA,12/08/2014,05-11961,443.56,Landermeads Nursing Home,,,,,,,,,,,
Nottinghamshire County Council,1111/1001,Adult Social Care and Health,ASCH,Third Party Payments,ECA,12/08/2014,05-11963,443.56,Landermeads Nursing Home,,,,,,,,,,,
Nottinghamshire County Council,1111/1001,Adult Social Care and Health,ASCH,Third Party Payments,ECA,12/08/2014,05-11967,443.56,Landermeads Nursing Home,,,,,,,,,,,
Nottinghamshire County Council,1111/1001,Adult Social Care and Health,ASCH,Third Party Payments,ECA,12/08/2014,05-11969,443.56,Landermeads Nursing Home,,,,,,,,,,,
Nottinghamshire County Council,1111/1001,Adult Social Care and Health,ASCH,Third Party Payments,ECA,12/08/2014,05-11971,443.56,Landermeads Nursing Home,,,,,,,,,,,
Nottinghamshire County Council,1111/1001,Adult Social Care and Health,ASCH,Third Party Payments,ECA,12/08/2014,05-11973,443.56,Landermeads Nursing Home,,,,,,,,,,,
Nottinghamshire County Council,1111/1001,Adult Social Care and Health,ASCH,Third Party Payments,ECA,12/08/2014,05-11975,610.44,Landermeads Nursing Home,,,,,,,,,,,
Nottinghamshire County Council,1111/1001,Adult Social Care and Health,ASCH,Third Party Payments,ECA,12/08/2014,05-11977,610.44,Landermeads Nursing Home,,,,,,,,,,,
Nottinghamshire County Council,1111/1001,Adult Social Care and Health,ASCH,Third Party Payments,ECA,12/08/2014,05-11981,443.56,Landermeads Nursing Home,,,,,,,,,,,
Nottinghamshire County Council,1111/1001,Adult Social Care and Health,ASCH,Third Party Payments,ECA,12/08/2014,05-11983,443.56,Landermeads Nursing Home,,,,,,,,,,,
Nottinghamshire County Council,1111/1001,Adult Social Care and Health,ASCH,Third Party Payments,ECA,12/08/2014,05-11985,443.56,Landermeads Nursing Home,,,,,,,,,,,
Nottinghamshire County Council,1111/1001,Adult Social Care and Health,ASCH,Third Party Payments,ECA,12/08/2014,05-11987,443.56,Landermeads Nursing Home,,,,,,,,,,,
Nottinghamshire County Council,1111/1001,Adult Social Care and Health,ASCH,Third Party Payments,ECA,12/08/2014,05-11990,443.56,Landermeads Nursing Home,,,,,,,,,,,
Nottinghamshire County Council,1111/1001,Adult Social Care and Health,ASCH,Third Party Payments,ECA,12/08/2014,05-11993,443.56,Landermeads Nursing Home,,,,,,,,,,,
Nottinghamshire County Council,1111/1001,Adult Social Care and Health,ASCH,Third Party Payments,ECA,12/08/2014,05-11996,443.56,Landermeads Nursing Home,,,,,,,,,,,
Nottinghamshire County Council,1111/1001,Adult Social Care and Health,ASCH,Third Party Payments,ECA,12/08/2014,05-11998,443.56,Landermeads Nursing Home,,,,,,,,,,,
Nottinghamshire County Council,1111/1001,Adult Social Care and Health,ASCH,Third Party Payments,ECA,12/08/2014,05-12000,443.56,Landermeads Nursing Home,,,,,,,,,,,
Nottinghamshire County Council,1111/1001,Adult Social Care and Health,ASCH,Third Party Payments,ECA,12/08/2014,05-12002,443.56,Landermeads Nursing Home,,,,,,,,,,,
Nottinghamshire County Council,1111/1001,Adult Social Care and Health,ASCH,Third Party Payments,ECA,12/08/2014,05-12004,443.56,Landermeads Nursing Home,,,,,,,,,,,
Nottinghamshire County Council,1111/1001,Adult Social Care and Health,ASCH,Third Party Payments,ECA,12/08/2014,05-12006,443.56,Landermeads Nursing Home,,,,,,,,,,,
Nottinghamshire County Council,1111/1001,Adult Social Care and Health,ASCH,Third Party Payments,ECA,12/08/2014,05-12008,443.56,Landermeads Nursing Home,,,,,,,,,,,
Nottinghamshire County Council,1111/1001,Adult Social Care and Health,ASCH,Third Party Payments,ECA,12/08/2014,05-12075,443.56,The Old Vicarage Care Home Long Eat,,,,,,,,,,,
Nottinghamshire County Council,1111/1001,Adult Social Care and Health,ASCH,Third Party Payments,ECA,12/08/2014,05-12092,443.56,Albemarle Hall Nursing Home,,,,,,,,,,,
Nottinghamshire County Council,1111/1001,Adult Social Care and Health,ASCH,Third Party Payments,ECA,12/08/2014,05-12095,1853.45,Albemarle Hall Nursing Home,,,,,,,,,,,
Nottinghamshire County Council,1111/1001,Adult Social Care and Health,ASCH,Third Party Payments,ECA,12/08/2014,05-12097,443.56,Albemarle Hall Nursing Home,,,,,,,,,,,
Nottinghamshire County Council,1111/1001,Adult Social Care and Health,ASCH,Third Party Payments,ECA,12/08/2014,05-12099,443.56,Albemarle Hall Nursing Home,,,,,,,,,,,
Nottinghamshire County Council,1111/1001,Adult Social Care and Health,ASCH,Third Party Payments,ECA,12/08/2014,05-12101,443.56,Alexandra House Nursing Home,,,,,,,,,,,
Nottinghamshire County Council,1111/1001,Adult Social Care and Health,ASCH,Third Party Payments,ECA,12/08/2014,05-12106,443.56,Alexandra House Nursing Home,,,,,,,,,,,
Nottinghamshire County Council,1111/1001,Adult Social Care and Health,ASCH,Third Party Payments,ECA,12/08/2014,05-12108,443.56,Alexandra House Nursing Home,,,,,,,,,,,
Nottinghamshire County Council,1111/1001,Adult Social Care and Health,ASCH,Third Party Payments,ECA,12/08/2014,05-12110,443.56,Alexandra House Nursing Home,,,,,,,,,,,
Nottinghamshire County Council,1111/1001,Adult Social Care and Health,ASCH,Third Party Payments,ECA,12/08/2014,05-12112,443.56,Alexandra House Nursing Home,,,,,,,,,,,
Nottinghamshire County Council,1111/1001,Adult Social Care and Health,ASCH,Third Party Payments,ECA,12/08/2014,05-12119,443.56,Alexandra House Nursing Home,,,,,,,,,,,
Nottinghamshire County Council,1111/1001,Adult Social Care and Health,ASCH,Third Party Payments,ECA,12/08/2014,05-12121,443.56,Alexandra House Nursing Home,,,,,,,,,,,
Nottinghamshire County Council,1111/1001,Adult Social Care and Health,ASCH,Third Party Payments,ECA,12/08/2014,05-12123,443.56,Alexandra House Nursing Home,,,,,,,,,,,
Nottinghamshire County Council,1111/1001,Adult Social Care and Health,ASCH,Third Party Payments,ECA,12/08/2014,05-12125,443.56,Alexandra House Nursing Home,,,,,,,,,,,
Nottinghamshire County Council,1111/1001,Adult Social Care and Health,ASCH,Third Party Payments,ECA,12/08/2014,05-12131,443.56,Lawn Park Nursing Home,,,,,,,,,,,
Nottinghamshire County Council,1111/1001,Adult Social Care and Health,ASCH,Third Party Payments,ECA,12/08/2014,05-12133,443.56,Lawn Park Nursing Home,,,,,,,,,,,
Nottinghamshire County Council,1111/1001,Adult Social Care and Health,ASCH,Third Party Payments,ECA,12/08/2014,05-12137,443.56,Lawn Park Nursing Home,,,,,,,,,,,
Nottinghamshire County Council,1111/1001,Adult Social Care and Health,ASCH,Third Party Payments,ECA,12/08/2014,05-12139,443.56,Lawn Park Nursing Home,,,,,,,,,,,
Nottinghamshire County Council,1111/1001,Adult Social Care and Health,ASCH,Third Party Payments,ECA,12/08/2014,05-12143,443.56,Lawn Park Nursing Home,,,,,,,,,,,
Nottinghamshire County Council,1111/1001,Adult Social Care and Health,ASCH,Third Party Payments,ECA,12/08/2014,05-12147,-601.97,Lawn Park Nursing Home,,,,,,,,,,,
Nottinghamshire County Council,1111/1001,Adult Social Care and Health,ASCH,Third Party Payments,ECA,12/08/2014,05-12149,443.56,Lawn Park Nursing Home,,,,,,,,,,,
Nottinghamshire County Council,1111/1001,Adult Social Care and Health,ASCH,Third Party Payments,ECA,12/08/2014,05-12151,443.56,Lawn Park Nursing Home,,,,,,,,,,,
Nottinghamshire County Council,1111/1001,Adult Social Care and Health,ASCH,Third Party Payments,ECA,12/08/2014,05-12154,443.56,Lawn Park Nursing Home,,,,,,,,,,,
Nottinghamshire County Council,1111/1001,Adult Social Care and Health,ASCH,Third Party Payments,ECA,12/08/2014,05-12157,443.56,Lawn Park Nursing Home,,,,,,,,,,,
Nottinghamshire County Council,1111/1001,Adult Social Care and Health,ASCH,Third Party Payments,ECA,12/08/2014,05-12159,443.56,Lawn Park Nursing Home,,,,,,,,,,,
Nottinghamshire County Council,1111/1001,Adult Social Care and Health,ASCH,Third Party Payments,ECA,12/08/2014,05-12164,443.56,Lawn Park Nursing Home,,,,,,,,,,,
Nottinghamshire County Council,1111/1001,Adult Social Care and Health,ASCH,Third Party Payments,ECA,12/08/2014,05-12170,446.28,Eliot House,,,,,,,,,,,
Nottinghamshire County Council,1111/1001,Adult Social Care and Health,ASCH,Third Party Payments,ECA,12/08/2014,05-12177,443.56,Bluebell Lodge,,,,,,,,,,,
Nottinghamshire County Council,1111/1001,Adult Social Care and Health,ASCH,Third Party Payments,ECA,12/08/2014,05-12217,443.56,Ashley House Nursing Home,,,,,,,,,,,
Nottinghamshire County Council,1111/1001,Adult Social Care and Health,ASCH,Third Party Payments,ECA,12/08/2014,05-12219,443.56,Ashley House Nursing Home,,,,,,,,,,,
Nottinghamshire County Council,1111/1001,Adult Social Care and Health,ASCH,Third Party Payments,ECA,12/08/2014,05-12221,610.44,Ashley House Nursing Home,,,,,,,,,,,
Nottinghamshire County Council,1111/1001,Adult Social Care and Health,ASCH,Third Party Payments,ECA,12/08/2014,05-12224,443.56,Ashley House Nursing Home,,,,,,,,,,,
Nottinghamshire County Council,1111/1001,Adult Social Care and Health,ASCH,Third Party Payments,ECA,12/08/2014,05-12226,443.56,Ashley House Nursing Home,,,,,,,,,,,
Nottinghamshire County Council,1111/1001,Adult Social Care and Health,ASCH,Third Party Payments,ECA,12/08/2014,05-12228,443.56,Ashley House Nursing Home,,,,,,,,,,,
Nottinghamshire County Council,1111/1001,Adult Social Care and Health,ASCH,Third Party Payments,ECA,12/08/2014,05-12230,443.56,Ashley House Nursing Home,,,,,,,,,,,
Nottinghamshire County Council,1111/1001,Adult Social Care and Health,ASCH,Third Party Payments,ECA,12/08/2014,05-12232,443.56,Ashley House Nursing Home,,,,,,,,,,,
Nottinghamshire County Council,1111/1001,Adult Social Care and Health,ASCH,Third Party Payments,ECA,12/08/2014,05-12234,443.56,Ashley House Nursing Home,,,,,,,,,,,
Nottinghamshire County Council,1111/1001,Adult Social Care and Health,ASCH,Third Party Payments,ECA,12/08/2014,05-12237,443.56,Ashley House Nursing Home,,,,,,,,,,,
Nottinghamshire County Council,1111/1001,Adult Social Care and Health,ASCH,Third Party Payments,ECA,12/08/2014,05-12239,443.56,Ashley House Nursing Home,,,,,,,,,,,
Nottinghamshire County Council,1111/1001,Adult Social Care and Health,ASCH,Third Party Payments,ECA,12/08/2014,05-12241,610.44,Ashley House Nursing Home,,,,,,,,,,,
Nottinghamshire County Council,1111/1001,Adult Social Care and Health,ASCH,Third Party Payments,ECA,12/08/2014,05-12242,610.44,Ashley House Nursing Home,,,,,,,,,,,
Nottinghamshire County Council,1111/1001,Adult Social Care and Health,ASCH,Third Party Payments,ECA,12/08/2014,05-12245,443.56,Ashley House Nursing Home,,,,,,,,,,,
Nottinghamshire County Council,1111/1001,Adult Social Care and Health,ASCH,Third Party Payments,ECA,12/08/2014,05-12248,443.56,Ashley House Nursing Home,,,,,,,,,,,
Nottinghamshire County Council,1111/1001,Adult Social Care and Health,ASCH,Third Party Payments,ECA,12/08/2014,05-12251,443.56,Ashley House Nursing Home,,,,,,,,,,,
Nottinghamshire County Council,1111/1001,Adult Social Care and Health,ASCH,Third Party Payments,ECA,12/08/2014,05-12254,443.56,Ashley House Nursing Home,,,,,,,,,,,
Nottinghamshire County Council,1111/1001,Adult Social Care and Health,ASCH,Third Party Payments,ECA,12/08/2014,05-12256,610.44,Ashley House Nursing Home,,,,,,,,,,,
Nottinghamshire County Council,1111/1001,Adult Social Care and Health,ASCH,Third Party Payments,ECA,12/08/2014,05-12257,443.56,Ashley House Nursing Home,,,,,,,,,,,
Nottinghamshire County Council,1111/1001,Adult Social Care and Health,ASCH,Third Party Payments,ECA,12/08/2014,05-12260,459.41,Aslockton Hall Nursing Home,,,,,,,,,,,
Nottinghamshire County Council,1111/1001,Adult Social Care and Health,ASCH,Third Party Payments,ECA,12/08/2014,05-12262,443.56,Aslockton Hall Nursing Home,,,,,,,,,,,
Nottinghamshire County Council,1111/1001,Adult Social Care and Health,ASCH,Third Party Payments,ECA,12/08/2014,05-12265,443.56,Aslockton Hall Nursing Home,,,,,,,,,,,
Nottinghamshire County Council,1111/1001,Adult Social Care and Health,ASCH,Third Party Payments,ECA,12/08/2014,05-12267,443.56,Aslockton Hall Nursing Home,,,,,,,,,,,
Nottinghamshire County Council,1111/1001,Adult Social Care and Health,ASCH,Third Party Payments,ECA,12/08/2014,05-12269,443.56,Aslockton Hall Nursing Home,,,,,,,,,,,
Nottinghamshire County Council,1111/1001,Adult Social Care and Health,ASCH,Third Party Payments,ECA,12/08/2014,05-12271,443.56,Aslockton Hall Nursing Home,,,,,,,,,,,
Nottinghamshire County Council,1111/1001,Adult Social Care and Health,ASCH,Third Party Payments,ECA,12/08/2014,05-12273,443.56,Aslockton Hall Nursing Home,,,,,,,,,,,
Nottinghamshire County Council,1111/1001,Adult Social Care and Health,ASCH,Third Party Payments,ECA,12/08/2014,05-12275,443.56,Aslockton Hall Nursing Home,,,,,,,,,,,
Nottinghamshire County Council,1111/1001,Adult Social Care and Health,ASCH,Third Party Payments,ECA,12/08/2014,05-12277,443.56,Aslockton Hall Nursing Home,,,,,,,,,,,
Nottinghamshire County Council,1111/1001,Adult Social Care and Health,ASCH,Third Party Payments,ECA,12/08/2014,05-12306,443.56,Pinxton Manor,,,,,,,,,,,
Nottinghamshire County Council,1111/1001,Adult Social Care and Health,ASCH,Third Party Payments,ECA,12/08/2014,05-12308,443.56,Rodenvine Nottm Ltd T/A Parker Hous,,,,,,,,,,,
Nottinghamshire County Council,1111/1001,Adult Social Care and Health,ASCH,Third Party Payments,ECA,12/08/2014,05-12310,443.56,Rodenvine Nottm Ltd T/A Parker Hous,,,,,,,,,,,
Nottinghamshire County Council,1111/1001,Adult Social Care and Health,ASCH,Third Party Payments,ECA,12/08/2014,05-12313,-237.63,Rodenvine Nottm Ltd T/A Parker Hous,,,,,,,,,,,
Nottinghamshire County Council,1111/1001,Adult Social Care and Health,ASCH,Third Party Payments,ECA,12/08/2014,05-12315,443.56,Rodenvine Nottm Ltd T/A Parker Hous,,,,,,,,,,,
Nottinghamshire County Council,1111/1001,Adult Social Care and Health,ASCH,Third Party Payments,ECA,12/08/2014,05-12318,443.56,Rodenvine Nottm Ltd T/A Parker Hous,,,,,,,,,,,
Nottinghamshire County Council,1111/1001,Adult Social Care and Health,ASCH,Third Party Payments,ECA,12/08/2014,05-12321,443.56,Rodenvine Nottm Ltd T/A Parker Hous,,,,,,,,,,,
Nottinghamshire County Council,1111/1001,Adult Social Care and Health,ASCH,Third Party Payments,ECA,12/08/2014,05-12323,443.56,Rodenvine Nottm Ltd T/A Parker Hous,,,,,,,,,,,
Nottinghamshire County Council,1111/1001,Adult Social Care and Health,ASCH,Third Party Payments,ECA,12/08/2014,05-12325,633.66,Rodenvine Nottm Ltd T/A Parker Hous,,,,,,,,,,,
Nottinghamshire County Council,1111/1001,Adult Social Care and Health,ASCH,Third Party Payments,ECA,12/08/2014,05-12327,443.56,Rodenvine Nottm Ltd T/A Parker Hous,,,,,,,,,,,
Nottinghamshire County Council,1111/1001,Adult Social Care and Health,ASCH,Third Party Payments,ECA,12/08/2014,05-12329,443.56,Gables Nursing Home,,,,,,,,,,,
Nottinghamshire County Council,1111/1001,Adult Social Care and Health,ASCH,Third Party Payments,ECA,12/08/2014,05-12331,443.56,Gables Nursing Home,,,,,,,,,,,
Nottinghamshire County Council,1111/1001,Adult Social Care and Health,ASCH,Third Party Payments,ECA,12/08/2014,05-12333,443.56,Gables Nursing Home,,,,,,,,,,,
Nottinghamshire County Council,1111/1001,Adult Social Care and Health,ASCH,Third Party Payments,ECA,12/08/2014,05-12335,443.56,Gables Nursing Home,,,,,,,,,,,
Nottinghamshire County Council,1111/1001,Adult Social Care and Health,ASCH,Third Party Payments,ECA,12/08/2014,05-12337,443.56,Gables Nursing Home,,,,,,,,,,,
Nottinghamshire County Council,1111/1001,Adult Social Care and Health,ASCH,Third Party Payments,ECA,12/08/2014,05-12339,443.56,Gables Nursing Home,,,,,,,,,,,
Nottinghamshire County Council,1111/1001,Adult Social Care and Health,ASCH,Third Party Payments,ECA,12/08/2014,05-12361,443.56,The Firs Nursing Home,,,,,,,,,,,
Nottinghamshire County Council,1111/1001,Adult Social Care and Health,ASCH,Third Party Payments,ECA,12/08/2014,05-12363,443.56,Forest Hill Nursing Home,,,,,,,,,,,
Nottinghamshire County Council,1111/1001,Adult Social Care and Health,ASCH,Third Party Payments,ECA,12/08/2014,05-12366,443.56,Forest Hill Nursing Home,,,,,,,,,,,
Nottinghamshire County Council,1111/1001,Adult Social Care and Health,ASCH,Third Party Payments,ECA,12/08/2014,05-12368,443.56,Forest Hill Nursing Home,,,,,,,,,,,
Nottinghamshire County Council,1111/1001,Adult Social Care and Health,ASCH,Third Party Payments,ECA,12/08/2014,05-12370,443.56,Forest Hill Nursing Home,,,,,,,,,,,
Nottinghamshire County Council,1111/1001,Adult Social Care and Health,ASCH,Third Party Payments,ECA,12/08/2014,05-12372,443.56,Forest Hill Nursing Home,,,,,,,,,,,
Nottinghamshire County Council,1111/1001,Adult Social Care and Health,ASCH,Third Party Payments,ECA,12/08/2014,05-12374,1520.78,Forest Hill Nursing Home,,,,,,,,,,,
Nottinghamshire County Council,1111/1001,Adult Social Care and Health,ASCH,Third Party Payments,ECA,12/08/2014,05-12377,443.56,Forest Hill Nursing Home,,,,,,,,,,,
Nottinghamshire County Council,1111/1001,Adult Social Care and Health,ASCH,Third Party Payments,ECA,12/08/2014,05-12379,443.56,Forest Hill Nursing Home,,,,,,,,,,,
Nottinghamshire County Council,1111/1001,Adult Social Care and Health,ASCH,Third Party Payments,ECA,12/08/2014,05-12381,443.56,Forest Hill Nursing Home,,,,,,,,,,,
Nottinghamshire County Council,1111/1001,Adult Social Care and Health,ASCH,Third Party Payments,ECA,12/08/2014,05-12383,443.56,Forest Hill Nursing Home,,,,,,,,,,,
Nottinghamshire County Council,1111/1001,Adult Social Care and Health,ASCH,Third Party Payments,ECA,12/08/2014,05-12385,443.56,Forest Hill Nursing Home,,,,,,,,,,,
Nottinghamshire County Council,1111/1001,Adult Social Care and Health,ASCH,Third Party Payments,ECA,12/08/2014,05-12387,443.56,Forest Hill Nursing Home,,,,,,,,,,,
Nottinghamshire County Council,1111/1001,Adult Social Care and Health,ASCH,Third Party Payments,ECA,12/08/2014,05-12389,443.56,Forest Hill Nursing Home,,,,,,,,,,,
Nottinghamshire County Council,1111/1001,Adult Social Care and Health,ASCH,Third Party Payments,ECA,12/08/2014,05-12391,443.56,Forest Hill Nursing Home,,,,,,,,,,,
Nottinghamshire County Council,1111/1001,Adult Social Care and Health,ASCH,Third Party Payments,ECA,12/08/2014,05-12393,443.56,Forest Hill Nursing Home,,,,,,,,,,,
Nottinghamshire County Council,1111/1001,Adult Social Care and Health,ASCH,Third Party Payments,ECA,12/08/2014,05-12395,443.56,Forest Hill Nursing Home,,,,,,,,,,,
Nottinghamshire County Council,1111/1001,Adult Social Care and Health,ASCH,Third Party Payments,ECA,12/08/2014,05-12397,443.56,Forest Hill Nursing Home,,,,,,,,,,,
Nottinghamshire County Council,1111/1001,Adult Social Care and Health,ASCH,Third Party Payments,ECA,12/08/2014,05-12399,443.56,Forest Hill Nursing Home,,,,,,,,,,,
Nottinghamshire County Council,1111/1001,Adult Social Care and Health,ASCH,Third Party Payments,ECA,12/08/2014,05-12401,443.56,Forest Hill Nursing Home,,,,,,,,,,,
Nottinghamshire County Council,1111/1001,Adult Social Care and Health,ASCH,Third Party Payments,ECA,12/08/2014,05-12403,443.56,Forest Hill Nursing Home,,,,,,,,,,,
Nottinghamshire County Council,1111/1001,Adult Social Care and Health,ASCH,Third Party Payments,ECA,12/08/2014,05-12410,443.56,Woodhall Park Nursing Home,,,,,,,,,,,
Nottinghamshire County Council,1111/1001,Adult Social Care and Health,ASCH,Third Party Payments,ECA,12/08/2014,05-12413,443.56,Woodhall Park Nursing Home,,,,,,,,,,,
Nottinghamshire County Council,1111/1001,Adult Social Care and Health,ASCH,Third Party Payments,ECA,12/08/2014,05-12416,443.56,Woodthorpe Manor Nursing Home,,,,,,,,,,,
Nottinghamshire County Council,1111/1001,Adult Social Care and Health,ASCH,Third Party Payments,ECA,12/08/2014,05-12418,443.56,Woodthorpe Manor Nursing Home,,,,,,,,,,,
Nottinghamshire County Council,1111/1001,Adult Social Care and Health,ASCH,Third Party Payments,ECA,12/08/2014,05-12427,443.56,The Moorlands Nursing Home,,,,,,,,,,,
Nottinghamshire County Council,1111/1001,Adult Social Care and Health,ASCH,Third Party Payments,ECA,12/08/2014,05-12429,443.56,The Moorlands Nursing Home,,,,,,,,,,,
Nottinghamshire County Council,1111/1001,Adult Social Care and Health,ASCH,Third Party Payments,ECA,12/08/2014,05-12432,776.23,The Moorlands Nursing Home,,,,,,,,,,,
Nottinghamshire County Council,1111/1001,Adult Social Care and Health,ASCH,Third Party Payments,ECA,12/08/2014,05-12437,443.56,The Moorlands Nursing Home,,,,,,,,,,,
Nottinghamshire County Council,1111/1001,Adult Social Care and Health,ASCH,Third Party Payments,ECA,12/08/2014,05-12439,443.56,The Moorlands Nursing Home,,,,,,,,,,,
Nottinghamshire County Council,1111/1001,Adult Social Care and Health,ASCH,Third Party Payments,ECA,12/08/2014,05-12461,443.56,Church Farm Nursing Home Ltd,,,,,,,,,,,
Nottinghamshire County Council,1111/1001,Adult Social Care and Health,ASCH,Third Party Payments,ECA,12/08/2014,05-12463,443.56,Church Farm Nursing Home Ltd,,,,,,,,,,,
Nottinghamshire County Council,1111/1001,Adult Social Care and Health,ASCH,Third Party Payments,ECA,12/08/2014,05-12465,443.56,Church Farm Nursing Home Ltd,,,,,,,,,,,
Nottinghamshire County Council,1111/1001,Adult Social Care and Health,ASCH,Third Party Payments,ECA,12/08/2014,05-12467,443.56,Church Farm Nursing Home Ltd,,,,,,,,,,,
Nottinghamshire County Council,1111/1001,Adult Social Care and Health,ASCH,Third Party Payments,ECA,12/08/2014,05-12469,443.56,Church Farm Nursing Home Ltd,,,,,,,,,,,
Nottinghamshire County Council,1111/1001,Adult Social Care and Health,ASCH,Third Party Payments,ECA,12/08/2014,05-12471,610.44,Church Farm Nursing Home Ltd,,,,,,,,,,,
Nottinghamshire County Council,1111/1001,Adult Social Care and Health,ASCH,Third Party Payments,ECA,12/08/2014,05-12472,443.56,Church Farm Nursing Home Ltd,,,,,,,,,,,
Nottinghamshire County Council,1111/1001,Adult Social Care and Health,ASCH,Third Party Payments,ECA,12/08/2014,05-12474,443.56,Church Farm Nursing Home Ltd,,,,,,,,,,,
Nottinghamshire County Council,1111/1001,Adult Social Care and Health,ASCH,Third Party Payments,ECA,12/08/2014,05-12476,443.56,Church Farm Nursing Home Ltd,,,,,,,,,,,
Nottinghamshire County Council,1111/1001,Adult Social Care and Health,ASCH,Third Party Payments,ECA,12/08/2014,05-12478,443.56,Church Farm Nursing Home Ltd,,,,,,,,,,,
Nottinghamshire County Council,1111/1001,Adult Social Care and Health,ASCH,Third Party Payments,ECA,12/08/2014,05-12480,443.56,Church Farm Nursing Home Ltd,,,,,,,,,,,
Nottinghamshire County Council,1111/1001,Adult Social Care and Health,ASCH,Third Party Payments,ECA,12/08/2014,05-12482,443.56,Church Farm Nursing Home Ltd,,,,,,,,,,,
Nottinghamshire County Council,1111/1001,Adult Social Care and Health,ASCH,Third Party Payments,ECA,12/08/2014,05-12484,443.56,Church Farm Nursing Home Ltd,,,,,,,,,,,
Nottinghamshire County Council,1111/1001,Adult Social Care and Health,ASCH,Third Party Payments,ECA,12/08/2014,05-12486,443.56,Church Farm Nursing Home Ltd,,,,,,,,,,,
Nottinghamshire County Council,1111/1001,Adult Social Care and Health,ASCH,Third Party Payments,ECA,12/08/2014,05-12489,610.44,Gables Care Homes Limited,,,,,,,,,,,
Nottinghamshire County Council,1111/1001,Adult Social Care and Health,ASCH,Third Party Payments,ECA,12/08/2014,05-12493,443.56,Countrywide Care Homes Ltd T/A Gate,,,,,,,,,,,
Nottinghamshire County Council,1111/1001,Adult Social Care and Health,ASCH,Third Party Payments,ECA,12/08/2014,05-12495,443.56,Countrywide Care Homes Ltd T/A Gate,,,,,,,,,,,
Nottinghamshire County Council,1111/1001,Adult Social Care and Health,ASCH,Third Party Payments,ECA,12/08/2014,05-12498,443.56,Countrywide Care Homes Ltd T/A Gate,,,,,,,,,,,
Nottinghamshire County Council,1111/1001,Adult Social Care and Health,ASCH,Third Party Payments,ECA,12/08/2014,05-12500,610.44,Countrywide Care Homes Ltd T/A Gate,,,,,,,,,,,
Nottinghamshire County Council,1111/1001,Adult Social Care and Health,ASCH,Third Party Payments,ECA,12/08/2014,05-12502,443.56,Countrywide Care Homes Ltd T/A Gate,,,,,,,,,,,
Nottinghamshire County Council,1111/1001,Adult Social Care and Health,ASCH,Third Party Payments,ECA,12/08/2014,05-12505,443.56,Countrywide Care Homes Ltd T/A Gate,,,,,,,,,,,
Nottinghamshire County Council,1111/1001,Adult Social Care and Health,ASCH,Third Party Payments,ECA,12/08/2014,05-12507,443.56,Countrywide Care Homes Ltd T/A Gate,,,,,,,,,,,
Nottinghamshire County Council,1111/1001,Adult Social Care and Health,ASCH,Third Party Payments,ECA,12/08/2014,05-12509,443.56,Countrywide Care Homes Ltd T/A Gate,,,,,,,,,,,
Nottinghamshire County Council,1111/1001,Adult Social Care and Health,ASCH,Third Party Payments,ECA,12/08/2014,05-12511,443.56,Countrywide Care Homes Ltd T/A Gate,,,,,,,,,,,
Nottinghamshire County Council,1111/1001,Adult Social Care and Health,ASCH,Third Party Payments,ECA,12/08/2014,05-12513,443.56,Countrywide Care Homes Ltd T/A Gate,,,,,,,,,,,
Nottinghamshire County Council,1111/1001,Adult Social Care and Health,ASCH,Third Party Payments,ECA,12/08/2014,05-12516,443.56,Countrywide Care Homes Ltd T/A Gate,,,,,,,,,,,
Nottinghamshire County Council,1111/1001,Adult Social Care and Health,ASCH,Third Party Payments,ECA,12/08/2014,05-12518,443.56,Countrywide Care Homes Ltd T/A Gate,,,,,,,,,,,
Nottinghamshire County Council,1111/1001,Adult Social Care and Health,ASCH,Third Party Payments,ECA,12/08/2014,05-12521,443.56,Countrywide Care Homes Ltd T/A Gate,,,,,,,,,,,
Nottinghamshire County Council,1111/1001,Adult Social Care and Health,ASCH,Third Party Payments,ECA,12/08/2014,05-12524,443.56,Countrywide Care Homes Ltd T/A Gate,,,,,,,,,,,
Nottinghamshire County Council,1111/1001,Adult Social Care and Health,ASCH,Third Party Payments,ECA,12/08/2014,05-12527,443.56,Countrywide Care Homes Ltd T/A Gate,,,,,,,,,,,
Nottinghamshire County Council,1111/1001,Adult Social Care and Health,ASCH,Third Party Payments,ECA,12/08/2014,05-12531,443.56,Countrywide Care Homes Ltd T/A Gate,,,,,,,,,,,
Nottinghamshire County Council,1111/1001,Adult Social Care and Health,ASCH,Third Party Payments,ECA,12/08/2014,05-12534,443.56,Countrywide Care Homes Ltd T/A Gate,,,,,,,,,,,
Nottinghamshire County Council,1111/1001,Adult Social Care and Health,ASCH,Third Party Payments,ECA,12/08/2014,05-12536,443.56,Countrywide Care Homes Ltd T/A Gate,,,,,,,,,,,
Nottinghamshire County Council,1111/1001,Adult Social Care and Health,ASCH,Third Party Payments,ECA,12/08/2014,05-12539,443.56,Countrywide Care Homes Ltd T/A Gate,,,,,,,,,,,
Nottinghamshire County Council,1111/1001,Adult Social Care and Health,ASCH,Third Party Payments,ECA,12/08/2014,05-12542,443.56,Countrywide Care Homes Ltd T/A Gate,,,,,,,,,,,
Nottinghamshire County Council,1111/1001,Adult Social Care and Health,ASCH,Third Party Payments,ECA,12/08/2014,05-12546,443.56,Countrywide Care Homes Ltd T/A Gate,,,,,,,,,,,
Nottinghamshire County Council,1111/1001,Adult Social Care and Health,ASCH,Third Party Payments,ECA,12/08/2014,05-12554,443.56,Red Rose Nursing Home,,,,,,,,,,,
Nottinghamshire County Council,1111/1001,Adult Social Care and Health,ASCH,Third Party Payments,ECA,12/08/2014,05-12557,443.56,Red Rose Nursing Home,,,,,,,,,,,
Nottinghamshire County Council,1111/1001,Adult Social Care and Health,ASCH,Third Party Payments,ECA,12/08/2014,05-12560,443.56,Red Rose Nursing Home,,,,,,,,,,,
Nottinghamshire County Council,1111/1001,Adult Social Care and Health,ASCH,Third Party Payments,ECA,12/08/2014,05-12564,443.56,Red Rose Nursing Home,,,,,,,,,,,
Nottinghamshire County Council,1111/1001,Adult Social Care and Health,ASCH,Third Party Payments,ECA,12/08/2014,05-12566,443.56,Red Rose Nursing Home,,,,,,,,,,,
Nottinghamshire County Council,1111/1001,Adult Social Care and Health,ASCH,Third Party Payments,ECA,12/08/2014,05-12569,443.56,Red Rose Nursing Home,,,,,,,,,,,
Nottinghamshire County Council,1111/1001,Adult Social Care and Health,ASCH,Third Party Payments,ECA,12/08/2014,05-12571,443.56,Red Rose Nursing Home,,,,,,,,,,,
Nottinghamshire County Council,1111/1001,Adult Social Care and Health,ASCH,Third Party Payments,ECA,12/08/2014,05-12573,443.56,Red Rose Nursing Home,,,,,,,,,,,
Nottinghamshire County Council,1111/1001,Adult Social Care and Health,ASCH,Third Party Payments,ECA,12/08/2014,05-12575,443.56,Red Rose Nursing Home,,,,,,,,,,,
Nottinghamshire County Council,1111/1001,Adult Social Care and Health,ASCH,Third Party Payments,ECA,12/08/2014,05-12601,443.56,Wren Hall Nursing Home,,,,,,,,,,,
Nottinghamshire County Council,1111/1001,Adult Social Care and Health,ASCH,Third Party Payments,ECA,12/08/2014,05-12603,443.56,Wren Hall Nursing Home,,,,,,,,,,,
Nottinghamshire County Council,1111/1001,Adult Social Care and Health,ASCH,Third Party Payments,ECA,12/08/2014,05-12607,443.56,Wren Hall Nursing Home,,,,,,,,,,,
Nottinghamshire County Council,1111/1001,Adult Social Care and Health,ASCH,Third Party Payments,ECA,12/08/2014,05-12609,443.56,Wren Hall Nursing Home,,,,,,,,,,,
Nottinghamshire County Council,1111/1001,Adult Social Care and Health,ASCH,Third Party Payments,ECA,12/08/2014,05-12611,443.56,Wren Hall Nursing Home,,,,,,,,,,,
Nottinghamshire County Council,1111/1001,Adult Social Care and Health,ASCH,Third Party Payments,ECA,12/08/2014,05-12613,-332.67,Wren Hall Nursing Home,,,,,,,,,,,
Nottinghamshire County Council,1111/1001,Adult Social Care and Health,ASCH,Third Party Payments,ECA,12/08/2014,05-12615,443.56,Wren Hall Nursing Home,,,,,,,,,,,
Nottinghamshire County Council,1111/1001,Adult Social Care and Health,ASCH,Third Party Payments,ECA,12/08/2014,05-12617,443.56,Wren Hall Nursing Home,,,,,,,,,,,
Nottinghamshire County Council,1111/1001,Adult Social Care and Health,ASCH,Third Party Payments,ECA,12/08/2014,05-12619,443.56,Wren Hall Nursing Home,,,,,,,,,,,
Nottinghamshire County Council,1111/1001,Adult Social Care and Health,ASCH,Third Party Payments,ECA,12/08/2014,05-12621,443.56,Wren Hall Nursing Home,,,,,,,,,,,
Nottinghamshire County Council,1111/1001,Adult Social Care and Health,ASCH,Third Party Payments,ECA,12/08/2014,05-12623,443.56,Wren Hall Nursing Home,,,,,,,,,,,
Nottinghamshire County Council,1111/1001,Adult Social Care and Health,ASCH,Third Party Payments,ECA,12/08/2014,05-12625,443.56,Wren Hall Nursing Home,,,,,,,,,,,
Nottinghamshire County Council,1111/1001,Adult Social Care and Health,ASCH,Third Party Payments,ECA,12/08/2014,05-12627,15585.76,Wren Hall Nursing Home,,,,,,,,,,,
Nottinghamshire County Council,1111/1001,Adult Social Care and Health,ASCH,Third Party Payments,ECA,12/08/2014,05-12628,443.56,Wren Hall Nursing Home,,,,,,,,,,,
Nottinghamshire County Council,1111/1001,Adult Social Care and Health,ASCH,Third Party Payments,ECA,12/08/2014,05-12630,443.56,Wren Hall Nursing Home,,,,,,,,,,,
Nottinghamshire County Council,1111/1001,Adult Social Care and Health,ASCH,Third Party Payments,ECA,12/08/2014,05-12664,443.56,The Grange Nursing Home,,,,,,,,,,,
Nottinghamshire County Council,1111/1001,Adult Social Care and Health,ASCH,Third Party Payments,ECA,12/08/2014,05-12667,610.44,Haddon House,,,,,,,,,,,
Nottinghamshire County Council,1111/1001,Adult Social Care and Health,ASCH,Third Party Payments,ECA,12/08/2014,05-12772,443.56,Hawthorne Nursing Home,,,,,,,,,,,
Nottinghamshire County Council,1111/1001,Adult Social Care and Health,ASCH,Third Party Payments,ECA,12/08/2014,05-12774,443.56,Hawthorne Nursing Home,,,,,,,,,,,
Nottinghamshire County Council,1111/1001,Adult Social Care and Health,ASCH,Third Party Payments,ECA,12/08/2014,05-12776,443.56,Hawthorne Nursing Home,,,,,,,,,,,
Nottinghamshire County Council,1111/1001,Adult Social Care and Health,ASCH,Third Party Payments,ECA,12/08/2014,05-12778,443.56,Hawthorne Nursing Home,,,,,,,,,,,
Nottinghamshire County Council,1111/1001,Adult Social Care and Health,ASCH,Third Party Payments,ECA,12/08/2014,05-12780,610.44,Hawthorne Nursing Home,,,,,,,,,,,
Nottinghamshire County Council,1111/1001,Adult Social Care and Health,ASCH,Third Party Payments,ECA,12/08/2014,05-12782,443.56,Hawthorne Nursing Home,,,,,,,,,,,
Nottinghamshire County Council,1111/1001,Adult Social Care and Health,ASCH,Third Party Payments,ECA,12/08/2014,05-12785,443.56,Hawthorne Nursing Home,,,,,,,,,,,
Nottinghamshire County Council,1111/1001,Adult Social Care and Health,ASCH,Third Party Payments,ECA,12/08/2014,05-12787,443.56,Hawthorne Nursing Home,,,,,,,,,,,
Nottinghamshire County Council,1111/1001,Adult Social Care and Health,ASCH,Third Party Payments,ECA,12/08/2014,05-12789,443.56,Hawthorne Nursing Home,,,,,,,,,,,
Nottinghamshire County Council,1111/1001,Adult Social Care and Health,ASCH,Third Party Payments,ECA,12/08/2014,05-12792,443.56,Hawthorne Nursing Home,,,,,,,,,,,
Nottinghamshire County Council,1111/1001,Adult Social Care and Health,ASCH,Third Party Payments,ECA,12/08/2014,05-12794,443.56,Hawthorne Nursing Home,,,,,,,,,,,
Nottinghamshire County Council,1111/1001,Adult Social Care and Health,ASCH,Third Party Payments,ECA,12/08/2014,05-12796,443.56,Hawthorne Nursing Home,,,,,,,,,,,
Nottinghamshire County Council,1111/1001,Adult Social Care and Health,ASCH,Third Party Payments,ECA,12/08/2014,05-12798,443.56,Hawthorne Nursing Home,,,,,,,,,,,
Nottinghamshire County Council,1111/1001,Adult Social Care and Health,ASCH,Third Party Payments,ECA,12/08/2014,05-12811,443.56,Hazel Grove Nursing Home,,,,,,,,,,,
Nottinghamshire County Council,1111/1001,Adult Social Care and Health,ASCH,Third Party Payments,ECA,12/08/2014,05-12814,443.56,Hazel Grove Nursing Home,,,,,,,,,,,
Nottinghamshire County Council,1111/1001,Adult Social Care and Health,ASCH,Third Party Payments,ECA,12/08/2014,05-12817,443.56,Hazel Grove Nursing Home,,,,,,,,,,,
Nottinghamshire County Council,1111/1001,Adult Social Care and Health,ASCH,Third Party Payments,ECA,12/08/2014,05-12820,443.56,Hazel Grove Nursing Home,,,,,,,,,,,
Nottinghamshire County Council,1111/1001,Adult Social Care and Health,ASCH,Third Party Payments,ECA,12/08/2014,05-12822,610.44,Hazel Grove Nursing Home,,,,,,,,,,,
Nottinghamshire County Council,1111/1001,Adult Social Care and Health,ASCH,Third Party Payments,ECA,12/08/2014,05-12823,443.56,Hazel Grove Nursing Home,,,,,,,,,,,
Nottinghamshire County Council,1111/1001,Adult Social Care and Health,ASCH,Third Party Payments,ECA,12/08/2014,05-12827,443.56,Hazel Grove Nursing Home,,,,,,,,,,,
Nottinghamshire County Council,1111/1001,Adult Social Care and Health,ASCH,Third Party Payments,ECA,12/08/2014,05-12829,443.56,Hazel Grove Nursing Home,,,,,,,,,,,
Nottinghamshire County Council,1111/1001,Adult Social Care and Health,ASCH,Third Party Payments,ECA,12/08/2014,05-12832,443.56,Hazel Grove Nursing Home,,,,,,,,,,,
Nottinghamshire County Council,1111/1001,Adult Social Care and Health,ASCH,Third Party Payments,ECA,12/08/2014,05-12835,443.56,Hazel Grove Nursing Home,,,,,,,,,,,
Nottinghamshire County Council,1111/1001,Adult Social Care and Health,ASCH,Third Party Payments,ECA,12/08/2014,05-12837,443.56,Hazel Grove Nursing Home,,,,,,,,,,,
Nottinghamshire County Council,1111/1001,Adult Social Care and Health,ASCH,Third Party Payments,ECA,12/08/2014,05-12849,471.28,Newton House Nursing Home,,,,,,,,,,,
Nottinghamshire County Council,1111/1001,Adult Social Care and Health,ASCH,Third Party Payments,ECA,12/08/2014,05-12929,443.56,Eton Park Nursing Home,,,,,,,,,,,
Nottinghamshire County Council,1111/1001,Adult Social Care and Health,ASCH,Third Party Payments,ECA,12/08/2014,05-12931,443.56,Eton Park Nursing Home,,,,,,,,,,,
Nottinghamshire County Council,1111/1001,Adult Social Care and Health,ASCH,Third Party Payments,ECA,12/08/2014,05-12933,443.56,Eton Park Nursing Home,,,,,,,,,,,
Nottinghamshire County Council,1111/1001,Adult Social Care and Health,ASCH,Third Party Payments,ECA,12/08/2014,05-12935,443.56,Eton Park Nursing Home,,,,,,,,,,,
Nottinghamshire County Council,1111/1001,Adult Social Care and Health,ASCH,Third Party Payments,ECA,12/08/2014,05-12937,443.56,Eton Park Nursing Home,,,,,,,,,,,
Nottinghamshire County Council,1111/1001,Adult Social Care and Health,ASCH,Third Party Payments,ECA,12/08/2014,05-12939,443.56,Eton Park Nursing Home,,,,,,,,,,,
Nottinghamshire County Council,1111/1001,Adult Social Care and Health,ASCH,Third Party Payments,ECA,12/08/2014,05-12950,443.56,Eton Park Residential Home,,,,,,,,,,,
Nottinghamshire County Council,1111/1001,Adult Social Care and Health,ASCH,Third Party Payments,ECA,12/08/2014,05-12974,443.56,Hollybank Nursing Home,,,,,,,,,,,
Nottinghamshire County Council,1111/1001,Adult Social Care and Health,ASCH,Third Party Payments,ECA,12/08/2014,05-13010,1077.22,Adbolton Hall Nursing Home,,,,,,,,,,,
Nottinghamshire County Council,1111/1001,Adult Social Care and Health,ASCH,Third Party Payments,ECA,12/08/2014,05-13011,443.56,Adbolton Hall Nursing Home,,,,,,,,,,,
Nottinghamshire County Council,1111/1001,Adult Social Care and Health,ASCH,Third Party Payments,ECA,12/08/2014,05-13013,443.56,Adbolton Hall Nursing Home,,,,,,,,,,,
Nottinghamshire County Council,1111/1001,Adult Social Care and Health,ASCH,Third Party Payments,ECA,12/08/2014,05-13015,443.56,Adbolton Hall Nursing Home,,,,,,,,,,,
Nottinghamshire County Council,1111/1001,Adult Social Care and Health,ASCH,Third Party Payments,ECA,12/08/2014,05-13018,443.56,Adbolton Hall Nursing Home,,,,,,,,,,,
Nottinghamshire County Council,1111/1001,Adult Social Care and Health,ASCH,Third Party Payments,ECA,12/08/2014,05-13020,443.56,Adbolton Hall Nursing Home,,,,,,,,,,,
Nottinghamshire County Council,1111/1001,Adult Social Care and Health,ASCH,Third Party Payments,ECA,12/08/2014,05-13022,443.56,Adbolton Hall Nursing Home,,,,,,,,,,,
Nottinghamshire County Council,1111/1001,Adult Social Care and Health,ASCH,Third Party Payments,ECA,12/08/2014,05-13024,443.56,Adbolton Hall Nursing Home,,,,,,,,,,,
Nottinghamshire County Council,1111/1001,Adult Social Care and Health,ASCH,Third Party Payments,ECA,12/08/2014,05-13026,443.56,Adbolton Hall Nursing Home,,,,,,,,,,,
Nottinghamshire County Council,1111/1001,Adult Social Care and Health,ASCH,Third Party Payments,ECA,12/08/2014,05-13029,443.56,Adbolton Hall Nursing Home,,,,,,,,,,,
Nottinghamshire County Council,1111/1001,Adult Social Care and Health,ASCH,Third Party Payments,ECA,12/08/2014,05-13031,443.56,Adbolton Hall Nursing Home,,,,,,,,,,,
Nottinghamshire County Council,1111/1001,Adult Social Care and Health,ASCH,Third Party Payments,ECA,12/08/2014,05-13033,443.56,Adbolton Hall Nursing Home,,,,,,,,,,,
Nottinghamshire County Council,1111/1001,Adult Social Care and Health,ASCH,Third Party Payments,ECA,12/08/2014,05-13036,443.56,Adbolton Hall Nursing Home,,,,,,,,,,,
Nottinghamshire County Council,1111/1001,Adult Social Care and Health,ASCH,Third Party Payments,ECA,12/08/2014,05-13038,443.56,Adbolton Hall Nursing Home,,,,,,,,,,,
Nottinghamshire County Council,1111/1001,Adult Social Care and Health,ASCH,Third Party Payments,ECA,12/08/2014,05-13040,443.56,Adbolton Hall Nursing Home,,,,,,,,,,,
Nottinghamshire County Council,1111/1001,Adult Social Care and Health,ASCH,Third Party Payments,ECA,12/08/2014,05-13101,443.56,Elmbank Nursing Home,,,,,,,,,,,
Nottinghamshire County Council,1111/1001,Adult Social Care and Health,ASCH,Third Party Payments,ECA,12/08/2014,05-13105,443.56,Elmbank Nursing Home,,,,,,,,,,,
Nottinghamshire County Council,1111/1001,Adult Social Care and Health,ASCH,Third Party Payments,ECA,12/08/2014,05-13160,1156.42,Mansfield Manor Care Home,,,,,,,,,,,
Nottinghamshire County Council,1111/1001,Adult Social Care and Health,ASCH,Third Party Payments,ECA,12/08/2014,05-13161,443.56,Mansfield Manor Care Home,,,,,,,,,,,
Nottinghamshire County Council,1111/1001,Adult Social Care and Health,ASCH,Third Party Payments,ECA,12/08/2014,05-13163,443.56,Mansfield Manor Care Home,,,,,,,,,,,
Nottinghamshire County Council,1111/1001,Adult Social Care and Health,ASCH,Third Party Payments,ECA,12/08/2014,05-13165,443.56,Mansfield Manor Care Home,,,,,,,,,,,
Nottinghamshire County Council,1111/1001,Adult Social Care and Health,ASCH,Third Party Payments,ECA,12/08/2014,05-13168,443.56,Mansfield Manor Care Home,,,,,,,,,,,
Nottinghamshire County Council,1111/1001,Adult Social Care and Health,ASCH,Third Party Payments,ECA,12/08/2014,05-13171,443.56,Mansfield Manor Care Home,,,,,,,,,,,
Nottinghamshire County Council,1111/1001,Adult Social Care and Health,ASCH,Third Party Payments,ECA,12/08/2014,05-13173,443.56,Mansfield Manor Care Home,,,,,,,,,,,
Nottinghamshire County Council,1111/1001,Adult Social Care and Health,ASCH,Third Party Payments,ECA,12/08/2014,05-13175,443.56,Mansfield Manor Care Home,,,,,,,,,,,
Nottinghamshire County Council,1111/1001,Adult Social Care and Health,ASCH,Third Party Payments,ECA,12/08/2014,05-13177,443.56,Mansfield Manor Care Home,,,,,,,,,,,
Nottinghamshire County Council,1111/1001,Adult Social Care and Health,ASCH,Third Party Payments,ECA,12/08/2014,05-13180,443.56,Mansfield Manor Care Home,,,,,,,,,,,
Nottinghamshire County Council,1111/1001,Adult Social Care and Health,ASCH,Third Party Payments,ECA,12/08/2014,05-13182,443.56,Mansfield Manor Care Home,,,,,,,,,,,
Nottinghamshire County Council,1111/1001,Adult Social Care and Health,ASCH,Third Party Payments,ECA,12/08/2014,05-13184,443.56,Mansfield Manor Care Home,,,,,,,,,,,
Nottinghamshire County Council,1111/1001,Adult Social Care and Health,ASCH,Third Party Payments,ECA,12/08/2014,05-13187,443.56,Mansfield Manor Care Home,,,,,,,,,,,
Nottinghamshire County Council,1111/1001,Adult Social Care and Health,ASCH,Third Party Payments,ECA,12/08/2014,05-13189,443.56,Mansfield Manor Care Home,,,,,,,,,,,
Nottinghamshire County Council,1111/1001,Adult Social Care and Health,ASCH,Third Party Payments,ECA,12/08/2014,05-13191,443.56,Mansfield Manor Care Home,,,,,,,,,,,
Nottinghamshire County Council,1111/1001,Adult Social Care and Health,ASCH,Third Party Payments,ECA,12/08/2014,05-13193,443.56,Mansfield Manor Care Home,,,,,,,,,,,
Nottinghamshire County Council,1111/1001,Adult Social Care and Health,ASCH,Third Party Payments,ECA,12/08/2014,05-13195,443.56,Mansfield Manor Care Home,,,,,,,,,,,
Nottinghamshire County Council,1111/1001,Adult Social Care and Health,ASCH,Third Party Payments,ECA,12/08/2014,05-13222,443.56,Balmore Country House,,,,,,,,,,,
Nottinghamshire County Council,1111/1001,Adult Social Care and Health,ASCH,Third Party Payments,ECA,12/08/2014,05-13224,443.56,Balmore Country House,,,,,,,,,,,
Nottinghamshire County Council,1111/1001,Adult Social Care and Health,ASCH,Third Party Payments,ECA,12/08/2014,05-13226,443.56,Balmore Country House,,,,,,,,,,,
Nottinghamshire County Council,1111/1001,Adult Social Care and Health,ASCH,Third Party Payments,ECA,12/08/2014,05-13228,443.56,Balmore Country House,,,,,,,,,,,
Nottinghamshire County Council,1111/1001,Adult Social Care and Health,ASCH,Third Party Payments,ECA,12/08/2014,05-13230,443.56,Balmore Country House,,,,,,,,,,,
Nottinghamshire County Council,1111/1001,Adult Social Care and Health,ASCH,Third Party Payments,ECA,12/08/2014,05-13232,443.56,Balmore Country House,,,,,,,,,,,
Nottinghamshire County Council,1111/1001,Adult Social Care and Health,ASCH,Third Party Payments,ECA,12/08/2014,05-13235,443.56,Balmore Country House,,,,,,,,,,,
Nottinghamshire County Council,1111/1001,Adult Social Care and Health,ASCH,Third Party Payments,ECA,12/08/2014,05-13237,443.56,Balmore Country House,,,,,,,,,,,
Nottinghamshire County Council,1111/1001,Adult Social Care and Health,ASCH,Third Party Payments,ECA,12/08/2014,05-13254,443.56,Field House Nursing Home,,,,,,,,,,,
Nottinghamshire County Council,1111/1001,Adult Social Care and Health,ASCH,Third Party Payments,ECA,12/08/2014,05-13256,443.56,Field House Nursing Home,,,,,,,,,,,
Nottinghamshire County Council,1111/1001,Adult Social Care and Health,ASCH,Third Party Payments,ECA,12/08/2014,05-13258,443.56,Field House Nursing Home,,,,,,,,,,,
Nottinghamshire County Council,1111/1001,Adult Social Care and Health,ASCH,Third Party Payments,ECA,12/08/2014,05-13260,443.56,Field House Nursing Home,,,,,,,,,,,
Nottinghamshire County Council,1111/1001,Adult Social Care and Health,ASCH,Third Party Payments,ECA,12/08/2014,05-13264,443.56,Field House Nursing Home,,,,,,,,,,,
Nottinghamshire County Council,1111/1001,Adult Social Care and Health,ASCH,Third Party Payments,ECA,12/08/2014,05-13266,443.56,Field House Nursing Home,,,,,,,,,,,
Nottinghamshire County Council,1111/1001,Adult Social Care and Health,ASCH,Third Party Payments,ECA,12/08/2014,05-13286,443.56,Giltbrook Health Care Ltd,,,,,,,,,,,
Nottinghamshire County Council,1111/1001,Adult Social Care and Health,ASCH,Third Party Payments,ECA,12/08/2014,05-13288,443.56,Giltbrook Health Care Ltd,,,,,,,,,,,
Nottinghamshire County Council,1111/1001,Adult Social Care and Health,ASCH,Third Party Payments,ECA,12/08/2014,05-13292,443.56,Giltbrook Health Care Ltd,,,,,,,,,,,
Nottinghamshire County Council,1111/1001,Adult Social Care and Health,ASCH,Third Party Payments,ECA,12/08/2014,05-13294,443.56,Giltbrook Health Care Ltd,,,,,,,,,,,
Nottinghamshire County Council,1111/1001,Adult Social Care and Health,ASCH,Third Party Payments,ECA,12/08/2014,05-13298,443.56,Giltbrook Health Care Ltd,,,,,,,,,,,
Nottinghamshire County Council,1111/1001,Adult Social Care and Health,ASCH,Third Party Payments,ECA,12/08/2014,05-13300,443.56,Giltbrook Health Care Ltd,,,,,,,,,,,
Nottinghamshire County Council,1111/1001,Adult Social Care and Health,ASCH,Third Party Payments,ECA,12/08/2014,05-13302,443.56,Giltbrook Health Care Ltd,,,,,,,,,,,
Nottinghamshire County Council,1111/1001,Adult Social Care and Health,ASCH,Third Party Payments,ECA,12/08/2014,05-13305,443.56,Giltbrook Health Care Ltd,,,,,,,,,,,
Nottinghamshire County Council,1111/1001,Adult Social Care and Health,ASCH,Third Party Payments,ECA,12/08/2014,05-13309,443.56,Giltbrook Health Care Ltd,,,,,,,,,,,
Nottinghamshire County Council,1111/1001,Adult Social Care and Health,ASCH,Third Party Payments,ECA,12/08/2014,05-13311,443.56,Giltbrook Health Care Ltd,,,,,,,,,,,
Nottinghamshire County Council,1111/1001,Adult Social Care and Health,ASCH,Third Party Payments,ECA,12/08/2014,05-13339,610.44,Lowmoor Nursing Home,,,,,,,,,,,
Nottinghamshire County Council,1111/1001,Adult Social Care and Health,ASCH,Third Party Payments,ECA,12/08/2014,05-13341,443.56,Lowmoor Nursing Home,,,,,,,,,,,
Nottinghamshire County Council,1111/1001,Adult Social Care and Health,ASCH,Third Party Payments,ECA,12/08/2014,05-13343,443.56,Lowmoor Nursing Home,,,,,,,,,,,
Nottinghamshire County Council,1111/1001,Adult Social Care and Health,ASCH,Third Party Payments,ECA,12/08/2014,05-13345,443.56,Lowmoor Nursing Home,,,,,,,,,,,
Nottinghamshire County Council,1111/1001,Adult Social Care and Health,ASCH,Third Party Payments,ECA,12/08/2014,05-13347,443.56,Lowmoor Nursing Home,,,,,,,,,,,
Nottinghamshire County Council,1111/1001,Adult Social Care and Health,ASCH,Third Party Payments,ECA,12/08/2014,05-13349,443.56,Lowmoor Nursing Home,,,,,,,,,,,
Nottinghamshire County Council,1111/1001,Adult Social Care and Health,ASCH,Third Party Payments,ECA,12/08/2014,05-13351,443.56,Lowmoor Nursing Home,,,,,,,,,,,
Nottinghamshire County Council,1111/1001,Adult Social Care and Health,ASCH,Third Party Payments,ECA,12/08/2014,05-13354,443.56,Lowmoor Nursing Home,,,,,,,,,,,
Nottinghamshire County Council,1111/1001,Adult Social Care and Health,ASCH,Third Party Payments,ECA,12/08/2014,05-13356,610.44,Lowmoor Nursing Home,,,,,,,,,,,
Nottinghamshire County Council,1111/1001,Adult Social Care and Health,ASCH,Third Party Payments,ECA,12/08/2014,05-13358,443.56,Lowmoor Nursing Home,,,,,,,,,,,
Nottinghamshire County Council,1111/1001,Adult Social Care and Health,ASCH,Third Party Payments,ECA,12/08/2014,05-13360,443.56,Lowmoor Nursing Home,,,,,,,,,,,
Nottinghamshire County Council,1111/1001,Adult Social Care and Health,ASCH,Third Party Payments,ECA,12/08/2014,05-13363,443.56,Lowmoor Nursing Home,,,,,,,,,,,
Nottinghamshire County Council,1111/1001,Adult Social Care and Health,ASCH,Third Party Payments,ECA,12/08/2014,05-13365,443.56,Lowmoor Nursing Home,,,,,,,,,,,
Nottinghamshire County Council,1111/1001,Adult Social Care and Health,ASCH,Third Party Payments,ECA,12/08/2014,05-13367,443.56,Lowmoor Nursing Home,,,,,,,,,,,
Nottinghamshire County Council,1111/1001,Adult Social Care and Health,ASCH,Third Party Payments,ECA,12/08/2014,05-13425,443.56,Bramcote House Nursing Home,,,,,,,,,,,
Nottinghamshire County Council,1111/1001,Adult Social Care and Health,ASCH,Third Party Payments,ECA,12/08/2014,05-13427,443.56,Bramcote House Nursing Home,,,,,,,,,,,
Nottinghamshire County Council,1111/1001,Adult Social Care and Health,ASCH,Third Party Payments,ECA,12/08/2014,05-13429,443.56,Bramcote House Nursing Home,,,,,,,,,,,
Nottinghamshire County Council,1111/1001,Adult Social Care and Health,ASCH,Third Party Payments,ECA,12/08/2014,05-13432,443.56,Bramcote House Nursing Home,,,,,,,,,,,
Nottinghamshire County Council,1111/1001,Adult Social Care and Health,ASCH,Third Party Payments,ECA,12/08/2014,05-13434,443.56,Bramcote House Nursing Home,,,,,,,,,,,
Nottinghamshire County Council,1111/1001,Adult Social Care and Health,ASCH,Third Party Payments,ECA,12/08/2014,05-13462,443.56,Hallcroft Nursing Home,,,,,,,,,,,
Nottinghamshire County Council,1111/1001,Adult Social Care and Health,ASCH,Third Party Payments,ECA,12/08/2014,05-13465,443.56,Hallcroft Nursing Home,,,,,,,,,,,
Nottinghamshire County Council,1111/1001,Adult Social Care and Health,ASCH,Third Party Payments,ECA,12/08/2014,05-13468,443.56,Hallcroft Nursing Home,,,,,,,,,,,
Nottinghamshire County Council,1111/1001,Adult Social Care and Health,ASCH,Third Party Payments,ECA,12/08/2014,05-13470,443.56,Hallcroft Nursing Home,,,,,,,,,,,
Nottinghamshire County Council,1111/1001,Adult Social Care and Health,ASCH,Third Party Payments,ECA,12/08/2014,05-13472,443.56,Hallcroft Nursing Home,,,,,,,,,,,
Nottinghamshire County Council,1111/1001,Adult Social Care and Health,ASCH,Third Party Payments,ECA,12/08/2014,05-13474,443.56,Hallcroft Nursing Home,,,,,,,,,,,
Nottinghamshire County Council,1111/1001,Adult Social Care and Health,ASCH,Third Party Payments,ECA,12/08/2014,05-13477,443.56,Hallcroft Nursing Home,,,,,,,,,,,
Nottinghamshire County Council,1111/1001,Adult Social Care and Health,ASCH,Third Party Payments,ECA,12/08/2014,05-13479,443.56,Hallcroft Nursing Home,,,,,,,,,,,
Nottinghamshire County Council,1111/1001,Adult Social Care and Health,ASCH,Third Party Payments,ECA,12/08/2014,05-13481,443.56,Hallcroft Nursing Home,,,,,,,,,,,
Nottinghamshire County Council,1111/1001,Adult Social Care and Health,ASCH,Third Party Payments,ECA,12/08/2014,05-13500,443.56,Foxby Hill N/R Home,,,,,,,,,,,
Nottinghamshire County Council,1111/1001,Adult Social Care and Health,ASCH,Third Party Payments,ECA,12/08/2014,05-13527,443.56,Byars Nursing Home,,,,,,,,,,,
Nottinghamshire County Council,1111/1001,Adult Social Care and Health,ASCH,Third Party Payments,ECA,12/08/2014,05-13529,443.56,Byars Nursing Home,,,,,,,,,,,
Nottinghamshire County Council,1111/1001,Adult Social Care and Health,ASCH,Third Party Payments,ECA,12/08/2014,05-13531,443.56,Byars Nursing Home,,,,,,,,,,,
Nottinghamshire County Council,1111/1001,Adult Social Care and Health,ASCH,Third Party Payments,ECA,12/08/2014,05-13533,443.56,Byars Nursing Home,,,,,,,,,,,
Nottinghamshire County Council,1111/1001,Adult Social Care and Health,ASCH,Third Party Payments,ECA,12/08/2014,05-13535,443.56,Byars Nursing Home,,,,,,,,,,,
Nottinghamshire County Council,1111/1001,Adult Social Care and Health,ASCH,Third Party Payments,ECA,12/08/2014,05-13537,443.56,Byars Nursing Home,,,,,,,,,,,
Nottinghamshire County Council,1111/1001,Adult Social Care and Health,ASCH,Third Party Payments,ECA,12/08/2014,05-13539,443.56,Byars Nursing Home,,,,,,,,,,,
Nottinghamshire County Council,1111/1001,Adult Social Care and Health,ASCH,Third Party Payments,ECA,12/08/2014,05-13541,443.56,Byars Nursing Home,,,,,,,,,,,
Nottinghamshire County Council,1111/1001,Adult Social Care and Health,ASCH,Third Party Payments,ECA,12/08/2014,05-13545,443.56,Victoria Care Home,,,,,,,,,,,
Nottinghamshire County Council,1111/1001,Adult Social Care and Health,ASCH,Third Party Payments,ECA,12/08/2014,05-13547,443.56,Victoria Care Home,,,,,,,,,,,
Nottinghamshire County Council,1111/1001,Adult Social Care and Health,ASCH,Third Party Payments,ECA,12/08/2014,05-13549,443.56,Victoria Care Home,,,,,,,,,,,
Nottinghamshire County Council,1111/1001,Adult Social Care and Health,ASCH,Third Party Payments,ECA,12/08/2014,05-13552,443.56,Victoria Care Home,,,,,,,,,,,
Nottinghamshire County Council,1111/1001,Adult Social Care and Health,ASCH,Third Party Payments,ECA,12/08/2014,05-13556,443.56,Victoria Care Home,,,,,,,,,,,
Nottinghamshire County Council,1111/1001,Adult Social Care and Health,ASCH,Third Party Payments,ECA,12/08/2014,05-13560,443.56,Victoria Care Home,,,,,,,,,,,
Nottinghamshire County Council,1111/1001,Adult Social Care and Health,ASCH,Third Party Payments,ECA,12/08/2014,05-13563,443.56,Victoria Care Home,,,,,,,,,,,
Nottinghamshire County Council,1111/1001,Adult Social Care and Health,ASCH,Third Party Payments,ECA,12/08/2014,05-13565,443.56,Victoria Care Home,,,,,,,,,,,
Nottinghamshire County Council,1111/1001,Adult Social Care and Health,ASCH,Third Party Payments,ECA,12/08/2014,05-13569,443.56,Victoria Care Home,,,,,,,,,,,
Nottinghamshire County Council,1111/1001,Adult Social Care and Health,ASCH,Third Party Payments,ECA,12/08/2014,05-13572,443.56,Victoria Care Home,,,,,,,,,,,
Nottinghamshire County Council,1111/1001,Adult Social Care and Health,ASCH,Third Party Payments,ECA,12/08/2014,05-13591,443.56,The Poplars (Derbys),,,,,,,,,,,
Nottinghamshire County Council,1111/1001,Adult Social Care and Health,ASCH,Third Party Payments,ECA,12/08/2014,05-13599,443.56,Woodleigh Christian Care Home,,,,,,,,,,,
Nottinghamshire County Council,1111/1001,Adult Social Care and Health,ASCH,Third Party Payments,ECA,12/08/2014,05-13602,443.56,Woodleigh Christian Care Home,,,,,,,,,,,
Nottinghamshire County Council,1111/1001,Adult Social Care and Health,ASCH,Third Party Payments,ECA,12/08/2014,05-13605,443.56,Woodleigh Christian Care Home,,,,,,,,,,,
Nottinghamshire County Council,1111/1001,Adult Social Care and Health,ASCH,Third Party Payments,ECA,12/08/2014,05-13607,443.56,Woodleigh Christian Care Home,,,,,,,,,,,
Nottinghamshire County Council,1111/1001,Adult Social Care and Health,ASCH,Third Party Payments,ECA,12/08/2014,05-13609,443.56,Woodleigh Christian Care Home,,,,,,,,,,,
Nottinghamshire County Council,1111/1001,Adult Social Care and Health,ASCH,Third Party Payments,ECA,12/08/2014,05-13611,443.56,Woodleigh Christian Care Home,,,,,,,,,,,
Nottinghamshire County Council,1111/1001,Adult Social Care and Health,ASCH,Third Party Payments,ECA,12/08/2014,05-13615,443.56,Woodleigh Christian Care Home,,,,,,,,,,,
Nottinghamshire County Council,1111/1001,Adult Social Care and Health,ASCH,Third Party Payments,ECA,12/08/2014,05-13617,443.56,Woodleigh Christian Care Home,,,,,,,,,,,
Nottinghamshire County Council,1111/1001,Adult Social Care and Health,ASCH,Third Party Payments,ECA,12/08/2014,05-13619,2328.69,Woodleigh Christian Care Home,,,,,,,,,,,
Nottinghamshire County Council,1111/1001,Adult Social Care and Health,ASCH,Third Party Payments,ECA,12/08/2014,05-13620,443.56,Woodleigh Christian Care Home,,,,,,,,,,,
Nottinghamshire County Council,1111/1001,Adult Social Care and Health,ASCH,Third Party Payments,ECA,12/08/2014,05-13622,443.56,Woodleigh Christian Care Home,,,,,,,,,,,
Nottinghamshire County Council,1111/1001,Adult Social Care and Health,ASCH,Third Party Payments,ECA,12/08/2014,05-13647,443.56,Millington Springs,,,,,,,,,,,
Nottinghamshire County Council,1111/1001,Adult Social Care and Health,ASCH,Third Party Payments,ECA,12/08/2014,05-13649,443.56,Millington Springs,,,,,,,,,,,
Nottinghamshire County Council,1111/1001,Adult Social Care and Health,ASCH,Third Party Payments,ECA,12/08/2014,05-13651,443.56,Millington Springs,,,,,,,,,,,
Nottinghamshire County Council,1111/1001,Adult Social Care and Health,ASCH,Third Party Payments,ECA,12/08/2014,05-13654,443.56,Millington Springs,,,,,,,,,,,
Nottinghamshire County Council,1111/1001,Adult Social Care and Health,ASCH,Third Party Payments,ECA,12/08/2014,05-13656,443.56,Millington Springs,,,,,,,,,,,
Nottinghamshire County Council,1111/1001,Adult Social Care and Health,ASCH,Third Party Payments,ECA,12/08/2014,05-13659,450.8,Millington Springs,,,,,,,,,,,
Nottinghamshire County Council,1111/1001,Adult Social Care and Health,ASCH,Third Party Payments,ECA,12/08/2014,05-13662,443.56,Millington Springs,,,,,,,,,,,
Nottinghamshire County Council,1111/1001,Adult Social Care and Health,ASCH,Third Party Payments,ECA,12/08/2014,05-13664,443.56,Millington Springs,,,,,,,,,,,
Nottinghamshire County Council,1111/1001,Adult Social Care and Health,ASCH,Third Party Payments,ECA,12/08/2014,05-13678,443.56,Westfield Residential Home,,,,,,,,,,,
Nottinghamshire County Council,1111/1001,Adult Social Care and Health,ASCH,Third Party Payments,ECA,12/08/2014,05-13688,443.56,Westfield Residential Home,,,,,,,,,,,
Nottinghamshire County Council,1111/1001,Adult Social Care and Health,ASCH,Third Party Payments,ECA,12/08/2014,05-13695,443.56,Lound Hall Nursing Home,,,,,,,,,,,
Nottinghamshire County Council,1111/1001,Adult Social Care and Health,ASCH,Third Party Payments,ECA,12/08/2014,05-13697,443.56,Lound Hall Nursing Home,,,,,,,,,,,
